Organisation name,Organisation Code,Effective date,Directorate / service where expenditure incurred,Service Category label,Service category URI,Supplier (Beneficiary) name,Local supplier (beneficiary) internal reference,Supplier,Supplier registered charity number,VCSE grant,Payment date - G/L Date,Transaction number,Net Amount,Irrecoverable VAT,purpose_of_spend,Procurement classification / merchant category: Council�s procurement category name,Procurement classification / merchant category: CPV label,Procurement classification / merchant category: CPV code,Procurement classification / merchant category: Proclass label,Procurement classification / merchant category: Proclass code,card_transaction
The Royal Borough of Kensington and Chelsea,RBKC,,Adult Social Care,Director Integrated Commissioning,,Medequip Assistive Technology Ltd ,1234994,,,,25/01/2021,2200145338,"111,482.08",,Hired and Contracted Services,,,,,,No
The Royal Borough of Kensington and Chelsea,RBKC,,Adult Social Care,Director Integrated Commissioning,,Medequip Assistive Technology Ltd ,1234994,,,,26/01/2021,2200145606,"1,045.50",,Hired and Contracted Services,,,,,,No
The Royal Borough of Kensington and Chelsea,RBKC,,Adult Social Care,Director Integrated Commissioning,,Medequip Assistive Technology Ltd ,1234994,,,,26/01/2021,2200145608,"2,794.56",,Hired and Contracted Services,,,,,,No
The Royal Borough of Kensington and Chelsea,RBKC,,Adult Social Care,Director Integrated Commissioning,,Medequip Assistive Technology Ltd ,1234994,,,,11/02/2021,2200149335,"93,044.20",,Hired and Contracted Services,,,,,,No
The Royal Borough of Kensington and Chelsea,RBKC,,Adult Social Care,Director Integrated Commissioning,,Medequip Assistive Technology Ltd ,1234994,,,,19/03/2021,2200157500,"103,641.54",,Hired and Contracted Services,,,,,,No
The Royal Borough of Kensington and Chelsea,RBKC,,Adult Social Care,Director Integrated Commissioning,,Medequip Assistive Technology Ltd ,1234994,,,,06/04/2021,2200161677,708.00,,Hired and Contracted Services,,,,,,No
The Royal Borough of Kensington and Chelsea,RBKC,,Adult Social Care,Director Integrated Commissioning,,Medequip Assistive Technology Ltd ,1234994,,,,06/04/2021,2200161678,"154,637.97",,Hired and Contracted Services,,,,,,No
The Royal Borough of Kensington and Chelsea,RBKC,,Adult Social Care,Director Adult Social Care,,Doro AB,1274450,,,,11/03/2021,2200155836,"4,130.00",,Payments to Voluntary bodies,,,,,,No
The Royal Borough of Kensington and Chelsea,RBKC,,Adult Social Care,Director Adult Social Care,,Doro AB,1274450,,,,16/03/2021,2200156463,"2,899.95",,Payments to Voluntary bodies,,,,,,No
The Royal Borough of Kensington and Chelsea,RBKC,,Adult Social Care,Director Adult Social Care,,Doro AB,1274450,,,,01/04/2021,2200161619,"1,830.00",,Payments to Voluntary bodies,,,,,,No
The Royal Borough of Kensington and Chelsea,RBKC,,Adult Social Care,Director Adult Social Care,,Doro AB,1274450,,,,07/04/2021,2200162050,"1,300.00",,Payments to Voluntary bodies,,,,,,No
The Royal Borough of Kensington and Chelsea,RBKC,,Adult Social Care,Director Adult Social Care,,Oysta Technology,1273983,,,,08/01/2021,2200142289,"3,615.00",,Payments to Voluntary bodies,,,,,,No
The Royal Borough of Kensington and Chelsea,RBKC,,Adult Social Care,Director Adult Social Care,,Red Alert Ltd ,1231238,,,,06/01/2021,2200141624,700.00,,Payments to Voluntary bodies,,,,,,No
The Royal Borough of Kensington and Chelsea,RBKC,,Adult Social Care,Director Adult Social Care,,Red Alert Ltd ,1231238,,,,24/02/2021,2200152053,700.00,,Payments to Voluntary bodies,,,,,,No
The Royal Borough of Kensington and Chelsea,RBKC,,Adult Social Care,Director Adult Social Care,,Red Alert Ltd ,1231238,,,,05/03/2021,2200154172,700.00,,Payments to Voluntary bodies,,,,,,No
The Royal Borough of Kensington and Chelsea,RBKC,,Adult Social Care,Director Adult Social Care,,Red Alert Ltd ,1231238,,,,17/03/2021,2200156847,700.00,,Security Costs,,,,,,No
The Royal Borough of Kensington and Chelsea,RBKC,,Adult Social Care,Director Adult Social Care,,Tunstall Healthcare (UK) Ltd (Use 3012996),1235586,,,,22/01/2021,2200145082,"4,147.70",,Payments to Voluntary bodies,,,,,,No
The Royal Borough of Kensington and Chelsea,RBKC,,Adult Social Care,Director Adult Social Care,,Tunstall Healthcare (UK) Ltd (Use 3012996),1235586,,,,11/02/2021,2200149240,"3,650.00",,Payments to Voluntary bodies,,,,,,No
The Royal Borough of Kensington and Chelsea,RBKC,,Adult Social Care,Director Adult Social Care,,Tunstall Healthcare (UK) Ltd (Use 3012996),1235586,,,,17/03/2021,2200156831,"1,400.00",,Payments to Voluntary bodies,,,,,,No
The Royal Borough of Kensington and Chelsea,RBKC,,Adult Social Care,Director Adult Social Care,,Tunstall Healthcare (UK) Ltd (Use 3012996),1235586,,,,23/03/2021,2200158319,"1,400.00",,Payments to Voluntary bodies,,,,,,No
The Royal Borough of Kensington and Chelsea,RBKC,,Adult Social Care,Director Adult Social Care,,Tunstall Healthcare (UK) Ltd (Use 3012996),1235586,,,,30/03/2021,2200159985,"1,305.00",,Payments to Voluntary bodies,,,,,,No
The Royal Borough of Kensington and Chelsea,RBKC,,Adult Social Care,Director Adult Social Care,,Tunstall Healthcare (UK) Ltd (Use 3012996),1235586,,,,01/04/2021,2200161227,"8,895.25",,Payments to Voluntary bodies,,,,,,No
The Royal Borough of Kensington and Chelsea,RBKC,,Adult Social Care,Director Adult Social Care,,Tunstall Healthcare (UK) Ltd (Use 3012996),1235586,,,,01/04/2021,2200161228,"1,873.50",,Payments to Voluntary bodies,,,,,,No
The Royal Borough of Kensington and Chelsea,RBKC,,Adult Social Care,Director Adult Social Care,,Tunstall Response Ltd ,1235587,,,,22/01/2021,2200145119,"11,421.28",,Domestic Supplies,,,,,,No
The Royal Borough of Kensington and Chelsea,RBKC,,Environment & Communities,Planning and Place,,London Borough Of Hillingdon (**296,1231810,,,,17/02/2021,2200150572,606.00,,Payments to Other Local Authorities,,,,,,No
The Royal Borough of Kensington and Chelsea,RBKC,,Environment & Communities,Planning and Place,,PPLX2 Ltd,1276809,,,,09/03/2021,2200155113,685.00,,Fees,,,,,,No
The Royal Borough of Kensington and Chelsea,RBKC,,Environment & Communities,Planning and Place,,Sage Green Safety Ltd,1269431,,,,01/02/2021,2200146844,900.00,,Service Charges : Premises,,,,,,No
The Royal Borough of Kensington and Chelsea,RBKC,,Environment & Communities,Planning and Place,,Sage Green Safety Ltd,1269431,,,,23/02/2021,2200151814,500.00,,Service Charges : Premises,,,,,,No
The Royal Borough of Kensington and Chelsea,RBKC,,Environment & Communities,Planning and Place,,"BSI Assurance UK Ltd (Membership, Subscriptions and Standards)",1232995,,,,11/02/2021,2200149477,"1,435.00",,Subscriptions,,,,,,No
The Royal Borough of Kensington and Chelsea,RBKC,,Environment & Communities,Planning and Place,,BT Global Services ,1233001,,,,12/01/2021,2200142755,"5,374.12",,Creditors Control : AP GRIR,,,,,,No
The Royal Borough of Kensington and Chelsea,RBKC,,Environment & Communities,Planning and Place,,BT Global Services ,1233001,,,,26/01/2021,2200145610,"2,694.55",,Creditors Control : AP GRIR,,,,,,No
The Royal Borough of Kensington and Chelsea,RBKC,,Environment & Communities,Planning and Place,,Chartered Association ,1252686,,,,09/03/2021,2200155021,"1,250.00",,Creditors Control : AP GRIR,,,,,,No
The Royal Borough of Kensington and Chelsea,RBKC,,Environment & Communities,Planning and Place,,Englemere Ltd,1274757,,,,01/03/2021,2200152916,"1,550.00",,Training related expenditure,,,,,,No
The Royal Borough of Kensington and Chelsea,RBKC,,Environment & Communities,Planning and Place,,Ihs Global Ltd ,1234760,,,,19/03/2021,2200157576,"6,230.00",,Subscriptions,,,,,,No
The Royal Borough of Kensington and Chelsea,RBKC,,Environment & Communities,Planning and Place,,LABC ,1234875,,,,18/03/2021,2200157360,"2,408.08",,Service Charges : Premises,,,,,,No
The Royal Borough of Kensington and Chelsea,RBKC,,Environment & Communities,Planning and Place,,Seventy Eight Ltd,1266384,,,,01/03/2021,2200152914,"1,000.00",,Service Charges : Premises,,,,,,No
The Royal Borough of Kensington and Chelsea,RBKC,,Environment & Communities,"Cleaner, Greener and Cultural Services",,C J Jordan & Son Ltd ,1233031,,,,04/01/2021,2200141050,527.88,,Creditors Control : AP GRIR,,,,,,No
The Royal Borough of Kensington and Chelsea,RBKC,,Environment & Communities,"Cleaner, Greener and Cultural Services",,C J Jordan & Son Ltd ,1233031,,,,25/01/2021,2200145465,"3,200.00",,Creditors Control : AP GRIR,,,,,,No
The Royal Borough of Kensington and Chelsea,RBKC,,Environment & Communities,"Cleaner, Greener and Cultural Services",,C J Jordan & Son Ltd ,1233031,,,,26/01/2021,2200145592,527.88,,Creditors Control : AP GRIR,,,,,,No
The Royal Borough of Kensington and Chelsea,RBKC,,Environment & Communities,"Cleaner, Greener and Cultural Services",,C J Jordan & Son Ltd ,1233031,,,,26/01/2021,2200145593,953.68,,Creditors Control : AP GRIR,,,,,,No
The Royal Borough of Kensington and Chelsea,RBKC,,Environment & Communities,"Cleaner, Greener and Cultural Services",,C J Jordan & Son Ltd ,1233031,,,,26/01/2021,2200145607,527.88,,Creditors Control : AP GRIR,,,,,,No
The Royal Borough of Kensington and Chelsea,RBKC,,Environment & Communities,"Cleaner, Greener and Cultural Services",,C J Jordan & Son Ltd ,1233031,,,,26/01/2021,2200145652,"1,425.16",,Creditors Control : AP GRIR,,,,,,No
The Royal Borough of Kensington and Chelsea,RBKC,,Environment & Communities,"Cleaner, Greener and Cultural Services",,C J Jordan & Son Ltd ,1233031,,,,27/01/2021,2200145867,652.80,,Creditors Control : AP GRIR,,,,,,No
The Royal Borough of Kensington and Chelsea,RBKC,,Environment & Communities,"Cleaner, Greener and Cultural Services",,C J Jordan & Son Ltd ,1233031,,,,25/02/2021,2200152262,527.88,,Creditors Control : AP GRIR,,,,,,No
The Royal Borough of Kensington and Chelsea,RBKC,,Environment & Communities,"Cleaner, Greener and Cultural Services",,C J Jordan & Son Ltd ,1233031,,,,25/02/2021,2200152269,601.76,,Creditors Control : AP GRIR,,,,,,No
The Royal Borough of Kensington and Chelsea,RBKC,,Environment & Communities,"Cleaner, Greener and Cultural Services",,C J Jordan & Son Ltd ,1233031,,,,25/02/2021,2200152285,"5,477.80",,Creditors Control : AP GRIR,,,,,,No
The Royal Borough of Kensington and Chelsea,RBKC,,Environment & Communities,"Cleaner, Greener and Cultural Services",,C J Jordan & Son Ltd ,1233031,,,,01/03/2021,2200152721,602.43,,Creditors Control : AP GRIR,,,,,,No
The Royal Borough of Kensington and Chelsea,RBKC,,Environment & Communities,"Cleaner, Greener and Cultural Services",,C J Jordan & Son Ltd ,1233031,,,,01/03/2021,2200152722,"1,498.31",,Creditors Control : AP GRIR,,,,,,No
The Royal Borough of Kensington and Chelsea,RBKC,,Environment & Communities,"Cleaner, Greener and Cultural Services",,C J Jordan & Son Ltd ,1233031,,,,26/03/2021,2200159231,"1,379.48",,Creditors Control : AP GRIR,,,,,,No
The Royal Borough of Kensington and Chelsea,RBKC,,Environment & Communities,"Cleaner, Greener and Cultural Services",,C J Jordan & Son Ltd ,1233031,,,,29/03/2021,2200159610,"1,657.52",,Creditors Control : AP GRIR,,,,,,No
The Royal Borough of Kensington and Chelsea,RBKC,,Environment & Communities,"Cleaner, Greener and Cultural Services",,C J Jordan & Son Ltd ,1233031,,,,29/03/2021,2200159612,"1,453.36",,Creditors Control : AP GRIR,,,,,,No
The Royal Borough of Kensington and Chelsea,RBKC,,Environment & Communities,"Cleaner, Greener and Cultural Services",,C J Jordan & Son Ltd ,1233031,,,,31/03/2021,2200160469,601.76,,Creditors Control : AP GRIR,,,,,,No
The Royal Borough of Kensington and Chelsea,RBKC,,Environment & Communities,"Cleaner, Greener and Cultural Services",,Redact Details,D000000023,,,,09/03/2021,3110283093,"4,950.00",,Income: General Fees and Charges,,,,,,No
The Royal Borough of Kensington and Chelsea,RBKC,,Environment & Communities,"Cleaner, Greener and Cultural Services",,Redact Details,1234806,,,,29/03/2021,2200159572,989.00,,Creditors Control : AP GRIR,,,,,,No
The Royal Borough of Kensington and Chelsea,RBKC,,Environment & Communities,"Cleaner, Greener and Cultural Services",,Quadron Services Ltd T/A Idverde ,1231423,,,,06/01/2021,2200141642,"38,185.24",,Creditors Control : AP GRIR,,,,,,No
The Royal Borough of Kensington and Chelsea,RBKC,,Environment & Communities,"Cleaner, Greener and Cultural Services",,Quadron Services Ltd T/A Idverde ,1231423,,,,03/02/2021,2200147396,"38,185.24",,Creditors Control : AP GRIR,,,,,,No
The Royal Borough of Kensington and Chelsea,RBKC,,Environment & Communities,"Cleaner, Greener and Cultural Services",,Quadron Services Ltd T/A Idverde ,1231423,,,,12/04/2021,2200163107,"54,458.26",,Creditors Control : AP GRIR,,,,,,No
The Royal Borough of Kensington and Chelsea,RBKC,,Environment & Communities,"Cleaner, Greener and Cultural Services",,Quadron Services Ltd T/A Idverde ,1231423,,,,12/04/2021,2200163107,"1,239.36",,Creditors Control : AP GRIR,,,,,,No
The Royal Borough of Kensington and Chelsea,RBKC,,Resources and Customer Delivery,Customer Delivery,,Bellrock Property & Facilities Man ,1255450,,,,04/01/2021,2200141089,"7,176.22",,Creditors Control : AP GRIR,,,,,,No
The Royal Borough of Kensington and Chelsea,RBKC,,Resources and Customer Delivery,Customer Delivery,,London Borough of Ealing,D000000023,,,,19/03/2021,3110286947,"11,789.25",,Uniform Business Rates,,,,,,No
The Royal Borough of Kensington and Chelsea,RBKC,,Environment & Communities,Communities,,City Of Westminster ,1231771,,,,08/02/2021,2200148598,"61,207.00",,Payments to Other Local Authorities,,,,,,No
The Royal Borough of Kensington and Chelsea,RBKC,,Environment & Communities,Communities,,City Of Westminster ,1231771,,,,23/03/2021,2200158096,"61,207.00",,Payments to Other Local Authorities,,,,,,No
The Royal Borough of Kensington and Chelsea,RBKC,,Capital,Capital,,2CQR Ltd ,1253540,,,,25/03/2021,2200158896,"9,765.00",,Computer Software,,,,,,No
The Royal Borough of Kensington and Chelsea,RBKC,,Statutory and Corporate Items,Statutory Year-End Adjustments,,3Bm Ltd ,1232075,,,,11/01/2021,2200142425,"13,073.00",,Creditors Control : AP GRIR,,,,,,No
The Royal Borough of Kensington and Chelsea,RBKC,,Statutory and Corporate Items,Statutory Year-End Adjustments,,3Bm Ltd ,1232075,,,,11/01/2021,2200142425,"1,308.00",,Creditors Control : AP GRIR,,,,,,No
The Royal Borough of Kensington and Chelsea,RBKC,,Capital,Capital,,3Bm Ltd ,1232075,,,,18/01/2021,2200143938,"3,000.00",,Payments to main contractor,,,,,,No
The Royal Borough of Kensington and Chelsea,RBKC,,Statutory and Corporate Items,Statutory Year-End Adjustments,,3Bm Ltd ,1232075,,,,21/01/2021,2200144743,"11,000.00",,Creditors Control : AP GRIR,,,,,,No
The Royal Borough of Kensington and Chelsea,RBKC,,Statutory and Corporate Items,Statutory Year-End Adjustments,,3Bm Ltd ,1232075,,,,21/01/2021,2200144743,"1,100.00",,Creditors Control : AP GRIR,,,,,,No
The Royal Borough of Kensington and Chelsea,RBKC,,Statutory and Corporate Items,Statutory Year-End Adjustments,,3Bm Ltd ,1232075,,,,11/02/2021,2200149271,"2,520.00",,Creditors Control : AP GRIR,,,,,,No
The Royal Borough of Kensington and Chelsea,RBKC,,Statutory and Corporate Items,Statutory Year-End Adjustments,,3Bm Ltd ,1232075,,,,11/02/2021,2200149272,"1,850.00",,Creditors Control : AP GRIR,,,,,,No
The Royal Borough of Kensington and Chelsea,RBKC,,Statutory and Corporate Items,Statutory Year-End Adjustments,,3Bm Ltd ,1232075,,,,11/02/2021,2200149274,800.00,,Creditors Control : AP GRIR,,,,,,No
The Royal Borough of Kensington and Chelsea,RBKC,,Capital,Capital,,3Bm Ltd ,1232075,,,,11/02/2021,2200149291,"4,378.00",,Payments to main contractor,,,,,,No
The Royal Borough of Kensington and Chelsea,RBKC,,Statutory and Corporate Items,Statutory Year-End Adjustments,,3Bm Ltd ,1232075,,,,12/02/2021,2200149673,"11,210.00",,Creditors Control : AP GRIR,,,,,,No
The Royal Borough of Kensington and Chelsea,RBKC,,Statutory and Corporate Items,Statutory Year-End Adjustments,,3Bm Ltd ,1232075,,,,12/02/2021,2200149673,"1,121.00",,Creditors Control : AP GRIR,,,,,,No
The Royal Borough of Kensington and Chelsea,RBKC,,Statutory and Corporate Items,Statutory Year-End Adjustments,,3Bm Ltd ,1232075,,,,15/02/2021,2200149909,750.00,,Creditors Control : AP GRIR,,,,,,No
The Royal Borough of Kensington and Chelsea,RBKC,,Statutory and Corporate Items,Statutory Year-End Adjustments,,3Bm Ltd ,1232075,,,,17/02/2021,2200150603,500.00,,Creditors Control : AP GRIR,,,,,,No
The Royal Borough of Kensington and Chelsea,RBKC,,Statutory and Corporate Items,Statutory Year-End Adjustments,,3Bm Ltd ,1232075,,,,17/02/2021,2200150604,"28,424.00",,Creditors Control : AP GRIR,,,,,,No
The Royal Borough of Kensington and Chelsea,RBKC,,Statutory and Corporate Items,Statutory Year-End Adjustments,,3Bm Ltd ,1232075,,,,17/02/2021,2200150604,"2,842.40",,Creditors Control : AP GRIR,,,,,,No
The Royal Borough of Kensington and Chelsea,RBKC,,Statutory and Corporate Items,Statutory Year-End Adjustments,,3Bm Ltd ,1232075,,,,17/02/2021,2200150605,550.00,,Creditors Control : AP GRIR,,,,,,No
The Royal Borough of Kensington and Chelsea,RBKC,,Statutory and Corporate Items,Statutory Year-End Adjustments,,3Bm Ltd ,1232075,,,,17/02/2021,2200150605,"5,500.00",,Creditors Control : AP GRIR,,,,,,No
The Royal Borough of Kensington and Chelsea,RBKC,,Statutory and Corporate Items,Statutory Year-End Adjustments,,3Bm Ltd ,1232075,,,,03/03/2021,2200153532,625.00,,Creditors Control : AP GRIR,,,,,,No
The Royal Borough of Kensington and Chelsea,RBKC,,Capital,Capital,,3Bm Ltd ,1232075,,,,05/03/2021,2200154216,"1,100.00",,Payments to main contractor,,,,,,No
The Royal Borough of Kensington and Chelsea,RBKC,,Capital,Capital,,3Bm Ltd ,1232075,,,,05/03/2021,2200154220,"175,444.50",,Payments to main contractor,,,,,,No
The Royal Borough of Kensington and Chelsea,RBKC,,Statutory and Corporate Items,Statutory Year-End Adjustments,,3Bm Ltd ,1232075,,,,11/03/2021,2200155691,"1,950.00",,Creditors Control : AP GRIR,,,,,,No
The Royal Borough of Kensington and Chelsea,RBKC,,Statutory and Corporate Items,Statutory Year-End Adjustments,,3Bm Ltd ,1232075,,,,18/03/2021,2200157184,"2,100.00",,Creditors Control : AP GRIR,,,,,,No
The Royal Borough of Kensington and Chelsea,RBKC,,Statutory and Corporate Items,Statutory Year-End Adjustments,,3Bm Ltd ,1232075,,,,18/03/2021,2200157185,604.00,,Creditors Control : AP GRIR,,,,,,No
The Royal Borough of Kensington and Chelsea,RBKC,,Statutory and Corporate Items,Statutory Year-End Adjustments,,A N Contract Service Ltd ,1232095,,,,12/01/2021,2200142768,"7,682.50",,Creditors Control : AP GRIR,,,,,,No
The Royal Borough of Kensington and Chelsea,RBKC,,Statutory and Corporate Items,Statutory Year-End Adjustments,,A N Contract Service Ltd ,1232095,,,,12/01/2021,2200142769,"4,702.50",,Creditors Control : AP GRIR,,,,,,No
The Royal Borough of Kensington and Chelsea,RBKC,,Capital,Capital,,A N Contract Service Ltd ,1232095,,,,12/01/2021,2200142873,"5,142.00",,Planned Maintenance (CM),,,,,,No
The Royal Borough of Kensington and Chelsea,RBKC,,Capital,Capital,,A N Contract Service Ltd ,1232095,,,,12/01/2021,2200142874,"7,100.00",,Planned Maintenance (CM),,,,,,No
The Royal Borough of Kensington and Chelsea,RBKC,,Capital,Capital,,A N Contract Service Ltd ,1232095,,,,12/01/2021,2200142875,"15,750.00",,Planned Maintenance (CM),,,,,,No
The Royal Borough of Kensington and Chelsea,RBKC,,Capital,Capital,,A N Contract Service Ltd ,1232095,,,,12/01/2021,2200142876,"21,000.00",,Planned Maintenance (CM),,,,,,No
The Royal Borough of Kensington and Chelsea,RBKC,,Capital,Capital,,A N Contract Service Ltd ,1232095,,,,25/01/2021,2200145387,"2,500.00",,Planned Maintenance (CM),,,,,,No
The Royal Borough of Kensington and Chelsea,RBKC,,Capital,Capital,,A N Contract Service Ltd ,1232095,,,,25/01/2021,2200145388,"7,408.00",,Planned Maintenance (CM),,,,,,No
The Royal Borough of Kensington and Chelsea,RBKC,,Capital,Capital,,A N Contract Service Ltd ,1232095,,,,25/01/2021,2200145389,"6,000.00",,Planned Maintenance (CM),,,,,,No
The Royal Borough of Kensington and Chelsea,RBKC,,Capital,Capital,,A N Contract Service Ltd ,1232095,,,,25/01/2021,2200145390,"3,696.00",,Planned Maintenance (CM),,,,,,No
The Royal Borough of Kensington and Chelsea,RBKC,,Capital,Capital,,A N Contract Service Ltd ,1232095,,,,25/01/2021,2200145391,944.00,,Planned Maintenance (CM),,,,,,No
The Royal Borough of Kensington and Chelsea,RBKC,,Capital,Capital,,A N Contract Service Ltd ,1232095,,,,09/02/2021,2200148774,"21,088.00",,Planned Maintenance (CM),,,,,,No
The Royal Borough of Kensington and Chelsea,RBKC,,Capital,Capital,,A N Contract Service Ltd ,1232095,,,,09/02/2021,2200148775,"6,056.00",,Planned Maintenance (CM),,,,,,No
The Royal Borough of Kensington and Chelsea,RBKC,,Capital,Capital,,A N Contract Service Ltd ,1232095,,,,09/02/2021,2200148776,"4,014.00",,Planned Maintenance (CM),,,,,,No
The Royal Borough of Kensington and Chelsea,RBKC,,Capital,Capital,,A N Contract Service Ltd ,1232095,,,,09/02/2021,2200148777,796.00,,Planned Maintenance (CM),,,,,,No
The Royal Borough of Kensington and Chelsea,RBKC,,Capital,Capital,,A N Contract Service Ltd ,1232095,,,,09/02/2021,2200148778,"3,696.00",,Planned Maintenance (CM),,,,,,No
The Royal Borough of Kensington and Chelsea,RBKC,,Capital,Capital,,A N Contract Service Ltd ,1232095,,,,09/02/2021,2200148779,"3,728.00",,Planned Maintenance (CM),,,,,,No
The Royal Borough of Kensington and Chelsea,RBKC,,Capital,Capital,,A N Contract Service Ltd ,1232095,,,,08/03/2021,2200154661,"24,562.50",,Planned Maintenance (CM),,,,,,No
The Royal Borough of Kensington and Chelsea,RBKC,,Capital,Capital,,A N Contract Service Ltd ,1232095,,,,08/03/2021,2200154662,"14,737.50",,Planned Maintenance (CM),,,,,,No
The Royal Borough of Kensington and Chelsea,RBKC,,Capital,Capital,,A N Contract Service Ltd ,1232095,,,,08/03/2021,2200154663,"9,500.00",,Planned Maintenance (CM),,,,,,No
The Royal Borough of Kensington and Chelsea,RBKC,,Statutory and Corporate Items,Statutory Year-End Adjustments,,A N Contract Service Ltd ,1232095,,,,11/03/2021,2200155859,"14,456.50",,Creditors Control : AP GRIR,,,,,,No
The Royal Borough of Kensington and Chelsea,RBKC,,Statutory and Corporate Items,Statutory Year-End Adjustments,,A N Contract Service Ltd ,1232095,,,,12/03/2021,2200156024,"26,565.75",,Creditors Control : AP GRIR,,,,,,No
The Royal Borough of Kensington and Chelsea,RBKC,,Statutory and Corporate Items,Statutory Year-End Adjustments,,A N Contract Service Ltd ,1232095,,,,12/03/2021,2200156025,"9,113.50",,Creditors Control : AP GRIR,,,,,,No
The Royal Borough of Kensington and Chelsea,RBKC,,Statutory and Corporate Items,Statutory Year-End Adjustments,,A N Contract Service Ltd ,1232095,,,,12/03/2021,2200156026,"9,316.50",,Creditors Control : AP GRIR,,,,,,No
The Royal Borough of Kensington and Chelsea,RBKC,,Capital,Capital,,A N Contract Service Ltd ,1232095,,,,18/03/2021,2200157146,"12,100.00",,Planned Maintenance (CM),,,,,,No
The Royal Borough of Kensington and Chelsea,RBKC,,Capital,Capital,,A N Contract Service Ltd ,1232095,,,,18/03/2021,2200157148,"12,915.00",,Planned Maintenance (CM),,,,,,No
The Royal Borough of Kensington and Chelsea,RBKC,,Capital,Capital,,A N Contract Service Ltd ,1232095,,,,18/03/2021,2200157149,"4,850.00",,Planned Maintenance (CM),,,,,,No
The Royal Borough of Kensington and Chelsea,RBKC,,Capital,Capital,,A N Contract Service Ltd ,1232095,,,,18/03/2021,2200157151,"1,855.00",,Planned Maintenance (CM),,,,,,No
The Royal Borough of Kensington and Chelsea,RBKC,,Capital,Capital,,A N Contract Service Ltd ,1232095,,,,18/03/2021,2200157152,"19,500.00",,Planned Maintenance (CM),,,,,,No
The Royal Borough of Kensington and Chelsea,RBKC,,Capital,Capital,,A N Contract Service Ltd ,1232095,,,,18/03/2021,2200157153,"6,700.00",,Planned Maintenance (CM),,,,,,No
The Royal Borough of Kensington and Chelsea,RBKC,,Capital,Capital,,A N Contract Service Ltd ,1232095,,,,18/03/2021,2200157154,"17,500.00",,Planned Maintenance (CM),,,,,,No
The Royal Borough of Kensington and Chelsea,RBKC,,Statutory and Corporate Items,Statutory Year-End Adjustments,,A N Contract Service Ltd ,1232095,,,,23/03/2021,2200158349,"6,843.00",,Creditors Control : AP GRIR,,,,,,No
The Royal Borough of Kensington and Chelsea,RBKC,,Statutory and Corporate Items,Statutory Year-End Adjustments,,A N Contract Service Ltd ,1232095,,,,23/03/2021,2200158352,"7,420.50",,Creditors Control : AP GRIR,,,,,,No
The Royal Borough of Kensington and Chelsea,RBKC,,Statutory and Corporate Items,Statutory Year-End Adjustments,,A N Contract Service Ltd ,1232095,,,,23/03/2021,2200158363,"13,040.00",,Creditors Control : AP GRIR,,,,,,No
The Royal Borough of Kensington and Chelsea,RBKC,,Statutory and Corporate Items,Statutory Year-End Adjustments,,A N Contract Service Ltd ,1232095,,,,23/03/2021,2200158373,"17,403.52",,Creditors Control : AP GRIR,,,,,,No
The Royal Borough of Kensington and Chelsea,RBKC,,Capital,Capital,,A N Contract Service Ltd ,1232095,,,,30/03/2021,2200160386,"3,198.00",,Planned Maintenance (CM),,,,,,No
The Royal Borough of Kensington and Chelsea,RBKC,,Capital,Capital,,A N Contract Service Ltd ,1232095,,,,30/03/2021,2200160387,"6,500.00",,Planned Maintenance (CM),,,,,,No
The Royal Borough of Kensington and Chelsea,RBKC,,Capital,Capital,,A N Contract Service Ltd ,1232095,,,,31/03/2021,2200160561,"4,511.00",,Planned Maintenance (CM),,,,,,No
The Royal Borough of Kensington and Chelsea,RBKC,,Capital,Capital,,A N Contract Service Ltd ,1232095,,,,31/03/2021,2200160576,"32,940.00",,Planned Maintenance (CM),,,,,,No
The Royal Borough of Kensington and Chelsea,RBKC,,Capital,Capital,,A N Contract Service Ltd ,1232095,,,,31/03/2021,2200160608,"3,419.00",,Planned Maintenance (CM),,,,,,No
The Royal Borough of Kensington and Chelsea,RBKC,,Statutory and Corporate Items,Statutory Year-End Adjustments,,A N Contract Service Ltd ,1232095,,,,01/04/2021,2200163126,"1,500.00",,Creditors Control : AP GRIR,,,,,,No
The Royal Borough of Kensington and Chelsea,RBKC,,Statutory and Corporate Items,Statutory Year-End Adjustments,,ABCA Systems LTD ,1252858,,,,26/02/2021,2200152520,"71,087.77",,Creditors Control : AP GRIR,,,,,,No
The Royal Borough of Kensington and Chelsea,RBKC,,Capital,Capital,,ACS PROFESSIONALS IN CONSTRUCTION L,1277658,,,,17/03/2021,2200156895,"236,550.00",,Payments to main contractor,,,,,,No
The Royal Borough of Kensington and Chelsea,RBKC,,Capital,Capital,,ACS PROFESSIONALS IN CONSTRUCTION L,1277658,,,,17/03/2021,2200156896,"209,000.00",,Payments to main contractor,,,,,,No
The Royal Borough of Kensington and Chelsea,RBKC,,Capital,Capital,,AJ Mobility Ltd,1258634,,,,26/03/2021,2200159266,"1,020.00",,Payments to main contractor,,,,,,No
The Royal Borough of Kensington and Chelsea,RBKC,,Capital,Capital,,Ans Group Ltd,1265384,,,,27/01/2021,2200145948,"7,500.00",,Computer Software,,,,,,No
The Royal Borough of Kensington and Chelsea,RBKC,,Capital,Capital,,Ans Group Ltd,1265384,,,,27/01/2021,2200145949,"7,500.00",,Computer Software,,,,,,No
The Royal Borough of Kensington and Chelsea,RBKC,,Capital,Capital,,Ans Group Ltd,1265384,,,,19/02/2021,2200151147,"47,712.50",,Computer Software,,,,,,No
The Royal Borough of Kensington and Chelsea,RBKC,,Capital,Capital,,Ans Group Ltd,1265384,,,,26/02/2021,2200152563,"7,500.00",,Computer Software,,,,,,No
The Royal Borough of Kensington and Chelsea,RBKC,,Capital,Capital,,Ans Group Ltd,1265384,,,,24/03/2021,2200158490,"22,200.00",,Computer Software,,,,,,No
The Royal Borough of Kensington and Chelsea,RBKC,,Capital,Capital,,Ans Group Ltd,1265384,,,,31/03/2021,2200160658,"7,500.00",,Computer Software,,,,,,No
The Royal Borough of Kensington and Chelsea,RBKC,,Capital,Capital,,Abbey Builders Ltd ,1232102,,,,26/01/2021,2200145753,"6,461.83",,Payments to main contractor,,,,,,No
The Royal Borough of Kensington and Chelsea,RBKC,,Capital,Capital,,Abbey Builders Ltd ,1232102,,,,26/01/2021,2200145754,"6,967.17",,Payments to main contractor,,,,,,No
The Royal Borough of Kensington and Chelsea,RBKC,,Capital,Capital,,Abbey Builders Ltd ,1232102,,,,05/02/2021,2200148161,"9,082.41",,Payments to main contractor,,,,,,No
The Royal Borough of Kensington and Chelsea,RBKC,,Capital,Capital,,Abc Building & Maintenance Contractors,1231156,,,,05/02/2021,2200148163,"5,892.00",,Payments to main contractor,,,,,,No
The Royal Borough of Kensington and Chelsea,RBKC,,Capital,Capital,,Academy Consulting Solutions Ltd ,1232117,,,,07/01/2021,2200141843,"5,000.00",,Other Consultants,,,,,,No
The Royal Borough of Kensington and Chelsea,RBKC,,Capital,Capital,,Academy Consulting Solutions Ltd ,1232117,,,,09/02/2021,2200148727,"2,000.00",,Other Consultants,,,,,,No
The Royal Borough of Kensington and Chelsea,RBKC,,Capital,Capital,,Academy Consulting Solutions Ltd ,1232117,,,,09/02/2021,2200148770,500.00,,Payments to main contractor,,,,,,No
The Royal Borough of Kensington and Chelsea,RBKC,,Capital,Capital,,Academy Consulting Solutions Ltd ,1232117,,,,15/03/2021,2200156293,"2,000.00",,Other Consultants,,,,,,No
The Royal Borough of Kensington and Chelsea,RBKC,,Capital,Capital,,Academy Consulting Solutions Ltd ,1232117,,,,19/03/2021,2200157481,"6,000.00",,Payments to main contractor,,,,,,No
The Royal Borough of Kensington and Chelsea,RBKC,,Capital,Capital,,Academy Consulting Solutions Ltd ,1232117,,,,06/04/2021,2200161595,"2,000.00",,Other Consultants,,,,,,No
The Royal Borough of Kensington and Chelsea,RBKC,,Capital,Capital,,Academy Consulting Solutions Ltd ,1232117,,,,09/04/2021,2200162589,"6,000.00",,Payments to main contractor,,,,,,No
The Royal Borough of Kensington and Chelsea,RBKC,,Capital,Capital,,Adam Architecture Ltd ,1232322,,,,11/01/2021,2200142504,"3,960.00",,Construction : enhancements,,,,,,No
The Royal Borough of Kensington and Chelsea,RBKC,,Capital,Capital,,Adam Architecture Ltd ,1232322,,,,09/03/2021,2200154944,"3,960.00",,Construction : enhancements,,,,,,No
The Royal Borough of Kensington and Chelsea,RBKC,,Capital,Capital,,Adaptations MW Ltd,1272466,,,,22/02/2021,2200151507,"6,054.00",,Payments to main contractor,,,,,,No
The Royal Borough of Kensington and Chelsea,RBKC,,Capital,Capital,,Adaptations MW Ltd,1272466,,,,23/03/2021,2200158293,"10,336.00",,Payments to main contractor,,,,,,No
The Royal Borough of Kensington and Chelsea,RBKC,,Capital,Capital,,Redact Details,1273174,,,,18/01/2021,2200143800,"1,750.00",,Payments to sub contractor,,,,,,No
The Royal Borough of Kensington and Chelsea,RBKC,,Statutory and Corporate Items,Statutory Year-End Adjustments,,Redact Details,1273174,,,,17/03/2021,2200156912,"1,500.00",,Creditors Control : AP GRIR,,,,,,No
The Royal Borough of Kensington and Chelsea,RBKC,,Statutory and Corporate Items,Statutory Year-End Adjustments,,Alan Baxter & Associates Llp ,1232352,,,,17/03/2021,2200156938,"16,500.00",,Creditors Control : AP GRIR,,,,,,No
The Royal Borough of Kensington and Chelsea,RBKC,,Capital,Capital,,Alasdair Cameron Ltd,1232356,,,,01/02/2021,2200146865,"8,131.69",,Arboriculture/landscaping,,,,,,No
The Royal Borough of Kensington and Chelsea,RBKC,,Capital,Capital,,Alasdair Cameron Ltd,1232356,,,,04/02/2021,2200147784,947.51,,Arboriculture/landscaping,,,,,,No
The Royal Borough of Kensington and Chelsea,RBKC,,Capital,Capital,,Alasdair Cameron Ltd,1232356,,,,26/02/2021,2200152539,"3,701.16",,Arboriculture/landscaping,,,,,,No
The Royal Borough of Kensington and Chelsea,RBKC,,Capital,Capital,,Alexander Scaffold Ltd ,1231166,,,,27/01/2021,2200145923,880.00,,Payments to main contractor,,,,,,No
The Royal Borough of Kensington and Chelsea,RBKC,,Capital,Capital,,All Saints Catholic College ,1236054,,,,24/02/2021,3110275413,"41,577.03",,Computer Equipment,,,,,,No
The Royal Borough of Kensington and Chelsea,RBKC,,Capital,Capital,,All Saints Catholic College ,1236054,,,,11/03/2021,3110283297,"15,699.42",,Computer Equipment,,,,,,No
The Royal Borough of Kensington and Chelsea,RBKC,,Capital,Capital,,Allies & Morrison LLP ,1232371,,,,09/03/2021,2200154962,"22,617.00",,Construction : enhancements,,,,,,No
The Royal Borough of Kensington and Chelsea,RBKC,,Capital,Capital,,Amwell Construction Ltd ,1231169,,,,09/03/2021,2200155001,"6,005.00",,Payments to main contractor,,,,,,No
The Royal Borough of Kensington and Chelsea,RBKC,,Capital,Capital,,Amwell Construction Ltd ,1231169,,,,12/03/2021,2200155975,"6,262.00",,Payments to main contractor,,,,,,No
The Royal Borough of Kensington and Chelsea,RBKC,,Capital,Capital,,Amwell Construction Ltd ,1231169,,,,23/03/2021,2200158337,"5,552.00",,Payments to main contractor,,,,,,No
The Royal Borough of Kensington and Chelsea,RBKC,,Capital,Capital,,Redact Details,1266160,,,,02/02/2021,2200147098,500.00,,Other Consultants,,,,,,No
The Royal Borough of Kensington and Chelsea,RBKC,,Capital,Capital,,Aqua Environemntal Services Ltd,1261585,,,,05/01/2021,2200141423,"2,268.00",,Site Works,,,,,,No
The Royal Borough of Kensington and Chelsea,RBKC,,Statutory and Corporate Items,Statutory Year-End Adjustments,,Aqua Environemntal Services Ltd,1261585,,,,01/04/2021,2200161403,"2,106.00",,Creditors Control : AP GRIR,,,,,,No
The Royal Borough of Kensington and Chelsea,RBKC,,Capital,Capital,,Aquaneed Ltd,1260944,,,,07/01/2021,2200141838,"6,789.66",,Payments to main contractor,,,,,,No
The Royal Borough of Kensington and Chelsea,RBKC,,Capital,Capital,,Aquaneed Ltd,1260944,,,,09/02/2021,2200148943,"13,796.51",,Payments to main contractor,,,,,,No
The Royal Borough of Kensington and Chelsea,RBKC,,Capital,Capital,,Aquaneed Ltd,1260944,,,,09/02/2021,2200148944,"6,911.03",,Payments to main contractor,,,,,,No
The Royal Borough of Kensington and Chelsea,RBKC,,Capital,Capital,,Aquaneed Ltd,1260944,,,,09/02/2021,2200148946,"7,087.14",,Payments to main contractor,,,,,,No
The Royal Borough of Kensington and Chelsea,RBKC,,Capital,Capital,,Aquaneed Ltd,1260944,,,,26/02/2021,2200152577,"1,417.92",,Payments to main contractor,,,,,,No
The Royal Borough of Kensington and Chelsea,RBKC,,Capital,Capital,,Aquaneed Ltd,1260944,,,,12/03/2021,2200156011,"8,615.55",,Payments to main contractor,,,,,,No
The Royal Borough of Kensington and Chelsea,RBKC,,Capital,Capital,,Aquaneed Ltd,1260944,,,,18/03/2021,2200157371,"6,243.15",,Payments to main contractor,,,,,,No
The Royal Borough of Kensington and Chelsea,RBKC,,Capital,Capital,,Aquaneed Ltd,1260944,,,,23/03/2021,2200158338,"7,889.34",,Payments to main contractor,,,,,,No
The Royal Borough of Kensington and Chelsea,RBKC,,Capital,Capital,,Aquaneed Ltd,1260944,,,,01/04/2021,2200161659,"1,043.57",,Payments to main contractor,,,,,,No
The Royal Borough of Kensington and Chelsea,RBKC,,Capital,Capital,,Aquaneed Ltd,1260944,,,,01/04/2021,2200162807,"6,544.85",,Payments to main contractor,,,,,,No
The Royal Borough of Kensington and Chelsea,RBKC,,Capital,Capital,,Aquaneed Ltd,1260944,,,,06/04/2021,2200161654,"6,537.88",,Payments to main contractor,,,,,,No
The Royal Borough of Kensington and Chelsea,RBKC,,Capital,Capital,,Aquaneed Ltd,1260944,,,,06/04/2021,2200161658,"6,377.05",,Payments to main contractor,,,,,,No
The Royal Borough of Kensington and Chelsea,RBKC,,Capital,Capital,,Arcadis Llp ,1232430,,,,02/02/2021,2200147060,"6,900.00",,Site Works,,,,,,No
The Royal Borough of Kensington and Chelsea,RBKC,,Capital,Capital,,Arcadis Llp ,1232430,,,,18/02/2021,2200150935,"3,363.00",,Construction : enhancements,,,,,,No
The Royal Borough of Kensington and Chelsea,RBKC,,Capital,Capital,,Arcadis Llp ,1232430,,,,23/02/2021,2200151631,"5,000.00",,Payments to main contractor,,,,,,No
The Royal Borough of Kensington and Chelsea,RBKC,,Capital,Capital,,Arcadis Llp ,1232430,,,,23/02/2021,2200151632,"5,000.00",,Payments to main contractor,,,,,,No
The Royal Borough of Kensington and Chelsea,RBKC,,Capital,Capital,,Arcadis Llp ,1232430,,,,23/02/2021,2200151633,"5,000.00",,Payments to main contractor,,,,,,No
The Royal Borough of Kensington and Chelsea,RBKC,,Capital,Capital,,Arcadis Llp ,1232430,,,,23/02/2021,2200151634,"5,000.00",,Payments to main contractor,,,,,,No
The Royal Borough of Kensington and Chelsea,RBKC,,Capital,Capital,,Arcadis Llp ,1232430,,,,08/03/2021,2200154745,"3,363.00",,Construction : enhancements,,,,,,No
The Royal Borough of Kensington and Chelsea,RBKC,,Capital,Capital,,Arcadis Llp ,1232430,,,,16/03/2021,2200156650,"10,000.00",,Professional Fees : Non Legal,,,,,,No
The Royal Borough of Kensington and Chelsea,RBKC,,Capital,Capital,,Arcadis Llp ,1232430,,,,01/04/2021,2200161624,"5,000.00",,Professional Fees : Non Legal,,,,,,No
The Royal Borough of Kensington and Chelsea,RBKC,,Capital,Capital,,Architecture PLB ,1232434,,,,18/01/2021,2200143920,"3,112.50",,Construction : enhancements,,,,,,No
The Royal Borough of Kensington and Chelsea,RBKC,,Capital,Capital,,Architecture PLB ,1232434,,,,11/03/2021,2200155690,"3,112.50",,Construction : enhancements,,,,,,No
The Royal Borough of Kensington and Chelsea,RBKC,,Capital,Capital,,Arcus Consulting Llp,1265536,,,,08/02/2021,2200148406,"8,043.75",,Site Works,,,,,,No
The Royal Borough of Kensington and Chelsea,RBKC,,Capital,Capital,,Arcus Consulting Llp,1265536,,,,08/02/2021,2200148408,"7,648.50",,Site Works,,,,,,No
The Royal Borough of Kensington and Chelsea,RBKC,,Capital,Capital,,Arcus Consulting Llp,1265536,,,,08/02/2021,2200148554,"12,750.00",,Payments to main contractor,,,,,,No
The Royal Borough of Kensington and Chelsea,RBKC,,Capital,Capital,,Arcus Consulting Llp,1265536,,,,01/04/2021,2200160966,"2,887.50",,Payments to main contractor,,,,,,No
The Royal Borough of Kensington and Chelsea,RBKC,,Capital,Capital,,Arcus Consulting Llp,1265536,,,,01/04/2021,2200160967,"2,887.50",,Payments to main contractor,,,,,,No
The Royal Borough of Kensington and Chelsea,RBKC,,Capital,Capital,,Arcus Consulting Llp,1265536,,,,01/04/2021,2200160968,"2,681.25",,Site Works,,,,,,No
The Royal Borough of Kensington and Chelsea,RBKC,,Capital,Capital,,Arcus Consulting Llp,1265536,,,,01/04/2021,2200160969,"2,549.50",,Site Works,,,,,,No
The Royal Borough of Kensington and Chelsea,RBKC,,Capital,Capital,,Arcus Consulting Llp,1265536,,,,09/04/2021,2200162590,"4,250.00",,Payments to main contractor,,,,,,No
The Royal Borough of Kensington and Chelsea,RBKC,,Capital,Capital,,Arcus Consulting Llp,1265536,,,,09/04/2021,2200162591,"2,887.50",,Payments to main contractor,,,,,,No
The Royal Borough of Kensington and Chelsea,RBKC,,Capital,Capital,,Ark Build Plc ,1231173,,,,05/01/2021,2200141394,"121,321.26",,Site Works,,,,,,No
The Royal Borough of Kensington and Chelsea,RBKC,,Capital,Capital,,Ark Build Plc ,1231173,,,,12/02/2021,2200149649,"143,250.55",,Payments to main contractor,,,,,,No
The Royal Borough of Kensington and Chelsea,RBKC,,Capital,Capital,,Ark Build Plc ,1231173,,,,04/03/2021,2200153844,"91,686.67",,Construction : enhancements,,,,,,No
The Royal Borough of Kensington and Chelsea,RBKC,,Capital,Capital,,Ark Build Plc ,1231173,,,,25/03/2021,2200158846,"177,915.76",,Payments to main contractor,,,,,,No
The Royal Borough of Kensington and Chelsea,RBKC,,Statutory and Corporate Items,Statutory Year-End Adjustments,,Ark Build Plc ,1231173,,,,29/03/2021,2200159619,"10,999.00",,Creditors Control : AP GRIR,,,,,,No
The Royal Borough of Kensington and Chelsea,RBKC,,Capital,Capital,,Ark Build Plc ,1231173,,,,12/04/2021,2200163093,"117,868.60",,Payments to main contractor,,,,,,No
The Royal Borough of Kensington and Chelsea,RBKC,,Capital,Capital,,Armour Brothers Locksmiths Ltd,1232442,,,,26/03/2021,2200159279,"2,333.00",,Payments to main contractor,,,,,,No
The Royal Borough of Kensington and Chelsea,RBKC,,Capital,Capital,,Ashfords Llp ,1232627,,,,05/01/2021,2200141366,640.00,,Legal Fees & expenses,,,,,,No
The Royal Borough of Kensington and Chelsea,RBKC,,Capital,Capital,,Ashfords Llp ,1232627,,,,05/01/2021,2200141386,"1,648.00",,Payments to main contractor,,,,,,No
The Royal Borough of Kensington and Chelsea,RBKC,,Capital,Capital,,Ashfords Llp ,1232627,,,,03/02/2021,2200147411,"1,750.00",,Professional Fees : Non Legal,,,,,,No
The Royal Borough of Kensington and Chelsea,RBKC,,Capital,Capital,,Ashfords Llp ,1232627,,,,03/02/2021,2200147412,"6,586.00",,Professional Fees : Non Legal,,,,,,No
The Royal Borough of Kensington and Chelsea,RBKC,,Capital,Capital,,Ashfords Llp ,1232627,,,,01/04/2021,2200160939,802.80,,Payments to main contractor,,,,,,No
The Royal Borough of Kensington and Chelsea,RBKC,,Capital,Capital,,Avondale Park Primary School ,1236060,,,,29/03/2021,3110290090,"12,056.00",,Computer Equipment,,,,,,No
The Royal Borough of Kensington and Chelsea,RBKC,,Capital,Capital,,BB7 FIRE LIMITED,1258576,,,,17/02/2021,2200150544,"7,500.00",,Planned Maintenance (CM),,,,,,No
The Royal Borough of Kensington and Chelsea,RBKC,,Capital,Capital,,BT Global Services ,1233001,,,,06/01/2021,2200141683,"10,331.40",,Other capital equipment,,,,,,No
The Royal Borough of Kensington and Chelsea,RBKC,,Statutory and Corporate Items,Statutory Year-End Adjustments,,BT Global Services ,1233001,,,,01/02/2021,2200146687,"2,100.00",,Creditors Control : AP GRIR,,,,,,No
The Royal Borough of Kensington and Chelsea,RBKC,,Statutory and Corporate Items,Statutory Year-End Adjustments,,BT Global Services ,1233001,,,,01/02/2021,2200146687,610.00,,Creditors Control : AP GRIR,,,,,,No
The Royal Borough of Kensington and Chelsea,RBKC,,Statutory and Corporate Items,Statutory Year-End Adjustments,,BT Global Services ,1233001,,,,24/02/2021,2200151979,575.00,,Creditors Control : AP GRIR,,,,,,No
The Royal Borough of Kensington and Chelsea,RBKC,,Statutory and Corporate Items,Statutory Year-End Adjustments,,BT Global Services ,1233001,,,,01/03/2021,2200152755,"2,815.64",,Creditors Control : AP GRIR,,,,,,No
The Royal Borough of Kensington and Chelsea,RBKC,,Statutory and Corporate Items,Statutory Year-End Adjustments,,BT Global Services ,1233001,,,,02/03/2021,2200153151,"6,748.21",,Creditors Control : AP GRIR,,,,,,No
The Royal Borough of Kensington and Chelsea,RBKC,,Statutory and Corporate Items,Statutory Year-End Adjustments,,BT Global Services ,1233001,,,,05/03/2021,2200154227,"3,342.00",,Creditors Control : AP GRIR,,,,,,No
The Royal Borough of Kensington and Chelsea,RBKC,,Statutory and Corporate Items,Statutory Year-End Adjustments,,BT Global Services ,1233001,,,,05/03/2021,2200154227,"1,348.50",,Creditors Control : AP GRIR,,,,,,No
The Royal Borough of Kensington and Chelsea,RBKC,,Statutory and Corporate Items,Statutory Year-End Adjustments,,BT Global Services ,1233001,,,,05/03/2021,2200154227,"2,864.50",,Creditors Control : AP GRIR,,,,,,No
The Royal Borough of Kensington and Chelsea,RBKC,,Statutory and Corporate Items,Statutory Year-End Adjustments,,BT Global Services ,1233001,,,,05/03/2021,2200154227,"46,260.50",,Creditors Control : AP GRIR,,,,,,No
The Royal Borough of Kensington and Chelsea,RBKC,,Statutory and Corporate Items,Statutory Year-End Adjustments,,BT Global Services ,1233001,,,,05/03/2021,2200154227,"3,581.00",,Creditors Control : AP GRIR,,,,,,No
The Royal Borough of Kensington and Chelsea,RBKC,,Capital,Capital,,BT Global Services ,1233001,,,,05/03/2021,2200154283,575.00,,Other capital equipment,,,,,,No
The Royal Borough of Kensington and Chelsea,RBKC,,Statutory and Corporate Items,Statutory Year-End Adjustments,,BT Global Services ,1233001,,,,05/03/2021,2200154285,"46,260.50",,Creditors Control : AP GRIR,,,,,,No
The Royal Borough of Kensington and Chelsea,RBKC,,Statutory and Corporate Items,Statutory Year-End Adjustments,,BT Global Services ,1233001,,,,05/03/2021,2200154285,"3,342.00",,Creditors Control : AP GRIR,,,,,,No
The Royal Borough of Kensington and Chelsea,RBKC,,Statutory and Corporate Items,Statutory Year-End Adjustments,,BT Global Services ,1233001,,,,05/03/2021,2200154285,"3,581.00",,Creditors Control : AP GRIR,,,,,,No
The Royal Borough of Kensington and Chelsea,RBKC,,Statutory and Corporate Items,Statutory Year-End Adjustments,,BT Global Services ,1233001,,,,05/03/2021,2200154285,"2,864.50",,Creditors Control : AP GRIR,,,,,,No
The Royal Borough of Kensington and Chelsea,RBKC,,Statutory and Corporate Items,Statutory Year-End Adjustments,,BT Global Services ,1233001,,,,05/03/2021,2200154285,"1,348.50",,Creditors Control : AP GRIR,,,,,,No
The Royal Borough of Kensington and Chelsea,RBKC,,Statutory and Corporate Items,Statutory Year-End Adjustments,,BT Global Services ,1233001,,,,05/03/2021,2200154285,575.00,,Creditors Control : AP GRIR,,,,,,No
The Royal Borough of Kensington and Chelsea,RBKC,,Capital,Capital,,Baily Garner LLP ,1232685,,,,29/03/2021,2200159688,"18,445.47",,Professional Fees : Non Legal,,,,,,No
The Royal Borough of Kensington and Chelsea,RBKC,,Statutory and Corporate Items,Statutory Year-End Adjustments,,Barcham Trees Plc ,1232693,,,,25/02/2021,2200152266,"2,035.00",,Creditors Control : AP GRIR,,,,,,No
The Royal Borough of Kensington and Chelsea,RBKC,,Capital,Capital,,Barlby Primary School ,1236061,,,,11/03/2021,3110283291,"11,136.00",,Computer Equipment,,,,,,No
The Royal Borough of Kensington and Chelsea,RBKC,,Capital,Capital,,Bell Decorating & Building Ltd ,1232723,,,,06/01/2021,2200141654,"3,652.00",,Special Maintenance,,,,,,No
The Royal Borough of Kensington and Chelsea,RBKC,,Capital,Capital,,Bell Decorating & Building Ltd ,1232723,,,,07/01/2021,2200141841,522.00,,Payments to sub contractor,,,,,,No
The Royal Borough of Kensington and Chelsea,RBKC,,Capital,Capital,,Bell Decorating & Building Ltd ,1232723,,,,08/01/2021,2200142247,"6,432.00",,Construction : enhancements,,,,,,No
The Royal Borough of Kensington and Chelsea,RBKC,,Capital,Capital,,Bell Decorating & Building Ltd ,1232723,,,,08/01/2021,2200142249,940.00,,Construction : enhancements,,,,,,No
The Royal Borough of Kensington and Chelsea,RBKC,,Capital,Capital,,Bell Decorating & Building Ltd ,1232723,,,,08/01/2021,2200142250,879.00,,Construction : enhancements,,,,,,No
The Royal Borough of Kensington and Chelsea,RBKC,,Capital,Capital,,Bell Decorating & Building Ltd ,1232723,,,,08/01/2021,2200142251,"1,300.00",,Construction : enhancements,,,,,,No
The Royal Borough of Kensington and Chelsea,RBKC,,Capital,Capital,,Bell Decorating & Building Ltd ,1232723,,,,08/01/2021,2200142257,"2,200.00",,Construction : enhancements,,,,,,No
The Royal Borough of Kensington and Chelsea,RBKC,,Capital,Capital,,Bell Decorating & Building Ltd ,1232723,,,,08/01/2021,2200142262,"1,275.00",,Construction : enhancements,,,,,,No
The Royal Borough of Kensington and Chelsea,RBKC,,Capital,Capital,,Bell Decorating & Building Ltd ,1232723,,,,08/01/2021,2200142263,"2,700.00",,Construction : enhancements,,,,,,No
The Royal Borough of Kensington and Chelsea,RBKC,,Capital,Capital,,Bell Decorating & Building Ltd ,1232723,,,,08/01/2021,2200142264,"3,823.00",,Construction : enhancements,,,,,,No
The Royal Borough of Kensington and Chelsea,RBKC,,Capital,Capital,,Bell Decorating & Building Ltd ,1232723,,,,08/01/2021,2200142265,"7,665.00",,Construction : enhancements,,,,,,No
The Royal Borough of Kensington and Chelsea,RBKC,,Capital,Capital,,Bell Decorating & Building Ltd ,1232723,,,,26/01/2021,2200145657,"4,622.00",,Construction : enhancements,,,,,,No
The Royal Borough of Kensington and Chelsea,RBKC,,Capital,Capital,,Bell Decorating & Building Ltd ,1232723,,,,26/01/2021,2200145658,"9,852.00",,Construction : enhancements,,,,,,No
The Royal Borough of Kensington and Chelsea,RBKC,,Capital,Capital,,Bell Decorating & Building Ltd ,1232723,,,,29/01/2021,2200146358,"2,375.00",,Construction : enhancements,,,,,,No
The Royal Borough of Kensington and Chelsea,RBKC,,Capital,Capital,,Bell Decorating & Building Ltd ,1232723,,,,02/02/2021,2200147086,"8,160.00",,Construction : enhancements,,,,,,No
The Royal Borough of Kensington and Chelsea,RBKC,,Capital,Capital,,Bell Decorating & Building Ltd ,1232723,,,,02/02/2021,2200147087,"4,404.40",,Construction : enhancements,,,,,,No
The Royal Borough of Kensington and Chelsea,RBKC,,Capital,Capital,,Bell Decorating & Building Ltd ,1232723,,,,01/04/2021,2200161197,"1,230.00",,Special Maintenance,,,,,,No
The Royal Borough of Kensington and Chelsea,RBKC,,Capital,Capital,,Bell Decorating & Building Ltd ,1232723,,,,01/04/2021,2200161474,"9,860.00",,Construction : enhancements,,,,,,No
The Royal Borough of Kensington and Chelsea,RBKC,,Capital,Capital,,Bell Decorating & Building Ltd ,1232723,,,,01/04/2021,2200161582,"3,965.00",,Construction : enhancements,,,,,,No
The Royal Borough of Kensington and Chelsea,RBKC,,Capital,Capital,,Bell Decorating & Building Ltd ,1232723,,,,01/04/2021,2200161585,"24,816.00",,Construction : enhancements,,,,,,No
The Royal Borough of Kensington and Chelsea,RBKC,,Capital,Capital,,Bell Decorating & Building Ltd ,1232723,,,,01/04/2021,2200162849,"1,475.44",,Construction : enhancements,,,,,,No
The Royal Borough of Kensington and Chelsea,RBKC,,Statutory and Corporate Items,Statutory Year-End Adjustments,,Bellrock Property & Facilities Man ,1255450,,,,04/01/2021,2200141034,"3,182.40",,Creditors Control : AP GRIR,,,,,,No
The Royal Borough of Kensington and Chelsea,RBKC,,Statutory and Corporate Items,Statutory Year-End Adjustments,,Bellrock Property & Facilities Man ,1255450,,,,04/01/2021,2200141081,"8,486.40",,Creditors Control : AP GRIR,,,,,,No
The Royal Borough of Kensington and Chelsea,RBKC,,Statutory and Corporate Items,Statutory Year-End Adjustments,,Bellrock Property & Facilities Man ,1255450,,,,04/01/2021,2200141082,"6,364.80",,Creditors Control : AP GRIR,,,,,,No
The Royal Borough of Kensington and Chelsea,RBKC,,Statutory and Corporate Items,Statutory Year-End Adjustments,,Bellrock Property & Facilities Man ,1255450,,,,04/01/2021,2200141085,"19,094.40",,Creditors Control : AP GRIR,,,,,,No
The Royal Borough of Kensington and Chelsea,RBKC,,Statutory and Corporate Items,Statutory Year-End Adjustments,,Bellrock Property & Facilities Man ,1255450,,,,04/01/2021,2200141086,"127,012.19",,Creditors Control : AP GRIR,,,,,,No
The Royal Borough of Kensington and Chelsea,RBKC,,Capital,Capital,,Bellrock Property & Facilities Man ,1255450,,,,03/02/2021,2200147427,"69,062.41",,Planned Maintenance (CM),,,,,,No
The Royal Borough of Kensington and Chelsea,RBKC,,Statutory and Corporate Items,Statutory Year-End Adjustments,,Bellrock Property & Facilities Man ,1255450,,,,04/02/2021,2200147914,"1,004.41",,Creditors Control : AP GRIR,,,,,,No
The Royal Borough of Kensington and Chelsea,RBKC,,Statutory and Corporate Items,Statutory Year-End Adjustments,,Bellrock Property & Facilities Man ,1255450,,,,10/02/2021,2200149090,"1,914.22",,Creditors Control : AP GRIR,,,,,,No
The Royal Borough of Kensington and Chelsea,RBKC,,Statutory and Corporate Items,Statutory Year-End Adjustments,,Bellrock Property & Facilities Man ,1255450,,,,12/02/2021,2200149600,976.97,,Creditors Control : AP GRIR,,,,,,No
The Royal Borough of Kensington and Chelsea,RBKC,,Statutory and Corporate Items,Statutory Year-End Adjustments,,Bellrock Property & Facilities Man ,1255450,,,,12/02/2021,2200149603,"3,112.73",,Creditors Control : AP GRIR,,,,,,No
The Royal Borough of Kensington and Chelsea,RBKC,,Statutory and Corporate Items,Statutory Year-End Adjustments,,Bellrock Property & Facilities Man ,1255450,,,,12/02/2021,2200149616,"5,817.87",,Creditors Control : AP GRIR,,,,,,No
The Royal Borough of Kensington and Chelsea,RBKC,,Statutory and Corporate Items,Statutory Year-End Adjustments,,Bellrock Property & Facilities Man ,1255450,,,,12/02/2021,2200149618,"1,505.18",,Creditors Control : AP GRIR,,,,,,No
The Royal Borough of Kensington and Chelsea,RBKC,,Capital,Capital,,Bellrock Property & Facilities Man ,1255450,,,,18/02/2021,2200150837,"6,364.80",,Planned Maintenance (CM),,,,,,No
The Royal Borough of Kensington and Chelsea,RBKC,,Statutory and Corporate Items,Statutory Year-End Adjustments,,Bellrock Property & Facilities Man ,1255450,,,,05/03/2021,2200154101,"7,964.00",,Creditors Control : AP GRIR,,,,,,No
The Royal Borough of Kensington and Chelsea,RBKC,,Statutory and Corporate Items,Statutory Year-End Adjustments,,Bellrock Property & Facilities Man ,1255450,,,,12/03/2021,2200155992,"40,440.40",,Creditors Control : AP GRIR,,,,,,No
The Royal Borough of Kensington and Chelsea,RBKC,,Capital,Capital,,Bellrock Property & Facilities Man ,1255450,,,,16/03/2021,2200156506,"8,115.80",,Construction : enhancements,,,,,,No
The Royal Borough of Kensington and Chelsea,RBKC,,Capital,Capital,,Bellrock Property & Facilities Man ,1255450,,,,16/03/2021,2200156511,"48,246.00",,Planned Maintenance (CM),,,,,,No
The Royal Borough of Kensington and Chelsea,RBKC,,Capital,Capital,,Bellrock Property & Facilities Man ,1255450,,,,16/03/2021,2200156513,"47,793.90",,Planned Maintenance (CM),,,,,,No
The Royal Borough of Kensington and Chelsea,RBKC,,Capital,Capital,,Bellrock Property & Facilities Man ,1255450,,,,16/03/2021,2200156519,"117,694.50",,Planned Maintenance (CM),,,,,,No
The Royal Borough of Kensington and Chelsea,RBKC,,Capital,Capital,,Bellrock Property & Facilities Man ,1255450,,,,16/03/2021,2200156520,"60,368.00",,Planned Maintenance (CM),,,,,,No
The Royal Borough of Kensington and Chelsea,RBKC,,Capital,Capital,,Bellrock Property & Facilities Man ,1255450,,,,16/03/2021,2200156570,"134,816.00",,Planned Maintenance (CM),,,,,,No
The Royal Borough of Kensington and Chelsea,RBKC,,Statutory and Corporate Items,Statutory Year-End Adjustments,,Bellrock Property & Facilities Man ,1255450,,,,16/03/2021,2200156593,"7,140.00",,Creditors Control : AP GRIR,,,,,,No
The Royal Borough of Kensington and Chelsea,RBKC,,Statutory and Corporate Items,Statutory Year-End Adjustments,,Bellrock Property & Facilities Man ,1255450,,,,16/03/2021,2200156594,"14,149.30",,Creditors Control : AP GRIR,,,,,,No
The Royal Borough of Kensington and Chelsea,RBKC,,Statutory and Corporate Items,Statutory Year-End Adjustments,,Bellrock Property & Facilities Man ,1255450,,,,16/03/2021,2200156595,"14,756.00",,Creditors Control : AP GRIR,,,,,,No
The Royal Borough of Kensington and Chelsea,RBKC,,Statutory and Corporate Items,Statutory Year-End Adjustments,,Bellrock Property & Facilities Man ,1255450,,,,16/03/2021,2200156597,"35,766.50",,Creditors Control : AP GRIR,,,,,,No
The Royal Borough of Kensington and Chelsea,RBKC,,Statutory and Corporate Items,Statutory Year-End Adjustments,,Bellrock Property & Facilities Man ,1255450,,,,16/03/2021,2200156598,"1,796.17",,Creditors Control : AP GRIR,,,,,,No
The Royal Borough of Kensington and Chelsea,RBKC,,Statutory and Corporate Items,Statutory Year-End Adjustments,,Bellrock Property & Facilities Man ,1255450,,,,16/03/2021,2200156602,"2,558.16",,Creditors Control : AP GRIR,,,,,,No
The Royal Borough of Kensington and Chelsea,RBKC,,Statutory and Corporate Items,Statutory Year-End Adjustments,,Bellrock Property & Facilities Man ,1255450,,,,17/03/2021,2200156814,"9,877.58",,Creditors Control : AP GRIR,,,,,,No
The Royal Borough of Kensington and Chelsea,RBKC,,Statutory and Corporate Items,Statutory Year-End Adjustments,,Bellrock Property & Facilities Man ,1255450,,,,17/03/2021,2200156815,508.60,,Creditors Control : AP GRIR,,,,,,No
The Royal Borough of Kensington and Chelsea,RBKC,,Statutory and Corporate Items,Statutory Year-End Adjustments,,Bellrock Property & Facilities Man ,1255450,,,,17/03/2021,2200156821,"3,001.02",,Creditors Control : AP GRIR,,,,,,No
The Royal Borough of Kensington and Chelsea,RBKC,,Statutory and Corporate Items,Statutory Year-End Adjustments,,Bellrock Property & Facilities Man ,1255450,,,,17/03/2021,2200156822,"22,257.60",,Creditors Control : AP GRIR,,,,,,No
The Royal Borough of Kensington and Chelsea,RBKC,,Statutory and Corporate Items,Statutory Year-End Adjustments,,Bellrock Property & Facilities Man ,1255450,,,,17/03/2021,2200156823,"7,421.70",,Creditors Control : AP GRIR,,,,,,No
The Royal Borough of Kensington and Chelsea,RBKC,,Statutory and Corporate Items,Statutory Year-End Adjustments,,Bellrock Property & Facilities Man ,1255450,,,,23/03/2021,2200158364,"2,453.62",,Creditors Control : AP GRIR,,,,,,No
The Royal Borough of Kensington and Chelsea,RBKC,,Statutory and Corporate Items,Statutory Year-End Adjustments,,Bellrock Property & Facilities Man ,1255450,,,,12/04/2021,2200163240,"3,792.00",,Creditors Control : AP GRIR,,,,,,No
The Royal Borough of Kensington and Chelsea,RBKC,,Capital,Capital,,Bestoutcome Limited,1273135,,,,22/03/2021,2200157994,"4,482.00",,Computer Software,,,,,,No
The Royal Borough of Kensington and Chelsea,RBKC,,Capital,Capital,,London Letterbox Marketing ,1234938,,,,22/02/2021,2200151450,992.65,,Payments to main contractor,,,,,,No
The Royal Borough of Kensington and Chelsea,RBKC,,Capital,Capital,,London Letterbox Marketing ,1234938,,,,16/03/2021,2200156636,"1,004.79",,Site Works,,,,,,No
The Royal Borough of Kensington and Chelsea,RBKC,,Statutory and Corporate Items,Statutory Year-End Adjustments,,London Letterbox Marketing ,1234938,,,,01/04/2021,2200161984,954.00,,Creditors Control : AP GRIR,,,,,,No
The Royal Borough of Kensington and Chelsea,RBKC,,Capital,Capital,,Bevington Primary School ,1236065,,,,02/02/2021,3110267909,"7,253.52",,Computer Equipment,,,,,,No
The Royal Borough of Kensington and Chelsea,RBKC,,Capital,Capital,,Bevington Primary School ,1236065,,,,03/02/2021,2200147399,"1,191.00",,Payments to main contractor,,,,,,No
The Royal Borough of Kensington and Chelsea,RBKC,,Capital,Capital,,Bevington Primary School ,1236065,,,,10/03/2021,2200155279,"1,505.00",,Payments to main contractor,,,,,,No
The Royal Borough of Kensington and Chelsea,RBKC,,Capital,Capital,,Bibliotheca Ltd ,1232743,,,,20/01/2021,2200144319,"13,490.00",,Computer Equipment,,,,,,No
The Royal Borough of Kensington and Chelsea,RBKC,,Capital,Capital,,Bibliotheca Ltd ,1232743,,,,20/01/2021,2200144329,"7,995.00",,Computer Equipment,,,,,,No
The Royal Borough of Kensington and Chelsea,RBKC,,Capital,Capital,,Bibliotheca Ltd ,1232743,,,,20/01/2021,2200144330,"26,980.00",,Computer Equipment,,,,,,No
The Royal Borough of Kensington and Chelsea,RBKC,,Capital,Capital,,Bibliotheca Ltd ,1232743,,,,20/01/2021,2200144333,"29,480.00",,Computer Equipment,,,,,,No
The Royal Borough of Kensington and Chelsea,RBKC,,Capital,Capital,,Bibliotheca Ltd ,1232743,,,,22/03/2021,2200157980,750.00,,Computer Equipment,,,,,,No
The Royal Borough of Kensington and Chelsea,RBKC,,Capital,Capital,,Bibliotheca Ltd ,1232743,,,,22/03/2021,2200157987,500.00,,Computer Equipment,,,,,,No
The Royal Borough of Kensington and Chelsea,RBKC,,Capital,Capital,,Bibliotheca Ltd ,1232743,,,,22/03/2021,2200157988,"1,000.00",,Computer Equipment,,,,,,No
The Royal Borough of Kensington and Chelsea,RBKC,,Capital,Capital,,Bibliotheca Ltd ,1232743,,,,22/03/2021,2200157989,"1,000.00",,Computer Equipment,,,,,,No
The Royal Borough of Kensington and Chelsea,RBKC,,Capital,Capital,,Bibliotheca Ltd ,1232743,,,,22/03/2021,2200157990,"5,495.00",,Computer Equipment,,,,,,No
The Royal Borough of Kensington and Chelsea,RBKC,,Capital,Capital,,Bishop Creighton House Care & Repair Clients Account,1232751,,,,13/01/2021,2200143030,"6,750.00",,Payments to main contractor,,,,,,No
The Royal Borough of Kensington and Chelsea,RBKC,,Capital,Capital,,Bishop Creighton House Care & Repair Clients Account,1232751,,,,26/02/2021,2200152575,"5,617.80",,Payments to main contractor,,,,,,No
The Royal Borough of Kensington and Chelsea,RBKC,,Capital,Capital,,Bishop Creighton House Care & Repair Clients Account,1232751,,,,26/02/2021,2200152576,"6,359.13",,Payments to main contractor,,,,,,No
The Royal Borough of Kensington and Chelsea,RBKC,,Capital,Capital,,Bishop Creighton House Care & Repair Clients Account,1232751,,,,05/03/2021,2200154485,"2,147.25",,Payments to main contractor,,,,,,No
The Royal Borough of Kensington and Chelsea,RBKC,,Capital,Capital,,Bishop Creighton House Care & Repair Clients Account,1232751,,,,24/03/2021,2200158512,956.87,,Payments to main contractor,,,,,,No
The Royal Borough of Kensington and Chelsea,RBKC,,Capital,Capital,,Bishop Creighton House Care & Repair Clients Account,1232751,,,,01/04/2021,2200160951,845.67,,Payments to main contractor,,,,,,No
The Royal Borough of Kensington and Chelsea,RBKC,,Capital,Capital,,Bishop Creighton House Care & Repair Clients Account,1232751,,,,01/04/2021,2200160952,"1,015.50",,Payments to main contractor,,,,,,No
The Royal Borough of Kensington and Chelsea,RBKC,,Statutory and Corporate Items,Statutory Year-End Adjustments,,Bishop Creighton House Care & Repair Clients Account,1232751,,,,01/04/2021,2200162073,"7,495.00",,Creditors Control : AP GRIR,,,,,,No
The Royal Borough of Kensington and Chelsea,RBKC,,Statutory and Corporate Items,Statutory Year-End Adjustments,,Bishop Creighton House Care & Repair Clients Account,1232751,,,,01/04/2021,2200162074,"8,702.00",,Creditors Control : AP GRIR,,,,,,No
The Royal Borough of Kensington and Chelsea,RBKC,,Statutory and Corporate Items,Statutory Year-End Adjustments,,Bishop Creighton House Care & Repair Clients Account,1232751,,,,01/04/2021,2200162251,"11,050.00",,Creditors Control : AP GRIR,,,,,,No
The Royal Borough of Kensington and Chelsea,RBKC,,Statutory and Corporate Items,Statutory Year-End Adjustments,,Bishop Creighton House Care & Repair Clients Account,1232751,,,,01/04/2021,2200162258,"6,065.00",,Creditors Control : AP GRIR,,,,,,No
The Royal Borough of Kensington and Chelsea,RBKC,,Statutory and Corporate Items,Statutory Year-End Adjustments,,Bishop Creighton House Care & Repair Clients Account,1232751,,,,08/04/2021,2200162270,"13,000.00",,Creditors Control : AP GRIR,,,,,,No
The Royal Borough of Kensington and Chelsea,RBKC,,Statutory and Corporate Items,Statutory Year-End Adjustments,,Black Box Network Services ,1231180,,,,26/03/2021,2200159138,665.00,,Creditors Control : AP GRIR,,,,,,No
The Royal Borough of Kensington and Chelsea,RBKC,,Capital,Capital,,Bloom Procurement Services Ltd,1269893,,,,11/02/2021,2200149282,"29,920.00",,Professional Fees : Non Legal,,,,,,No
The Royal Borough of Kensington and Chelsea,RBKC,,Capital,Capital,,Bloom Procurement Services Ltd,1269893,,,,11/02/2021,2200149284,"29,920.00",,Professional Fees : Non Legal,,,,,,No
The Royal Borough of Kensington and Chelsea,RBKC,,Capital,Capital,,Bloom Procurement Services Ltd,1269893,,,,08/04/2021,2200162256,"18,075.00",,Payments to main contractor,,,,,,No
The Royal Borough of Kensington and Chelsea,RBKC,,Capital,Capital,,Bloom Procurement Services Ltd,1269893,,,,08/04/2021,2200162261,"10,000.00",,Construction : enhancements,,,,,,No
The Royal Borough of Kensington and Chelsea,RBKC,,Capital,Capital,,Bloom Procurement Services Ltd,1269893,,,,11/04/2021,2200163051,"22,440.00",,Professional Fees : Non Legal,,,,,,No
The Royal Borough of Kensington and Chelsea,RBKC,,Capital,Capital,,Bob Products Limited,1278265,,,,06/04/2021,2200161441,"2,450.00",,Energy Conservation : CM,,,,,,No
The Royal Borough of Kensington and Chelsea,RBKC,,Capital,Capital,,Borras Construction Ltd,1275543,,,,25/01/2021,2200145336,"173,865.25",,Payments to main contractor,,,,,,No
The Royal Borough of Kensington and Chelsea,RBKC,,Capital,Capital,,Borras Construction Ltd,1275543,,,,24/02/2021,2200152085,"132,507.81",,Payments to main contractor,,,,,,No
The Royal Borough of Kensington and Chelsea,RBKC,,Capital,Capital,,Borras Construction Ltd,1275543,,,,01/04/2021,2200163829,"100,916.67",,Payments to main contractor,,,,,,No
The Royal Borough of Kensington and Chelsea,RBKC,,Capital,Capital,,Bousfield Primary School ,1236067,,,,11/03/2021,3110283292,"1,813.38",,Computer Equipment,,,,,,No
The Royal Borough of Kensington and Chelsea,RBKC,,Capital,Capital,,Redact Details,1232986,,,,26/03/2021,2200159227,"4,000.00",,Professional Fees : Non Legal,,,,,,No
The Royal Borough of Kensington and Chelsea,RBKC,,Capital,Capital,,Brown & Co Planning LTD,1258884,,,,18/02/2021,2200150919,"2,632.50",,Payments to sub contractor,,,,,,No
The Royal Borough of Kensington and Chelsea,RBKC,,Capital,Capital,,Redact Details,1260368,,,,30/03/2021,2200159967,"5,750.00",,Planned Maintenance (CM),,,,,,No
The Royal Borough of Kensington and Chelsea,RBKC,,Statutory and Corporate Items,Statutory Year-End Adjustments,,Redact Details,1260368,,,,01/04/2021,2200160825,"3,260.00",,Creditors Control : AP GRIR,,,,,,No
The Royal Borough of Kensington and Chelsea,RBKC,,Capital,Capital,,Build Test Solutions Ltd,1271506,,,,09/02/2021,2200148863,"1,000.00",,Payments to main contractor,,,,,,No
The Royal Borough of Kensington and Chelsea,RBKC,,Capital,Capital,,Building Design Partnership Ltd ,1233009,,,,06/01/2021,2200141758,"9,000.00",,Other Consultants,,,,,,No
The Royal Borough of Kensington and Chelsea,RBKC,,Capital,Capital,,Building Design Partnership Ltd ,1233009,,,,01/02/2021,2200146723,"9,000.00",,Other Consultants,,,,,,No
The Royal Borough of Kensington and Chelsea,RBKC,,Capital,Capital,,Building Design Partnership Ltd ,1233009,,,,09/03/2021,2200154947,"9,000.00",,Other Consultants,,,,,,No
The Royal Borough of Kensington and Chelsea,RBKC,,Capital,Capital,,Butler & Young Services Ltd,1272888,,,,11/03/2021,2200155809,"4,730.00",,Professional Fees : Non Legal,,,,,,No
The Royal Borough of Kensington and Chelsea,RBKC,,Capital,Capital,,Butler & Young Services Ltd,1272888,,,,11/03/2021,2200155849,"2,309.10",,Professional Fees : Non Legal,,,,,,No
The Royal Borough of Kensington and Chelsea,RBKC,,Capital,Capital,,C&C Builders Ltd,1274385,,,,01/04/2021,2200161236,"13,708.78",,Payments to main contractor,,,,,,No
The Royal Borough of Kensington and Chelsea,RBKC,,Capital,Capital,,C&C Builders Ltd,1274385,,,,06/04/2021,2200161652,"6,435.00",,Payments to main contractor,,,,,,No
The Royal Borough of Kensington and Chelsea,RBKC,,Capital,Capital,,C&C Builders Ltd,1274385,,,,06/04/2021,2200161653,"7,915.00",,Payments to main contractor,,,,,,No
The Royal Borough of Kensington and Chelsea,RBKC,,Capital,Capital,,CBRE Capital Advisors,1233314,,,,11/01/2021,2200142484,"2,500.00",,Professional Fees : Non Legal,,,,,,No
The Royal Borough of Kensington and Chelsea,RBKC,,Capital,Capital,,CBRE Capital Advisors,1233314,,,,21/01/2021,2200144841,"2,500.00",,Payments to main contractor,,,,,,No
The Royal Borough of Kensington and Chelsea,RBKC,,Capital,Capital,,Clm Fireproofing Limited,1268719,,,,31/03/2021,2200160625,"32,033.24",,Payments to main contractor,,,,,,No
The Royal Borough of Kensington and Chelsea,RBKC,,Capital,Capital,,Clm Fireproofing Limited,1268719,,,,31/03/2021,2200160627,"1,474.11",,Payments to main contractor,,,,,,No
The Royal Borough of Kensington and Chelsea,RBKC,,Capital,Capital,,Clm Fireproofing Limited,1268719,,,,31/03/2021,2200160628,"1,057.46",,Payments to main contractor,,,,,,No
The Royal Borough of Kensington and Chelsea,RBKC,,Capital,Capital,,Clm Fireproofing Limited,1268719,,,,31/03/2021,2200160630,"10,269.62",,Payments to main contractor,,,,,,No
The Royal Borough of Kensington and Chelsea,RBKC,,Capital,Capital,,Clm Fireproofing Limited,1268719,,,,31/03/2021,2200160632,"5,498.51",,Payments to main contractor,,,,,,No
The Royal Borough of Kensington and Chelsea,RBKC,,Capital,Capital,,Cablesheer (Asbestos) Limited,1273893,,,,04/01/2021,2200141095,"6,014.60",,Payments to main contractor,,,,,,No
The Royal Borough of Kensington and Chelsea,RBKC,,Capital,Capital,,Calford Seadon (Health & Safety) Ltd,1233044,,,,28/01/2021,2200146132,"1,800.00",,Professional Fees : Non Legal,,,,,,No
The Royal Borough of Kensington and Chelsea,RBKC,,Capital,Capital,,Calford Seadon (Health & Safety) Ltd,1233044,,,,28/01/2021,2200146135,"1,007.94",,Professional Fees : Non Legal,,,,,,No
The Royal Borough of Kensington and Chelsea,RBKC,,Capital,Capital,,Calford Seadon (Health & Safety) Ltd,1233044,,,,22/02/2021,2200151552,850.00,,Professional Fees : Non Legal,,,,,,No
The Royal Borough of Kensington and Chelsea,RBKC,,Capital,Capital,,Calford Seadon (Health & Safety) Ltd,1233044,,,,22/02/2021,2200151559,"1,465.00",,Professional Fees : Non Legal,,,,,,No
The Royal Borough of Kensington and Chelsea,RBKC,,Capital,Capital,,Calford Seadon (Health & Safety) Ltd,1233044,,,,05/03/2021,2200154190,"5,640.00",,Payments to main contractor,,,,,,No
The Royal Borough of Kensington and Chelsea,RBKC,,Capital,Capital,,Calford Seadon (Health & Safety) Ltd,1233044,,,,05/03/2021,2200154383,"6,732.00",,Professional Fees : Non Legal,,,,,,No
The Royal Borough of Kensington and Chelsea,RBKC,,Capital,Capital,,Calford Seadon (Health & Safety) Ltd,1233044,,,,10/03/2021,2200155547,"1,862.00",,Payments to main contractor,,,,,,No
The Royal Borough of Kensington and Chelsea,RBKC,,Capital,Capital,,Calford Seadon (Health & Safety) Ltd,1233044,,,,10/03/2021,2200155548,990.00,,Payments to main contractor,,,,,,No
The Royal Borough of Kensington and Chelsea,RBKC,,Capital,Capital,,Calford Seadon (Health & Safety) Ltd,1233044,,,,10/03/2021,2200155549,990.00,,Payments to main contractor,,,,,,No
The Royal Borough of Kensington and Chelsea,RBKC,,Capital,Capital,,Calford Seadon (Health & Safety) Ltd,1233044,,,,23/03/2021,2200158353,"4,069.51",,Professional Fees : Non Legal,,,,,,No
The Royal Borough of Kensington and Chelsea,RBKC,,Capital,Capital,,Calford Seadon (Health & Safety) Ltd,1233044,,,,24/03/2021,2200158625,"1,007.94",,Professional Fees : Non Legal,,,,,,No
The Royal Borough of Kensington and Chelsea,RBKC,,Capital,Capital,,Capita Business Services Ltd ,1233075,,,,30/03/2021,2200160116,"48,104.70",,Payments to main contractor,,,,,,No
The Royal Borough of Kensington and Chelsea,RBKC,,Capital,Capital,,Capita Business Services Ltd ,1233075,,,,14/04/2021,2200163727,"6,672.00",,Payments to main contractor,,,,,,No
The Royal Borough of Kensington and Chelsea,RBKC,,Capital,Capital,,Capital Property & Construction ,1256857,,,,19/01/2021,2200144194,"30,000.00",,Professional Fees : Non Legal,,,,,,No
The Royal Borough of Kensington and Chelsea,RBKC,,Capital,Capital,,Capital Property & Construction ,1256857,,,,26/01/2021,2200145758,"64,950.00",,Professional Fees : Non Legal,,,,,,No
The Royal Borough of Kensington and Chelsea,RBKC,,Capital,Capital,,Capital Property & Construction ,1256857,,,,01/02/2021,2200146678,"42,000.00",,Professional Fees : Non Legal,,,,,,No
The Royal Borough of Kensington and Chelsea,RBKC,,Capital,Capital,,Capital Property & Construction ,1256857,,,,02/02/2021,2200147223,"30,000.00",,Professional Fees : Non Legal,,,,,,No
The Royal Borough of Kensington and Chelsea,RBKC,,Capital,Capital,,Capital Property & Construction ,1256857,,,,09/03/2021,2200155035,"3,135.00",,Professional Fees : Non Legal,,,,,,No
The Royal Borough of Kensington and Chelsea,RBKC,,Capital,Capital,,Capital Property & Construction ,1256857,,,,09/03/2021,2200155041,"3,040.00",,Professional Fees : Non Legal,,,,,,No
The Royal Borough of Kensington and Chelsea,RBKC,,Capital,Capital,,Capital Property & Construction ,1256857,,,,09/03/2021,2200155045,"3,050.00",,Professional Fees : Non Legal,,,,,,No
The Royal Borough of Kensington and Chelsea,RBKC,,Capital,Capital,,Capital Property & Construction ,1256857,,,,15/03/2021,2200156251,"30,000.00",,Professional Fees : Non Legal,,,,,,No
The Royal Borough of Kensington and Chelsea,RBKC,,Capital,Capital,,Capital Property & Construction ,1256857,,,,15/03/2021,2200156252,"3,060.00",,Professional Fees : Non Legal,,,,,,No
The Royal Borough of Kensington and Chelsea,RBKC,,Capital,Capital,,Capital Property & Construction ,1256857,,,,15/03/2021,2200156253,655.00,,Professional Fees : Non Legal,,,,,,No
The Royal Borough of Kensington and Chelsea,RBKC,,Capital,Capital,,Capital Property & Construction ,1256857,,,,30/03/2021,2200160393,"3,672.00",,Professional Fees : Non Legal,,,,,,No
The Royal Borough of Kensington and Chelsea,RBKC,,Capital,Capital,,Cardinal Vaughan Memorial School ,1232790,,,,02/02/2021,3110267912,"6,810.00",,Computer Equipment,,,,,,No
The Royal Borough of Kensington and Chelsea,RBKC,,Capital,Capital,,Cavendish Construction LTD,1267193,,,,04/01/2021,2200141100,"6,487.00",,Safety Fence & Barriers,,,,,,No
The Royal Borough of Kensington and Chelsea,RBKC,,Capital,Capital,,Cavendish Construction LTD,1267193,,,,12/01/2021,2200142857,"13,867.26",,Payments to main contractor,,,,,,No
The Royal Borough of Kensington and Chelsea,RBKC,,Capital,Capital,,Cavendish Construction LTD,1267193,,,,10/03/2021,2200155555,"5,802.59",,Payments to main contractor,,,,,,No
The Royal Borough of Kensington and Chelsea,RBKC,,Capital,Capital,,Cavendish Construction LTD,1267193,,,,24/03/2021,2200158494,896.31,,Special Maintenance,,,,,,No
The Royal Borough of Kensington and Chelsea,RBKC,,Capital,Capital,,Cavendish Construction LTD,1267193,,,,26/03/2021,2200159200,"14,200.05",,Special Maintenance,,,,,,No
The Royal Borough of Kensington and Chelsea,RBKC,,Capital,Capital,,Cavendish Construction LTD,1267193,,,,26/03/2021,2200159201,"11,490.19",,Special Maintenance,,,,,,No
The Royal Borough of Kensington and Chelsea,RBKC,,Capital,Capital,,Cavendish Construction LTD,1267193,,,,26/03/2021,2200159203,"19,127.83",,Special Maintenance,,,,,,No
The Royal Borough of Kensington and Chelsea,RBKC,,Capital,Capital,,Cavendish Construction LTD,1267193,,,,26/03/2021,2200159204,"12,102.71",,Special Maintenance,,,,,,No
The Royal Borough of Kensington and Chelsea,RBKC,,Capital,Capital,,Cavendish Construction LTD,1267193,,,,26/03/2021,2200159206,"18,887.65",,Special Maintenance,,,,,,No
The Royal Borough of Kensington and Chelsea,RBKC,,Capital,Capital,,Chapmanbdsp Limited,1270766,,,,18/03/2021,2200157337,"2,025.00",,Payments to main contractor,,,,,,No
The Royal Borough of Kensington and Chelsea,RBKC,,Capital,Capital,,Chapmanbdsp Limited,1270766,,,,18/03/2021,2200157340,"1,012.50",,Payments to main contractor,,,,,,No
The Royal Borough of Kensington and Chelsea,RBKC,,Statutory and Corporate Items,Statutory Year-End Adjustments,,Checkmate Fire Solutions Ltd ,1231187,,,,09/03/2021,2200154983,652.00,,Creditors Control : AP GRIR,,,,,,No
The Royal Borough of Kensington and Chelsea,RBKC,,Capital,Capital,,Chelsea Academy ,1232792,,,,16/02/2021,2200150211,"9,400.00",,Other Consultants,,,,,,No
The Royal Borough of Kensington and Chelsea,RBKC,,Capital,Capital,,Chelsea Academy ,1232792,,,,16/02/2021,2200150212,"10,000.00",,Other Consultants,,,,,,No
The Royal Borough of Kensington and Chelsea,RBKC,,Capital,Capital,,Chris Edge Tree Care Ltd ,1233369,,,,08/01/2021,2200142302,750.00,,Payments to main contractor,,,,,,No
The Royal Borough of Kensington and Chelsea,RBKC,,Capital,Capital,,Chris Edge Tree Care Ltd ,1233369,,,,30/03/2021,2200160218,"3,240.00",,Payments to main contractor,,,,,,No
The Royal Borough of Kensington and Chelsea,RBKC,,Capital,Capital,,Chris Edge Tree Care Ltd ,1233369,,,,30/03/2021,2200160220,"3,311.00",,Payments to main contractor,,,,,,No
The Royal Borough of Kensington and Chelsea,RBKC,,Capital,Capital,,Chris Edge Tree Care Ltd ,1233369,,,,01/04/2021,2200160926,"3,396.00",,Payments to main contractor,,,,,,No
The Royal Borough of Kensington and Chelsea,RBKC,,Capital,Capital,,Christ Church Ce Primary School ,1232796,,,,11/03/2021,3110283290,"1,535.85",,Computer Equipment,,,,,,No
The Royal Borough of Kensington and Chelsea,RBKC,,Capital,Capital,,City Electrical Factors,1263373,,,,03/02/2021,2200147532,"2,038.43",,Special Maintenance,,,,,,No
The Royal Borough of Kensington and Chelsea,RBKC,,Capital,Capital,,City Electrical Factors,1263373,,,,04/03/2021,2200153884,680.17,,Special Maintenance,,,,,,No
The Royal Borough of Kensington and Chelsea,RBKC,,Capital,Capital,,City Electrical Factors,1263373,,,,11/03/2021,2200155911,"5,333.33",,Special Maintenance,,,,,,No
The Royal Borough of Kensington and Chelsea,RBKC,,Capital,Capital,,City Electrical Factors,1263373,,,,26/03/2021,2200159233,684.50,,Special Maintenance,,,,,,No
The Royal Borough of Kensington and Chelsea,RBKC,,Capital,Capital,,City Electrical Factors,1263373,,,,26/03/2021,2200159283,564.05,,Special Maintenance,,,,,,No
The Royal Borough of Kensington and Chelsea,RBKC,,Capital,Capital,,City Electrical Factors,1263373,,,,01/04/2021,2200160941,"12,665.00",,Payments to main contractor,,,,,,No
The Royal Borough of Kensington and Chelsea,RBKC,,Statutory and Corporate Items,Statutory Year-End Adjustments,,City Of Westminster ,1231771,,,,21/01/2021,2200144607,"27,011.56",,Creditors Control : AP GRIR,,,,,,No
The Royal Borough of Kensington and Chelsea,RBKC,,Statutory and Corporate Items,Statutory Year-End Adjustments,,City Of Westminster ,1231771,,,,25/02/2021,2200152298,"32,332.25",,Creditors Control : AP GRIR,,,,,,No
The Royal Borough of Kensington and Chelsea,RBKC,,Statutory and Corporate Items,Statutory Year-End Adjustments,,City Of Westminster ,1231771,,,,25/02/2021,2200152424,"98,587.20",,Creditors Control : AP GRIR,,,,,,No
The Royal Borough of Kensington and Chelsea,RBKC,,Statutory and Corporate Items,Statutory Year-End Adjustments,,City Of Westminster ,1231771,,,,24/03/2021,2200158693,"116,915.00",,Creditors Control : AP GRIR,,,,,,No
The Royal Borough of Kensington and Chelsea,RBKC,,Statutory and Corporate Items,Statutory Year-End Adjustments,,City Of Westminster ,1231771,,,,07/04/2021,2200161842,"4,548.00",,Creditors Control : AP GRIR,,,,,,No
The Royal Borough of Kensington and Chelsea,RBKC,,Capital,Capital,,Classic Security Solutions Ltd,1256301,,,,17/02/2021,2200150621,740.00,,Planned Maintenance (CM),,,,,,No
The Royal Borough of Kensington and Chelsea,RBKC,,Capital,Capital,,Closomat Ltd ,1233412,,,,26/03/2021,2200159145,"4,300.00",,Payments to main contractor,,,,,,No
The Royal Borough of Kensington and Chelsea,RBKC,,Capital,Capital,,Commercial Services Uk Ltd,1269853,,,,28/01/2021,2200146076,"46,677.00",,Payments to main contractor,,,,,,No
The Royal Borough of Kensington and Chelsea,RBKC,,Capital,Capital,,Conisbee ,1233655,,,,02/03/2021,2200153389,"1,450.00",,Payments to main contractor,,,,,,No
The Royal Borough of Kensington and Chelsea,RBKC,,Capital,Capital,,Conisbee ,1233655,,,,12/04/2021,2200163160,"1,575.00",,Payments to main contractor,,,,,,No
The Royal Borough of Kensington and Chelsea,RBKC,,Capital,Capital,,Connect Survey Services Ltd ,1233656,,,,15/01/2021,2200143507,500.00,,Payments to main contractor,,,,,,No
The Royal Borough of Kensington and Chelsea,RBKC,,Capital,Capital,,Connect Survey Services Ltd ,1233656,,,,27/01/2021,2200145905,500.00,,Payments to main contractor,,,,,,No
The Royal Borough of Kensington and Chelsea,RBKC,,Capital,Capital,,Connect Survey Services Ltd ,1233656,,,,13/04/2021,2200163569,500.00,,Payments to main contractor,,,,,,No
The Royal Borough of Kensington and Chelsea,RBKC,,Capital,Capital,,Connected Response Limite,1265273,,,,19/03/2021,2200157541,"2,431.96",,Payments to main contractor,,,,,,No
The Royal Borough of Kensington and Chelsea,RBKC,,Capital,Capital,,Contour Planning Services Limited,1274959,,,,01/02/2021,2200146668,"2,805.00",,Payments to sub contractor,,,,,,No
The Royal Borough of Kensington and Chelsea,RBKC,,Capital,Capital,,Contour Planning Services Limited,1274959,,,,01/04/2021,2200160975,"2,103.75",,Payments to main contractor,,,,,,No
The Royal Borough of Kensington and Chelsea,RBKC,,Capital,Capital,,Core Projects Ltd ,1233682,,,,07/01/2021,2200141875,"2,750.00",,Payments to main contractor,,,,,,No
The Royal Borough of Kensington and Chelsea,RBKC,,Capital,Capital,,Currie & Brown UK Ltd ,1233738,,,,25/01/2021,2200145535,"5,059.88",,Site Works,,,,,,No
The Royal Borough of Kensington and Chelsea,RBKC,,Capital,Capital,,Currie & Brown UK Ltd ,1233738,,,,25/01/2021,2200145536,"1,465.00",,Payments to main contractor,,,,,,No
The Royal Borough of Kensington and Chelsea,RBKC,,Capital,Capital,,Currie & Brown UK Ltd ,1233738,,,,23/02/2021,2200151635,"5,059.88",,Site Works,,,,,,No
The Royal Borough of Kensington and Chelsea,RBKC,,Capital,Capital,,Currie & Brown UK Ltd ,1233738,,,,23/02/2021,2200151778,"1,465.00",,Payments to main contractor,,,,,,No
The Royal Borough of Kensington and Chelsea,RBKC,,Capital,Capital,,Currie & Brown UK Ltd ,1233738,,,,22/03/2021,2200157967,"6,836.63",,Site Works,,,,,,No
The Royal Borough of Kensington and Chelsea,RBKC,,Capital,Capital,,Currie & Brown UK Ltd ,1233738,,,,22/03/2021,2200157968,"1,465.00",,Payments to main contractor,,,,,,No
The Royal Borough of Kensington and Chelsea,RBKC,,Capital,Capital,,Currie & Brown UK Ltd ,1233738,,,,08/04/2021,2200162301,"2,850.00",,Payments to main contractor,,,,,,No
The Royal Borough of Kensington and Chelsea,RBKC,,Capital,Capital,,Cushman & Wakefield LLP ,1233739,,,,08/02/2021,2200148457,"5,250.00",,Payments to main contractor,,,,,,No
The Royal Borough of Kensington and Chelsea,RBKC,,Capital,Capital,,Cushman & Wakefield LLP ,1233739,,,,15/02/2021,2200150081,"5,513.00",,Payments to main contractor,,,,,,No
The Royal Borough of Kensington and Chelsea,RBKC,,Capital,Capital,,Cushman & Wakefield LLP ,1233739,,,,09/04/2021,2200162619,"5,513.00",,Payments to main contractor,,,,,,No
The Royal Borough of Kensington and Chelsea,RBKC,,Capital,Capital,,Cushman & Wakefield LLP ,1233739,,,,15/04/2021,2200163845,"5,513.00",,Payments to main contractor,,,,,,No
The Royal Borough of Kensington and Chelsea,RBKC,,Capital,Capital,,Cuttle Construction Limited,1274914,,,,19/01/2021,2200144193,"15,551.71",,Payments to main contractor,,,,,,No
The Royal Borough of Kensington and Chelsea,RBKC,,Capital,Capital,,Cuttle Construction Limited,1274914,,,,15/02/2021,2200150050,"36,345.93",,Payments to main contractor,,,,,,No
The Royal Borough of Kensington and Chelsea,RBKC,,Capital,Capital,,Cuttle Construction Limited,1274914,,,,22/03/2021,2200157949,"3,496.61",,Payments to main contractor,,,,,,No
The Royal Borough of Kensington and Chelsea,RBKC,,Capital,Capital,,DBR & Associates Ltd ,1233969,,,,12/01/2021,2200142887,"6,856.00",,Planned Maintenance (CM),,,,,,No
The Royal Borough of Kensington and Chelsea,RBKC,,Capital,Capital,,DBR & Associates Ltd ,1233969,,,,12/01/2021,2200142889,"5,662.00",,Planned Maintenance (CM),,,,,,No
The Royal Borough of Kensington and Chelsea,RBKC,,Capital,Capital,,Danacom Ltd,1262818,,,,21/01/2021,2200144645,"29,872.65",,Special Maintenance,,,,,,No
The Royal Borough of Kensington and Chelsea,RBKC,,Capital,Capital,,Danacom Ltd,1262818,,,,02/02/2021,2200147038,500.00,,Payments to main contractor,,,,,,No
The Royal Borough of Kensington and Chelsea,RBKC,,Capital,Capital,,Redact Details,1232218,,,,22/01/2021,2200145012,708.00,,Legal Fees & expenses,,,,,,No
The Royal Borough of Kensington and Chelsea,RBKC,,Capital,Capital,,Redact Details,1232218,,,,19/03/2021,2200157618,"1,236.00",,Legal Fees & expenses,,,,,,No
The Royal Borough of Kensington and Chelsea,RBKC,,Capital,Capital,,Delva Patman Redler LLP,1271465,,,,08/02/2021,2200148405,"1,283.50",,Payments to main contractor,,,,,,No
The Royal Borough of Kensington and Chelsea,RBKC,,Capital,Capital,,Delva Patman Redler LLP,1271465,,,,09/03/2021,2200155011,889.50,,Payments to main contractor,,,,,,No
The Royal Borough of Kensington and Chelsea,RBKC,,Capital,Capital,,Derisk (UK) Limited ,1233980,,,,14/01/2021,2200143265,"2,300.00",,Payments to main contractor,,,,,,No
The Royal Borough of Kensington and Chelsea,RBKC,,Capital,Capital,,Derisk (UK) Limited ,1233980,,,,14/01/2021,2200143266,"2,300.00",,Payments to main contractor,,,,,,No
The Royal Borough of Kensington and Chelsea,RBKC,,Capital,Capital,,Derisk (UK) Limited ,1233980,,,,08/02/2021,2200148504,"2,300.00",,Payments to main contractor,,,,,,No
The Royal Borough of Kensington and Chelsea,RBKC,,Capital,Capital,,Derisk (UK) Limited ,1233980,,,,12/02/2021,2200149652,558.84,,Payments to main contractor,,,,,,No
The Royal Borough of Kensington and Chelsea,RBKC,,Capital,Capital,,Derisk (UK) Limited ,1233980,,,,12/02/2021,2200149666,876.28,,Payments to main contractor,,,,,,No
The Royal Borough of Kensington and Chelsea,RBKC,,Capital,Capital,,Derisk (UK) Limited ,1233980,,,,23/02/2021,2200151848,558.73,,Payments to main contractor,,,,,,No
The Royal Borough of Kensington and Chelsea,RBKC,,Capital,Capital,,Derisk (UK) Limited ,1233980,,,,23/02/2021,2200151849,876.19,,Payments to main contractor,,,,,,No
The Royal Borough of Kensington and Chelsea,RBKC,,Capital,Capital,,Derisk (UK) Limited ,1233980,,,,17/03/2021,2200157036,558.73,,Payments to main contractor,,,,,,No
The Royal Borough of Kensington and Chelsea,RBKC,,Capital,Capital,,Derisk (UK) Limited ,1233980,,,,17/03/2021,2200157040,876.19,,Payments to main contractor,,,,,,No
The Royal Borough of Kensington and Chelsea,RBKC,,Capital,Capital,,Derisk (UK) Limited ,1233980,,,,17/03/2021,2200157043,"2,300.00",,Payments to main contractor,,,,,,No
The Royal Borough of Kensington and Chelsea,RBKC,,Capital,Capital,,Derisk (UK) Limited ,1233980,,,,22/03/2021,2200157834,"2,998.50",,Payments to main contractor,,,,,,No
The Royal Borough of Kensington and Chelsea,RBKC,,Capital,Capital,,Derisk (UK) Limited ,1233980,,,,23/03/2021,2200158298,"3,239.04",,Professional Fees : Non Legal,,,,,,No
The Royal Borough of Kensington and Chelsea,RBKC,,Capital,Capital,,Derisk (UK) Limited ,1233980,,,,23/03/2021,2200158299,"2,429.28",,Professional Fees : Non Legal,,,,,,No
The Royal Borough of Kensington and Chelsea,RBKC,,Capital,Capital,,Derisk (UK) Limited ,1233980,,,,23/03/2021,2200158391,"3,186.65",,Professional Fees : Non Legal,,,,,,No
The Royal Borough of Kensington and Chelsea,RBKC,,Capital,Capital,,Derisk (UK) Limited ,1233980,,,,01/04/2021,2200161572,"1,619.51",,Professional Fees : Non Legal,,,,,,No
The Royal Borough of Kensington and Chelsea,RBKC,,Capital,Capital,,Diocese of Westminster,1259151,,,,28/01/2021,2200146074,"20,107.87",,Payments to main contractor,,,,,,No
The Royal Borough of Kensington and Chelsea,RBKC,,Capital,Capital,,Diocese of Westminster,1259151,,,,28/01/2021,2200146075,"550,000.00",,Payments to main contractor,,,,,,No
The Royal Borough of Kensington and Chelsea,RBKC,,Capital,Capital,,District Energy Development Ltd,1275886,,,,10/02/2021,2200149051,"9,600.00",,Design Consultant,,,,,,No
The Royal Borough of Kensington and Chelsea,RBKC,,Capital,Capital,,District Energy Development Ltd,1275886,,,,23/03/2021,2200158260,"4,800.00",,Design Consultant,,,,,,No
The Royal Borough of Kensington and Chelsea,RBKC,,Capital,Capital,,District Energy Development Ltd,1275886,,,,07/04/2021,2200161762,"5,200.00",,Design Consultant,,,,,,No
The Royal Borough of Kensington and Chelsea,RBKC,,Capital,Capital,,ECD Architects Ltd,1234067,,,,14/01/2021,2200143268,"8,250.00",,Payments to main contractor,,,,,,No
The Royal Borough of Kensington and Chelsea,RBKC,,Capital,Capital,,ECD Architects Ltd,1234067,,,,15/01/2021,2200143648,"8,250.00",,Payments to main contractor,,,,,,No
The Royal Borough of Kensington and Chelsea,RBKC,,Capital,Capital,,ECD Architects Ltd,1234067,,,,08/02/2021,2200148510,"7,350.00",,Payments to main contractor,,,,,,No
The Royal Borough of Kensington and Chelsea,RBKC,,Capital,Capital,,ECD Architects Ltd,1234067,,,,08/02/2021,2200148514,"3,250.00",,Payments to main contractor,,,,,,No
The Royal Borough of Kensington and Chelsea,RBKC,,Capital,Capital,,ECD Architects Ltd,1234067,,,,12/02/2021,2200149681,"3,250.00",,Payments to main contractor,,,,,,No
The Royal Borough of Kensington and Chelsea,RBKC,,Capital,Capital,,ECD Architects Ltd,1234067,,,,12/02/2021,2200149683,"8,250.00",,Payments to main contractor,,,,,,No
The Royal Borough of Kensington and Chelsea,RBKC,,Capital,Capital,,ECD Architects Ltd,1234067,,,,23/02/2021,2200151693,"13,296.00",,Payments to main contractor,,,,,,No
The Royal Borough of Kensington and Chelsea,RBKC,,Capital,Capital,,ECD Architects Ltd,1234067,,,,02/03/2021,2200153301,"1,500.00",,Design Consultant,,,,,,No
The Royal Borough of Kensington and Chelsea,RBKC,,Capital,Capital,,ECD Architects Ltd,1234067,,,,08/03/2021,2200154672,"14,404.00",,Payments to main contractor,,,,,,No
The Royal Borough of Kensington and Chelsea,RBKC,,Capital,Capital,,ECD Architects Ltd,1234067,,,,17/03/2021,2200156904,"8,864.00",,Payments to main contractor,,,,,,No
The Royal Borough of Kensington and Chelsea,RBKC,,Capital,Capital,,ECD Architects Ltd,1234067,,,,17/03/2021,2200156907,"7,350.00",,Payments to main contractor,,,,,,No
The Royal Borough of Kensington and Chelsea,RBKC,,Capital,Capital,,ECD Architects Ltd,1234067,,,,18/03/2021,2200157334,"9,602.67",,Payments to main contractor,,,,,,No
The Royal Borough of Kensington and Chelsea,RBKC,,Capital,Capital,,ECD Architects Ltd,1234067,,,,24/03/2021,2200158656,"10,500.00",,Payments to main contractor,,,,,,No
The Royal Borough of Kensington and Chelsea,RBKC,,Capital,Capital,,ECD Architects Ltd,1234067,,,,26/03/2021,2200159274,"4,000.00",,Payments to main contractor,,,,,,No
The Royal Borough of Kensington and Chelsea,RBKC,,Capital,Capital,,ECD Architects Ltd,1234067,,,,26/03/2021,2200159275,"4,000.00",,Payments to main contractor,,,,,,No
The Royal Borough of Kensington and Chelsea,RBKC,,Capital,Capital,,ECD Architects Ltd,1234067,,,,26/03/2021,2200159276,"1,500.00",,Payments to main contractor,,,,,,No
The Royal Borough of Kensington and Chelsea,RBKC,,Capital,Capital,,ECD Architects Ltd,1234067,,,,13/04/2021,2200163480,"4,900.00",,Payments to main contractor,,,,,,No
The Royal Borough of Kensington and Chelsea,RBKC,,Capital,Capital,,ECD Architects Ltd,1234067,,,,13/04/2021,2200163483,"4,293.33",,Payments to main contractor,,,,,,No
The Royal Borough of Kensington and Chelsea,RBKC,,Capital,Capital,,ECD Architects Ltd,1234067,,,,13/04/2021,2200163485,"4,620.00",,Payments to main contractor,,,,,,No
The Royal Borough of Kensington and Chelsea,RBKC,,Capital,Capital,,ECD Architects Ltd,1234067,,,,14/04/2021,2200163688,"5,898.00",,Payments to main contractor,,,,,,No
The Royal Borough of Kensington and Chelsea,RBKC,,Capital,Capital,,ECD Architects Ltd,1234067,,,,14/04/2021,2200163689,"4,801.34",,Payments to main contractor,,,,,,No
The Royal Borough of Kensington and Chelsea,RBKC,,Capital,Capital,,ECD Architects Ltd,1234067,,,,14/04/2021,2200163691,"6,875.00",,Payments to main contractor,,,,,,No
The Royal Borough of Kensington and Chelsea,RBKC,,Capital,Capital,,ETEC Associates LTD,1269170,,,,06/01/2021,2200141594,"8,220.00",,Construction : enhancements,,,,,,No
The Royal Borough of Kensington and Chelsea,RBKC,,Capital,Capital,,ETEC Associates LTD,1269170,,,,06/01/2021,2200141595,"7,476.00",,Construction : enhancements,,,,,,No
The Royal Borough of Kensington and Chelsea,RBKC,,Capital,Capital,,ETEC Associates LTD,1269170,,,,06/01/2021,2200141596,"2,420.00",,Construction : enhancements,,,,,,No
The Royal Borough of Kensington and Chelsea,RBKC,,Capital,Capital,,ETEC Associates LTD,1269170,,,,06/01/2021,2200141598,"5,340.00",,Construction : enhancements,,,,,,No
The Royal Borough of Kensington and Chelsea,RBKC,,Capital,Capital,,ETEC Associates LTD,1269170,,,,06/01/2021,2200141599,"3,250.00",,Payments to main contractor,,,,,,No
The Royal Borough of Kensington and Chelsea,RBKC,,Capital,Capital,,ETEC Associates LTD,1269170,,,,15/01/2021,2200143518,"4,387.50",,Payments to sub contractor,,,,,,No
The Royal Borough of Kensington and Chelsea,RBKC,,Capital,Capital,,ETEC Associates LTD,1269170,,,,02/02/2021,2200147064,"11,987.50",,Construction : enhancements,,,,,,No
The Royal Borough of Kensington and Chelsea,RBKC,,Capital,Capital,,ETEC Associates LTD,1269170,,,,02/02/2021,2200147066,"10,902.50",,Construction : enhancements,,,,,,No
The Royal Borough of Kensington and Chelsea,RBKC,,Capital,Capital,,ETEC Associates LTD,1269170,,,,02/02/2021,2200147067,"7,787.50",,Construction : enhancements,,,,,,No
The Royal Borough of Kensington and Chelsea,RBKC,,Capital,Capital,,ETEC Associates LTD,1269170,,,,09/03/2021,2200154916,"5,137.50",,Construction : enhancements,,,,,,No
The Royal Borough of Kensington and Chelsea,RBKC,,Capital,Capital,,ETEC Associates LTD,1269170,,,,09/03/2021,2200154917,"3,337.50",,Construction : enhancements,,,,,,No
The Royal Borough of Kensington and Chelsea,RBKC,,Capital,Capital,,ETEC Associates LTD,1269170,,,,09/03/2021,2200154918,"1,815.00",,Construction : enhancements,,,,,,No
The Royal Borough of Kensington and Chelsea,RBKC,,Capital,Capital,,ETEC Associates LTD,1269170,,,,09/03/2021,2200154919,"4,672.50",,Construction : enhancements,,,,,,No
The Royal Borough of Kensington and Chelsea,RBKC,,Capital,Capital,,ETEC Associates LTD,1269170,,,,09/03/2021,2200154937,"2,925.00",,Payments to sub contractor,,,,,,No
The Royal Borough of Kensington and Chelsea,RBKC,,Capital,Capital,,ETEC Associates LTD,1269170,,,,01/04/2021,2200160955,"1,210.00",,Construction : enhancements,,,,,,No
The Royal Borough of Kensington and Chelsea,RBKC,,Statutory and Corporate Items,Statutory Year-End Adjustments,,ETEC Associates LTD,1269170,,,,07/04/2021,2200162075,"5,000.00",,Creditors Control : AP GRIR,,,,,,No
The Royal Borough of Kensington and Chelsea,RBKC,,Capital,Capital,,ETEC Associates LTD,1269170,,,,09/04/2021,2200162614,"2,225.00",,Construction : enhancements,,,,,,No
The Royal Borough of Kensington and Chelsea,RBKC,,Capital,Capital,,ETEC Associates LTD,1269170,,,,09/04/2021,2200162615,"3,115.00",,Construction : enhancements,,,,,,No
The Royal Borough of Kensington and Chelsea,RBKC,,Capital,Capital,,ETEC Associates LTD,1269170,,,,09/04/2021,2200162617,"3,425.00",,Construction : enhancements,,,,,,No
The Royal Borough of Kensington and Chelsea,RBKC,,Capital,Capital,,ETEC Associates LTD,1269170,,,,14/04/2021,2200163700,"4,235.00",,Construction : enhancements,,,,,,No
The Royal Borough of Kensington and Chelsea,RBKC,,Capital,Capital,,Ecovolt Environment Ltd,1272751,,,,18/02/2021,2200150868,"4,730.00",,Special Maintenance,,,,,,No
The Royal Borough of Kensington and Chelsea,RBKC,,Capital,Capital,,Ecovolt Environment Ltd,1272751,,,,31/03/2021,2200160544,"1,434.32",,Special Maintenance,,,,,,No
The Royal Borough of Kensington and Chelsea,RBKC,,Capital,Capital,,Energiesprong UK Ltd,1276664,,,,03/03/2021,2200153517,"150,000.00",,Design Consultant,,,,,,No
The Royal Borough of Kensington and Chelsea,RBKC,,Capital,Capital,,Engie Urban Energy Group Ltd ,1231202,,,,20/01/2021,2200144374,"19,366.34",,Payments to main contractor,,,,,,No
The Royal Borough of Kensington and Chelsea,RBKC,,Capital,Capital,,Engie Urban Energy Group Ltd ,1231202,,,,27/01/2021,2200145901,"4,151.00",,Site Works,,,,,,No
The Royal Borough of Kensington and Chelsea,RBKC,,Capital,Capital,,Engie Urban Energy Group Ltd ,1231202,,,,19/02/2021,2200151115,"15,546.22",,Payments to main contractor,,,,,,No
The Royal Borough of Kensington and Chelsea,RBKC,,Capital,Capital,,English Architectural Glazing Limit,1272155,,,,11/02/2021,2200149241,"13,000.00",,Payments to sub contractor,,,,,,No
The Royal Borough of Kensington and Chelsea,RBKC,,Capital,Capital,,Enviro Technology Services Plc,1234322,,,,15/02/2021,2200149901,"42,748.20",,Other capital equipment,,,,,,No
The Royal Borough of Kensington and Chelsea,RBKC,,Capital,Capital,,Erect Architecture Ltd ,1234339,,,,03/03/2021,2200153556,"2,443.50",,Construction : enhancements,,,,,,No
The Royal Borough of Kensington and Chelsea,RBKC,,Capital,Capital,,Evolution Enabling Services LTD,1277312,,,,16/03/2021,2200156662,"15,016.00",,Payments to main contractor,,,,,,No
The Royal Borough of Kensington and Chelsea,RBKC,,Capital,Capital,,Express Environmental ,1256411,,,,14/01/2021,2200143290,500.00,,Payments to main contractor,,,,,,No
The Royal Borough of Kensington and Chelsea,RBKC,,Capital,Capital,,Express Environmental ,1256411,,,,14/01/2021,2200143291,500.00,,Payments to main contractor,,,,,,No
The Royal Borough of Kensington and Chelsea,RBKC,,Capital,Capital,,Express Environmental ,1256411,,,,18/01/2021,2200143955,500.00,,Payments to main contractor,,,,,,No
The Royal Borough of Kensington and Chelsea,RBKC,,Capital,Capital,,Express Environmental ,1256411,,,,18/01/2021,2200143957,"5,190.40",,Payments to main contractor,,,,,,No
The Royal Borough of Kensington and Chelsea,RBKC,,Capital,Capital,,Express Environmental ,1256411,,,,17/02/2021,2200150625,500.00,,Payments to main contractor,,,,,,No
The Royal Borough of Kensington and Chelsea,RBKC,,Capital,Capital,,Express Environmental ,1256411,,,,01/04/2021,2200161003,"3,485.76",,Special Maintenance,,,,,,No
The Royal Borough of Kensington and Chelsea,RBKC,,Capital,Capital,,Express Environmental ,1256411,,,,01/04/2021,2200161005,"4,641.60",,Special Maintenance,,,,,,No
The Royal Borough of Kensington and Chelsea,RBKC,,Capital,Capital,,Express Environmental ,1256411,,,,01/04/2021,2200161007,"4,906.00",,Special Maintenance,,,,,,No
The Royal Borough of Kensington and Chelsea,RBKC,,Capital,Capital,,Express Environmental ,1256411,,,,01/04/2021,2200161008,"3,902.40",,Special Maintenance,,,,,,No
The Royal Borough of Kensington and Chelsea,RBKC,,Capital,Capital,,Express Environmental ,1256411,,,,01/04/2021,2200161012,"4,982.40",,Special Maintenance,,,,,,No
The Royal Borough of Kensington and Chelsea,RBKC,,Capital,Capital,,Express Environmental ,1256411,,,,01/04/2021,2200162613,"3,129.60",,Special Maintenance,,,,,,No
The Royal Borough of Kensington and Chelsea,RBKC,,Capital,Capital,,Express Environmental ,1256411,,,,01/04/2021,2200162656,"1,315.20",,Special Maintenance,,,,,,No
The Royal Borough of Kensington and Chelsea,RBKC,,Capital,Capital,,Express Environmental ,1256411,,,,01/04/2021,2200163368,"5,217.60",,Special Maintenance,,,,,,No
The Royal Borough of Kensington and Chelsea,RBKC,,Capital,Capital,,Express Environmental ,1256411,,,,09/04/2021,2200162608,"1,766.40",,Special Maintenance,,,,,,No
The Royal Borough of Kensington and Chelsea,RBKC,,Capital,Capital,,F.M Conway Ltd ,1231208,,,,05/01/2021,2200141402,"2,230.80",,Payments to main contractor,,,,,,No
The Royal Borough of Kensington and Chelsea,RBKC,,Capital,Capital,,F.M Conway Ltd ,1231208,,,,06/01/2021,2200141620,"8,561.70",,Construction : enhancements,,,,,,No
The Royal Borough of Kensington and Chelsea,RBKC,,Capital,Capital,,F.M Conway Ltd ,1231208,,,,15/01/2021,2200143510,"97,987.47",,Payments to main contractor,,,,,,No
The Royal Borough of Kensington and Chelsea,RBKC,,Capital,Capital,,F.M Conway Ltd ,1231208,,,,19/01/2021,2200144115,"1,788.50",,Payments to main contractor,,,,,,No
The Royal Borough of Kensington and Chelsea,RBKC,,Capital,Capital,,F.M Conway Ltd ,1231208,,,,21/01/2021,2200144882,"70,000.00",,Construction : enhancements,,,,,,No
The Royal Borough of Kensington and Chelsea,RBKC,,Capital,Capital,,F.M Conway Ltd ,1231208,,,,25/01/2021,2200145321,"7,569.23",,Traffic sign & white lines,,,,,,No
The Royal Borough of Kensington and Chelsea,RBKC,,Capital,Capital,,F.M Conway Ltd ,1231208,,,,27/01/2021,2200145907,"5,314.40",,Payments to main contractor,,,,,,No
The Royal Borough of Kensington and Chelsea,RBKC,,Capital,Capital,,F.M Conway Ltd ,1231208,,,,01/02/2021,2200146862,"3,014.90",,Payments to main contractor,,,,,,No
The Royal Borough of Kensington and Chelsea,RBKC,,Capital,Capital,,F.M Conway Ltd ,1231208,,,,04/02/2021,2200147908,"10,000.00",,Construction : enhancements,,,,,,No
The Royal Borough of Kensington and Chelsea,RBKC,,Capital,Capital,,F.M Conway Ltd ,1231208,,,,08/02/2021,2200148486,899.97,,Construction : enhancements,,,,,,No
The Royal Borough of Kensington and Chelsea,RBKC,,Capital,Capital,,F.M Conway Ltd ,1231208,,,,08/02/2021,2200148492,"3,406.77",,Construction : enhancements,,,,,,No
The Royal Borough of Kensington and Chelsea,RBKC,,Capital,Capital,,F.M Conway Ltd ,1231208,,,,08/02/2021,2200148494,"14,950.00",,Construction : enhancements,,,,,,No
The Royal Borough of Kensington and Chelsea,RBKC,,Capital,Capital,,F.M Conway Ltd ,1231208,,,,09/02/2021,2200148783,"3,934.70",,Payments to main contractor,,,,,,No
The Royal Borough of Kensington and Chelsea,RBKC,,Capital,Capital,,F.M Conway Ltd ,1231208,,,,15/02/2021,2200150040,"1,022.00",,Payments to main contractor,,,,,,No
The Royal Borough of Kensington and Chelsea,RBKC,,Capital,Capital,,F.M Conway Ltd ,1231208,,,,23/02/2021,2200151709,"2,248.40",,Payments to main contractor,,,,,,No
The Royal Borough of Kensington and Chelsea,RBKC,,Capital,Capital,,F.M Conway Ltd ,1231208,,,,23/02/2021,2200151714,"4,011.35",,Payments to main contractor,,,,,,No
The Royal Borough of Kensington and Chelsea,RBKC,,Capital,Capital,,F.M Conway Ltd ,1231208,,,,23/02/2021,2200151788,"4,386.86",,Payments to main contractor,,,,,,No
The Royal Borough of Kensington and Chelsea,RBKC,,Capital,Capital,,F.M Conway Ltd ,1231208,,,,01/03/2021,2200152933,"37,178.47",,Construction : enhancements,,,,,,No
The Royal Borough of Kensington and Chelsea,RBKC,,Capital,Capital,,F.M Conway Ltd ,1231208,,,,01/03/2021,2200152936,"5,985.10",,Construction : enhancements,,,,,,No
The Royal Borough of Kensington and Chelsea,RBKC,,Capital,Capital,,F.M Conway Ltd ,1231208,,,,02/03/2021,2200153240,"1,175.88",,Payments to main contractor,,,,,,No
The Royal Borough of Kensington and Chelsea,RBKC,,Capital,Capital,,F.M Conway Ltd ,1231208,,,,02/03/2021,2200153248,"1,396.36",,Payments to main contractor,,,,,,No
The Royal Borough of Kensington and Chelsea,RBKC,,Capital,Capital,,F.M Conway Ltd ,1231208,,,,04/03/2021,2200153836,"2,296.35",,Payments to main contractor,,,,,,No
The Royal Borough of Kensington and Chelsea,RBKC,,Capital,Capital,,F.M Conway Ltd ,1231208,,,,05/03/2021,2200154334,"19,166.67",,Payments to main contractor,,,,,,No
The Royal Borough of Kensington and Chelsea,RBKC,,Capital,Capital,,F.M Conway Ltd ,1231208,,,,05/03/2021,2200154335,"1,968.56",,Payments to main contractor,,,,,,No
The Royal Borough of Kensington and Chelsea,RBKC,,Capital,Capital,,F.M Conway Ltd ,1231208,,,,08/03/2021,2200154712,"20,000.00",,Construction : enhancements,,,,,,No
The Royal Borough of Kensington and Chelsea,RBKC,,Capital,Capital,,F.M Conway Ltd ,1231208,,,,08/03/2021,2200154713,"12,682.00",,Construction : enhancements,,,,,,No
The Royal Borough of Kensington and Chelsea,RBKC,,Capital,Capital,,F.M Conway Ltd ,1231208,,,,10/03/2021,2200155323,"2,292.27",,Payments to main contractor,,,,,,No
The Royal Borough of Kensington and Chelsea,RBKC,,Capital,Capital,,F.M Conway Ltd ,1231208,,,,15/03/2021,2200156241,"1,406.85",,Construction : enhancements,,,,,,No
The Royal Borough of Kensington and Chelsea,RBKC,,Capital,Capital,,F.M Conway Ltd ,1231208,,,,17/03/2021,2200157003,"2,580.55",,Payments to main contractor,,,,,,No
The Royal Borough of Kensington and Chelsea,RBKC,,Capital,Capital,,F.M Conway Ltd ,1231208,,,,22/03/2021,2200157930,"23,242.68",,Payments to main contractor,,,,,,No
The Royal Borough of Kensington and Chelsea,RBKC,,Capital,Capital,,F.M Conway Ltd ,1231208,,,,26/03/2021,2200159166,"35,000.00",,Construction : enhancements,,,,,,No
The Royal Borough of Kensington and Chelsea,RBKC,,Capital,Capital,,F.M Conway Ltd ,1231208,,,,26/03/2021,2200159268,"15,159.70",,Construction : enhancements,,,,,,No
The Royal Borough of Kensington and Chelsea,RBKC,,Capital,Capital,,F.M Conway Ltd ,1231208,,,,26/03/2021,2200159269,"7,686.00",,Construction : enhancements,,,,,,No
The Royal Borough of Kensington and Chelsea,RBKC,,Capital,Capital,,F.M Conway Ltd ,1231208,,,,31/03/2021,2200160565,"2,770.38",,Construction : enhancements,,,,,,No
The Royal Borough of Kensington and Chelsea,RBKC,,Capital,Capital,,F.M Conway Ltd ,1231208,,,,31/03/2021,2200160619,"33,953.83",,Payments to main contractor,,,,,,No
The Royal Borough of Kensington and Chelsea,RBKC,,Capital,Capital,,F.M Conway Ltd ,1231208,,,,01/04/2021,2200161756,"12,870.00",,Construction : enhancements,,,,,,No
The Royal Borough of Kensington and Chelsea,RBKC,,Capital,Capital,,F.M Conway Ltd ,1231208,,,,06/04/2021,2200161539,"38,564.69",,Construction : enhancements,,,,,,No
The Royal Borough of Kensington and Chelsea,RBKC,,Capital,Capital,,F.M Conway Ltd ,1231208,,,,06/04/2021,2200161543,"20,067.40",,Construction : enhancements,,,,,,No
The Royal Borough of Kensington and Chelsea,RBKC,,Capital,Capital,,F.M Conway Ltd ,1231208,,,,06/04/2021,2200161544,"7,962.00",,Construction : enhancements,,,,,,No
The Royal Borough of Kensington and Chelsea,RBKC,,Capital,Capital,,F.M Conway Ltd ,1231208,,,,06/04/2021,2200161546,"2,835.11",,Construction : enhancements,,,,,,No
The Royal Borough of Kensington and Chelsea,RBKC,,Capital,Capital,,F.M Conway Ltd ,1231208,,,,06/04/2021,2200161548,"11,321.80",,Construction : enhancements,,,,,,No
The Royal Borough of Kensington and Chelsea,RBKC,,Statutory and Corporate Items,Statutory Year-End Adjustments,,FES Support Services Ltd,1234410,,,,09/02/2021,2200148899,"3,971.61",,Creditors Control : AP GRIR,,,,,,No
The Royal Borough of Kensington and Chelsea,RBKC,,Capital,Capital,,Faithful and Gould Limited,1234387,,,,11/02/2021,2200149478,"74,650.00",,Professional Fees : Non Legal,,,,,,No
The Royal Borough of Kensington and Chelsea,RBKC,,Capital,Capital,,Faithful and Gould Limited,1234387,,,,24/02/2021,2200152152,"12,380.00",,Professional Fees : Non Legal,,,,,,No
The Royal Borough of Kensington and Chelsea,RBKC,,Capital,Capital,,Faithful and Gould Limited,1234387,,,,17/03/2021,2200156926,"32,963.50",,Professional Fees : Non Legal,,,,,,No
The Royal Borough of Kensington and Chelsea,RBKC,,Capital,Capital,,Faithful and Gould Limited,1234387,,,,29/03/2021,2200159687,"12,380.00",,Professional Fees : Non Legal,,,,,,No
The Royal Borough of Kensington and Chelsea,RBKC,,Capital,Capital,,Falck Fire Consulting Ltd ,1254122,,,,25/01/2021,2200145420,"63,865.93",,Professional Fees : Non Legal,,,,,,No
The Royal Borough of Kensington and Chelsea,RBKC,,Statutory and Corporate Items,Statutory Year-End Adjustments,,Frame Projects Ltd,1269840,,,,10/03/2021,2200155213,"4,500.00",,Creditors Control : AP GRIR,,,,,,No
The Royal Borough of Kensington and Chelsea,RBKC,,Statutory and Corporate Items,Statutory Year-End Adjustments,,Frame Projects Ltd,1269840,,,,11/03/2021,2200155729,"2,500.00",,Creditors Control : AP GRIR,,,,,,No
The Royal Borough of Kensington and Chelsea,RBKC,,Statutory and Corporate Items,Statutory Year-End Adjustments,,Frame Projects Ltd,1269840,,,,17/03/2021,2200156913,"4,500.00",,Creditors Control : AP GRIR,,,,,,No
The Royal Borough of Kensington and Chelsea,RBKC,,Capital,Capital,,Frame Projects Ltd,1269840,,,,07/04/2021,2200161959,"4,500.00",,Payments to main contractor,,,,,,No
The Royal Borough of Kensington and Chelsea,RBKC,,Statutory and Corporate Items,Statutory Year-End Adjustments,,Frankham Consultancy Group Ltd ,1234583,,,,06/01/2021,2200141579,"1,038.67",,Creditors Control : AP GRIR,,,,,,No
The Royal Borough of Kensington and Chelsea,RBKC,,Statutory and Corporate Items,Statutory Year-End Adjustments,,Frankham Consultancy Group Ltd ,1234583,,,,06/01/2021,2200141580,"1,038.67",,Creditors Control : AP GRIR,,,,,,No
The Royal Borough of Kensington and Chelsea,RBKC,,Capital,Capital,,Frankham Consultancy Group Ltd ,1234583,,,,08/01/2021,2200142277,612.00,,Payments to main contractor,,,,,,No
The Royal Borough of Kensington and Chelsea,RBKC,,Capital,Capital,,Frankham Consultancy Group Ltd ,1234583,,,,01/04/2021,2200162618,"1,710.00",,Payments to main contractor,,,,,,No
The Royal Borough of Kensington and Chelsea,RBKC,,Capital,Capital,,Freeway Lift Services Ltd ,1231213,,,,07/01/2021,2200141846,"6,890.00",,Payments to main contractor,,,,,,No
The Royal Borough of Kensington and Chelsea,RBKC,,Capital,Capital,,Freeway Lift Services Ltd ,1231213,,,,15/03/2021,2200156334,"6,405.00",,Payments to main contractor,,,,,,No
The Royal Borough of Kensington and Chelsea,RBKC,,Capital,Capital,,Freeway Lift Services Ltd ,1231213,,,,23/03/2021,2200158334,"20,462.00",,Payments to main contractor,,,,,,No
The Royal Borough of Kensington and Chelsea,RBKC,,Capital,Capital,,Furness Partnership Limited ,1256658,,,,09/02/2021,2200148728,"1,500.00",,Site Works,,,,,,No
The Royal Borough of Kensington and Chelsea,RBKC,,Capital,Capital,,Fusion Project Management Ltd,1268369,,,,08/02/2021,2200148412,"10,034.00",,Other Consultants,,,,,,No
The Royal Borough of Kensington and Chelsea,RBKC,,Capital,Capital,,Fusion Project Management Ltd,1268369,,,,08/02/2021,2200148414,"5,366.00",,Payments to main contractor,,,,,,No
The Royal Borough of Kensington and Chelsea,RBKC,,Capital,Capital,,Fusion Project Management Ltd,1268369,,,,05/03/2021,2200154217,"5,400.00",,Other Consultants,,,,,,No
The Royal Borough of Kensington and Chelsea,RBKC,,Capital,Capital,,Futurecity Limited,1274491,,,,01/04/2021,2200161796,"5,250.00",,Other Consultants,,,,,,No
The Royal Borough of Kensington and Chelsea,RBKC,,Capital,Capital,,Muscatt Walker Hayim,D000000023,,,,20/01/2021,3110260553,"497,135.12",,Acquisition of Land & Buildings,,,,,,No
The Royal Borough of Kensington and Chelsea,RBKC,,Capital,Capital,,Redact Details,D000000023,,,,26/02/2021,3110275542,"16,298.00",,Payments to main contractor,,,,,,No
The Royal Borough of Kensington and Chelsea,RBKC,,Capital,Capital,,Euro Car Parks,D000000023,,,,16/03/2021,3110286045,"3,221.75",,Payments to main contractor,,,,,,No
The Royal Borough of Kensington and Chelsea,RBKC,,Capital,Capital,,Winckworth Sherwood LLP,D000000023,,,,31/03/2021,3110292639,"3,480.00",,Legal Fees & expenses,,,,,,No
The Royal Borough of Kensington and Chelsea,RBKC,,Capital,Capital,,Fidler Associates Ltd,D000000023,,,,08/04/2021,3110293778,"2,935.00",,Professional Fees : Non Legal,,,,,,No
The Royal Borough of Kensington and Chelsea,RBKC,,Statutory and Corporate Items,Statutory Year-End Adjustments,,GGS Solutions Ltd ,1234644,,,,02/03/2021,2200153208,"11,760.00",,Creditors Control : AP GRIR,,,,,,No
The Royal Borough of Kensington and Chelsea,RBKC,,Capital,Capital,,GGS Solutions Ltd ,1234644,,,,24/03/2021,2200158555,"9,408.00",,Payments to main contractor,,,,,,No
The Royal Borough of Kensington and Chelsea,RBKC,,Capital,Capital,,GGS Solutions Ltd ,1234644,,,,24/03/2021,2200158558,"9,408.00",,Payments to main contractor,,,,,,No
The Royal Borough of Kensington and Chelsea,RBKC,,Statutory and Corporate Items,Statutory Year-End Adjustments,,GGS Solutions Ltd ,1234644,,,,01/04/2021,2200161404,"11,760.00",,Creditors Control : AP GRIR,,,,,,No
The Royal Borough of Kensington and Chelsea,RBKC,,Statutory and Corporate Items,Statutory Year-End Adjustments,,GGS Solutions Ltd ,1234644,,,,01/04/2021,2200161405,"11,088.00",,Creditors Control : AP GRIR,,,,,,No
The Royal Borough of Kensington and Chelsea,RBKC,,Statutory and Corporate Items,Statutory Year-End Adjustments,,GGS Solutions Ltd ,1234644,,,,01/04/2021,2200161826,"11,088.00",,Creditors Control : AP GRIR,,,,,,No
The Royal Borough of Kensington and Chelsea,RBKC,,Capital,Capital,,GGS Solutions Ltd ,1234644,,,,12/04/2021,2200163161,"10,416.00",,Payments to main contractor,,,,,,No
The Royal Borough of Kensington and Chelsea,RBKC,,Capital,Capital,,GGS Solutions Ltd ,1234644,,,,12/04/2021,2200163253,"10,416.00",,Payments to main contractor,,,,,,No
The Royal Borough of Kensington and Chelsea,RBKC,,Capital,Capital,,Gardiner & Theobald LLP ,1234613,,,,01/02/2021,2200146671,"4,500.00",,Other Consultants,,,,,,No
The Royal Borough of Kensington and Chelsea,RBKC,,Capital,Capital,,Gardiner & Theobald LLP ,1234613,,,,09/03/2021,2200155092,"4,500.00",,Other Consultants,,,,,,No
The Royal Borough of Kensington and Chelsea,RBKC,,Capital,Capital,,Gardiner & Theobald LLP ,1234613,,,,12/03/2021,2200156072,"17,720.00",,Payments to main contractor,,,,,,No
The Royal Borough of Kensington and Chelsea,RBKC,,Capital,Capital,,Gardiner & Theobald LLP ,1234613,,,,01/04/2021,2200160958,"8,860.00",,Payments to main contractor,,,,,,No
The Royal Borough of Kensington and Chelsea,RBKC,,Capital,Capital,,Gardiner & Theobald LLP ,1234613,,,,01/04/2021,2200161603,"4,500.00",,Other Consultants,,,,,,No
The Royal Borough of Kensington and Chelsea,RBKC,,Capital,Capital,,Garvey Bros Builders ,1234614,,,,07/01/2021,2200141842,"7,178.00",,Payments to main contractor,,,,,,No
The Royal Borough of Kensington and Chelsea,RBKC,,Capital,Capital,,Garvey Bros Builders ,1234614,,,,07/01/2021,2200141845,"7,977.00",,Payments to main contractor,,,,,,No
The Royal Borough of Kensington and Chelsea,RBKC,,Capital,Capital,,Garvey Bros Builders ,1234614,,,,26/01/2021,2200145755,"9,930.00",,Payments to main contractor,,,,,,No
The Royal Borough of Kensington and Chelsea,RBKC,,Capital,Capital,,Garvey Bros Builders ,1234614,,,,22/02/2021,2200151513,"8,111.00",,Payments to main contractor,,,,,,No
The Royal Borough of Kensington and Chelsea,RBKC,,Capital,Capital,,Garvey Bros Builders ,1234614,,,,22/02/2021,2200151514,"8,340.00",,Payments to main contractor,,,,,,No
The Royal Borough of Kensington and Chelsea,RBKC,,Capital,Capital,,Garvey Bros Builders ,1234614,,,,12/03/2021,2200156010,"7,741.00",,Payments to main contractor,,,,,,No
The Royal Borough of Kensington and Chelsea,RBKC,,Capital,Capital,,Garvey Bros Builders ,1234614,,,,01/04/2021,2200161660,"7,585.00",,Payments to main contractor,,,,,,No
The Royal Borough of Kensington and Chelsea,RBKC,,Capital,Capital,,Gas Contract Services Ltd ,1234618,,,,01/02/2021,2200146761,"7,240.00",,Professional Fees : Non Legal,,,,,,No
The Royal Borough of Kensington and Chelsea,RBKC,,Capital,Capital,,Gas Contract Services Ltd ,1234618,,,,06/04/2021,2200161578,"4,425.00",,Professional Fees : Non Legal,,,,,,No
The Royal Borough of Kensington and Chelsea,RBKC,,Capital,Capital,,Geotechnical and Environmental,1234639,,,,09/02/2021,2200148768,"25,357.00",,Other Consultants,,,,,,No
The Royal Borough of Kensington and Chelsea,RBKC,,Capital,Capital,,Geotechnical and Environmental,1234639,,,,16/03/2021,2200156544,"9,314.25",,Other Consultants,,,,,,No
The Royal Borough of Kensington and Chelsea,RBKC,,Capital,Capital,,Geotechnical and Environmental Asso,1277387,,,,31/03/2021,2200160734,950.00,,Payments to main contractor,,,,,,No
The Royal Borough of Kensington and Chelsea,RBKC,,Capital,Capital,,Gerda Security Products Ltd ,1234642,,,,07/01/2021,2200141847,764.54,,Payments to main contractor,,,,,,No
The Royal Borough of Kensington and Chelsea,RBKC,,Capital,Capital,,Gerda Security Products Ltd ,1234642,,,,14/01/2021,2200143256,"3,850.00",,Payments to main contractor,,,,,,No
The Royal Borough of Kensington and Chelsea,RBKC,,Capital,Capital,,Gerda Security Products Ltd ,1234642,,,,14/01/2021,2200143258,700.00,,Payments to main contractor,,,,,,No
The Royal Borough of Kensington and Chelsea,RBKC,,Capital,Capital,,Gerda Security Products Ltd ,1234642,,,,14/01/2021,2200143259,"2,450.00",,Payments to main contractor,,,,,,No
The Royal Borough of Kensington and Chelsea,RBKC,,Capital,Capital,,Gerda Security Products Ltd ,1234642,,,,14/01/2021,2200143260,700.00,,Payments to main contractor,,,,,,No
The Royal Borough of Kensington and Chelsea,RBKC,,Capital,Capital,,Gerda Security Products Ltd ,1234642,,,,14/01/2021,2200143261,"1,750.00",,Payments to main contractor,,,,,,No
The Royal Borough of Kensington and Chelsea,RBKC,,Capital,Capital,,Gerda Security Products Ltd ,1234642,,,,18/01/2021,2200143944,700.00,,Payments to main contractor,,,,,,No
The Royal Borough of Kensington and Chelsea,RBKC,,Capital,Capital,,Gerda Security Products Ltd ,1234642,,,,19/01/2021,2200144098,"1,783.88",,Payments to main contractor,,,,,,No
The Royal Borough of Kensington and Chelsea,RBKC,,Capital,Capital,,Gerda Security Products Ltd ,1234642,,,,19/01/2021,2200144099,"1,416.25",,Payments to main contractor,,,,,,No
The Royal Borough of Kensington and Chelsea,RBKC,,Capital,Capital,,Gerda Security Products Ltd ,1234642,,,,20/01/2021,2200144401,"25,996.51",,Payments to main contractor,,,,,,No
The Royal Borough of Kensington and Chelsea,RBKC,,Capital,Capital,,Gerda Security Products Ltd ,1234642,,,,20/01/2021,2200144406,"1,173.50",,Payments to main contractor,,,,,,No
The Royal Borough of Kensington and Chelsea,RBKC,,Capital,Capital,,Gerda Security Products Ltd ,1234642,,,,20/01/2021,2200144411,"7,700.00",,Payments to main contractor,,,,,,No
The Royal Borough of Kensington and Chelsea,RBKC,,Capital,Capital,,Gerda Security Products Ltd ,1234642,,,,20/01/2021,2200144412,813.72,,Payments to main contractor,,,,,,No
The Royal Borough of Kensington and Chelsea,RBKC,,Capital,Capital,,Gerda Security Products Ltd ,1234642,,,,20/01/2021,2200144418,847.85,,Payments to main contractor,,,,,,No
The Royal Borough of Kensington and Chelsea,RBKC,,Capital,Capital,,Gerda Security Products Ltd ,1234642,,,,05/02/2021,2200148159,"10,534.00",,Payments to main contractor,,,,,,No
The Royal Borough of Kensington and Chelsea,RBKC,,Capital,Capital,,Gerda Security Products Ltd ,1234642,,,,11/02/2021,2200149391,"1,698.60",,Payments to main contractor,,,,,,No
The Royal Borough of Kensington and Chelsea,RBKC,,Capital,Capital,,Gerda Security Products Ltd ,1234642,,,,11/02/2021,2200149392,"2,026.06",,Payments to main contractor,,,,,,No
The Royal Borough of Kensington and Chelsea,RBKC,,Capital,Capital,,Gerda Security Products Ltd ,1234642,,,,11/02/2021,2200149393,"1,337.03",,Payments to main contractor,,,,,,No
The Royal Borough of Kensington and Chelsea,RBKC,,Capital,Capital,,Gerda Security Products Ltd ,1234642,,,,11/02/2021,2200149396,"1,400.00",,Payments to main contractor,,,,,,No
The Royal Borough of Kensington and Chelsea,RBKC,,Capital,Capital,,Gerda Security Products Ltd ,1234642,,,,11/02/2021,2200149401,700.00,,Payments to main contractor,,,,,,No
The Royal Borough of Kensington and Chelsea,RBKC,,Capital,Capital,,Gerda Security Products Ltd ,1234642,,,,15/02/2021,2200150076,"7,234.49",,Payments to main contractor,,,,,,No
The Royal Borough of Kensington and Chelsea,RBKC,,Capital,Capital,,Gerda Security Products Ltd ,1234642,,,,15/02/2021,2200150077,700.00,,Payments to main contractor,,,,,,No
The Royal Borough of Kensington and Chelsea,RBKC,,Capital,Capital,,Gerda Security Products Ltd ,1234642,,,,15/02/2021,2200150079,"9,450.00",,Payments to main contractor,,,,,,No
The Royal Borough of Kensington and Chelsea,RBKC,,Capital,Capital,,Gerda Security Products Ltd ,1234642,,,,19/02/2021,2200151009,"12,600.00",,Payments to main contractor,,,,,,No
The Royal Borough of Kensington and Chelsea,RBKC,,Capital,Capital,,Gerda Security Products Ltd ,1234642,,,,24/02/2021,2200152076,"3,378.12",,Payments to main contractor,,,,,,No
The Royal Borough of Kensington and Chelsea,RBKC,,Capital,Capital,,Gerda Security Products Ltd ,1234642,,,,25/02/2021,2200152415,"7,234.49",,Payments to main contractor,,,,,,No
The Royal Borough of Kensington and Chelsea,RBKC,,Capital,Capital,,Gerda Security Products Ltd ,1234642,,,,25/02/2021,2200152416,"2,450.00",,Payments to main contractor,,,,,,No
The Royal Borough of Kensington and Chelsea,RBKC,,Capital,Capital,,Gerda Security Products Ltd ,1234642,,,,25/02/2021,2200152418,"2,100.00",,Payments to main contractor,,,,,,No
The Royal Borough of Kensington and Chelsea,RBKC,,Capital,Capital,,Gerda Security Products Ltd ,1234642,,,,25/02/2021,2200152419,700.00,,Payments to main contractor,,,,,,No
The Royal Borough of Kensington and Chelsea,RBKC,,Capital,Capital,,Gerda Security Products Ltd ,1234642,,,,25/02/2021,2200152421,"1,695.70",,Payments to main contractor,,,,,,No
The Royal Borough of Kensington and Chelsea,RBKC,,Capital,Capital,,Gerda Security Products Ltd ,1234642,,,,01/03/2021,2200152740,780.00,,Payments to main contractor,,,,,,No
The Royal Borough of Kensington and Chelsea,RBKC,,Capital,Capital,,Gerda Security Products Ltd ,1234642,,,,01/03/2021,2200152908,"1,946.66",,Payments to main contractor,,,,,,No
The Royal Borough of Kensington and Chelsea,RBKC,,Capital,Capital,,Gerda Security Products Ltd ,1234642,,,,02/03/2021,2200153275,"3,783.00",,Payments to main contractor,,,,,,No
The Royal Borough of Kensington and Chelsea,RBKC,,Capital,Capital,,Gerda Security Products Ltd ,1234642,,,,02/03/2021,2200153346,"7,700.00",,Payments to main contractor,,,,,,No
The Royal Borough of Kensington and Chelsea,RBKC,,Capital,Capital,,Gerda Security Products Ltd ,1234642,,,,02/03/2021,2200153347,"1,050.00",,Payments to main contractor,,,,,,No
The Royal Borough of Kensington and Chelsea,RBKC,,Capital,Capital,,Gerda Security Products Ltd ,1234642,,,,02/03/2021,2200153350,"1,050.00",,Payments to main contractor,,,,,,No
The Royal Borough of Kensington and Chelsea,RBKC,,Capital,Capital,,Gerda Security Products Ltd ,1234642,,,,02/03/2021,2200153352,"2,100.00",,Payments to main contractor,,,,,,No
The Royal Borough of Kensington and Chelsea,RBKC,,Capital,Capital,,Gerda Security Products Ltd ,1234642,,,,02/03/2021,2200153354,"1,050.00",,Payments to main contractor,,,,,,No
The Royal Borough of Kensington and Chelsea,RBKC,,Capital,Capital,,Gerda Security Products Ltd ,1234642,,,,02/03/2021,2200153355,"4,550.00",,Payments to main contractor,,,,,,No
The Royal Borough of Kensington and Chelsea,RBKC,,Capital,Capital,,Gerda Security Products Ltd ,1234642,,,,02/03/2021,2200153357,700.00,,Payments to main contractor,,,,,,No
The Royal Borough of Kensington and Chelsea,RBKC,,Capital,Capital,,Gerda Security Products Ltd ,1234642,,,,02/03/2021,2200153412,"14,385.01",,Payments to main contractor,,,,,,No
The Royal Borough of Kensington and Chelsea,RBKC,,Capital,Capital,,Gerda Security Products Ltd ,1234642,,,,02/03/2021,2200153413,"21,901.57",,Payments to main contractor,,,,,,No
The Royal Borough of Kensington and Chelsea,RBKC,,Capital,Capital,,Gerda Security Products Ltd ,1234642,,,,05/03/2021,2200154376,"1,558.62",,Payments to main contractor,,,,,,No
The Royal Borough of Kensington and Chelsea,RBKC,,Capital,Capital,,Gerda Security Products Ltd ,1234642,,,,05/03/2021,2200154380,"2,325.00",,Payments to main contractor,,,,,,No
The Royal Borough of Kensington and Chelsea,RBKC,,Capital,Capital,,Gerda Security Products Ltd ,1234642,,,,09/03/2021,2200154966,"9,044.64",,Payments to main contractor,,,,,,No
The Royal Borough of Kensington and Chelsea,RBKC,,Capital,Capital,,Gerda Security Products Ltd ,1234642,,,,09/03/2021,2200154967,"3,893.32",,Payments to main contractor,,,,,,No
The Royal Borough of Kensington and Chelsea,RBKC,,Capital,Capital,,Gerda Security Products Ltd ,1234642,,,,10/03/2021,2200155202,"17,054.12",,Payments to main contractor,,,,,,No
The Royal Borough of Kensington and Chelsea,RBKC,,Capital,Capital,,Gerda Security Products Ltd ,1234642,,,,10/03/2021,2200155203,"22,729.15",,Payments to main contractor,,,,,,No
The Royal Borough of Kensington and Chelsea,RBKC,,Capital,Capital,,Gerda Security Products Ltd ,1234642,,,,10/03/2021,2200155204,"42,209.99",,Payments to main contractor,,,,,,No
The Royal Borough of Kensington and Chelsea,RBKC,,Capital,Capital,,Gerda Security Products Ltd ,1234642,,,,10/03/2021,2200155205,"20,922.97",,Payments to main contractor,,,,,,No
The Royal Borough of Kensington and Chelsea,RBKC,,Capital,Capital,,Gerda Security Products Ltd ,1234642,,,,12/03/2021,2200155998,"1,405.57",,Payments to main contractor,,,,,,No
The Royal Borough of Kensington and Chelsea,RBKC,,Capital,Capital,,Gerda Security Products Ltd ,1234642,,,,12/03/2021,2200156001,"1,398.90",,Payments to main contractor,,,,,,No
The Royal Borough of Kensington and Chelsea,RBKC,,Capital,Capital,,Gerda Security Products Ltd ,1234642,,,,12/03/2021,2200156002,"1,248.47",,Payments to main contractor,,,,,,No
The Royal Borough of Kensington and Chelsea,RBKC,,Capital,Capital,,Gerda Security Products Ltd ,1234642,,,,15/03/2021,2200156325,"1,428.73",,Payments to main contractor,,,,,,No
The Royal Borough of Kensington and Chelsea,RBKC,,Capital,Capital,,Gerda Security Products Ltd ,1234642,,,,23/03/2021,2200158390,"9,998.64",,Payments to main contractor,,,,,,No
The Royal Borough of Kensington and Chelsea,RBKC,,Capital,Capital,,Gerda Security Products Ltd ,1234642,,,,23/03/2021,2200158407,"20,837.94",,Payments to main contractor,,,,,,No
The Royal Borough of Kensington and Chelsea,RBKC,,Capital,Capital,,Gerda Security Products Ltd ,1234642,,,,23/03/2021,2200158408,"25,182.95",,Payments to main contractor,,,,,,No
The Royal Borough of Kensington and Chelsea,RBKC,,Capital,Capital,,Gerda Security Products Ltd ,1234642,,,,23/03/2021,2200158412,"12,475.98",,Payments to main contractor,,,,,,No
The Royal Borough of Kensington and Chelsea,RBKC,,Capital,Capital,,Gerda Security Products Ltd ,1234642,,,,23/03/2021,2200158413,"17,469.32",,Payments to main contractor,,,,,,No
The Royal Borough of Kensington and Chelsea,RBKC,,Capital,Capital,,Gerda Security Products Ltd ,1234642,,,,25/03/2021,2200158880,"1,050.00",,Construction : enhancements,,,,,,No
The Royal Borough of Kensington and Chelsea,RBKC,,Capital,Capital,,Gerda Security Products Ltd ,1234642,,,,25/03/2021,2200158970,"23,283.18",,Payments to main contractor,,,,,,No
The Royal Borough of Kensington and Chelsea,RBKC,,Capital,Capital,,Gerda Security Products Ltd ,1234642,,,,29/03/2021,2200159604,"85,229.29",,Payments to main contractor,,,,,,No
The Royal Borough of Kensington and Chelsea,RBKC,,Capital,Capital,,Gerda Security Products Ltd ,1234642,,,,29/03/2021,2200159759,"2,428.00",,Payments to main contractor,,,,,,No
The Royal Borough of Kensington and Chelsea,RBKC,,Capital,Capital,,Gerda Security Products Ltd ,1234642,,,,01/04/2021,2200161187,"6,530.51",,Payments to main contractor,,,,,,No
The Royal Borough of Kensington and Chelsea,RBKC,,Capital,Capital,,Gerda Security Products Ltd ,1234642,,,,01/04/2021,2200161218,"87,061.84",,Payments to main contractor,,,,,,No
The Royal Borough of Kensington and Chelsea,RBKC,,Statutory and Corporate Items,Statutory Year-End Adjustments,,Gerda Security Products Ltd ,1234642,,,,01/04/2021,2200163351,"1,649.89",,Creditors Control : AP GRIR,,,,,,No
The Royal Borough of Kensington and Chelsea,RBKC,,Capital,Capital,,Gerda Security Products Ltd ,1234642,,,,09/04/2021,2200162828,"6,300.00",,Payments to main contractor,,,,,,No
The Royal Borough of Kensington and Chelsea,RBKC,,Capital,Capital,,Gerda Security Products Ltd ,1234642,,,,09/04/2021,2200162829,"7,000.00",,Payments to main contractor,,,,,,No
The Royal Borough of Kensington and Chelsea,RBKC,,Capital,Capital,,Gerda Security Products Ltd ,1234642,,,,09/04/2021,2200162847,700.00,,Payments to main contractor,,,,,,No
The Royal Borough of Kensington and Chelsea,RBKC,,Capital,Capital,,Gerda Security Products Ltd ,1234642,,,,12/04/2021,2200163273,"14,700.00",,Payments to main contractor,,,,,,No
The Royal Borough of Kensington and Chelsea,RBKC,,Capital,Capital,,Gradient Consultants Ltd ,1230354,,,,03/02/2021,2200147385,750.00,,Payments to main contractor,,,,,,No
The Royal Borough of Kensington and Chelsea,RBKC,,Capital,Capital,,Greenacre Recruitment,1258089,,,,04/01/2021,2200141143,"2,100.00",,Capitalised salaries,,,,,,No
The Royal Borough of Kensington and Chelsea,RBKC,,Capital,Capital,,Greenacre Recruitment,1258089,,,,12/01/2021,2200142899,550.00,,Capitalised salaries,,,,,,No
The Royal Borough of Kensington and Chelsea,RBKC,,Capital,Capital,,Greenacre Recruitment,1258089,,,,20/01/2021,2200144303,"2,625.00",,Capitalised salaries,,,,,,No
The Royal Borough of Kensington and Chelsea,RBKC,,Capital,Capital,,Greenacre Recruitment,1258089,,,,20/01/2021,2200144309,"1,575.00",,Capitalised salaries,,,,,,No
The Royal Borough of Kensington and Chelsea,RBKC,,Capital,Capital,,Greenacre Recruitment,1258089,,,,21/01/2021,2200144655,712.50,,Capitalised salaries,,,,,,No
The Royal Borough of Kensington and Chelsea,RBKC,,Capital,Capital,,Greenacre Recruitment,1258089,,,,21/01/2021,2200144658,900.00,,Capitalised salaries,,,,,,No
The Royal Borough of Kensington and Chelsea,RBKC,,Capital,Capital,,Greenacre Recruitment,1258089,,,,22/01/2021,2200145078,"2,625.00",,Capitalised salaries,,,,,,No
The Royal Borough of Kensington and Chelsea,RBKC,,Capital,Capital,,Greenacre Recruitment,1258089,,,,28/01/2021,2200146158,"2,625.00",,Capitalised salaries,,,,,,No
The Royal Borough of Kensington and Chelsea,RBKC,,Capital,Capital,,Greenacre Recruitment,1258089,,,,09/02/2021,2200148862,"2,625.00",,Capitalised salaries,,,,,,No
The Royal Borough of Kensington and Chelsea,RBKC,,Capital,Capital,,Greenacre Recruitment,1258089,,,,12/02/2021,2200149670,"2,625.00",,Capitalised salaries,,,,,,No
The Royal Borough of Kensington and Chelsea,RBKC,,Capital,Capital,,Greenacre Recruitment,1258089,,,,26/02/2021,2200152581,"2,625.00",,Capitalised salaries,,,,,,No
The Royal Borough of Kensington and Chelsea,RBKC,,Capital,Capital,,Greenacre Recruitment,1258089,,,,26/02/2021,2200152582,"2,625.00",,Capitalised salaries,,,,,,No
The Royal Borough of Kensington and Chelsea,RBKC,,Capital,Capital,,Greenacre Recruitment,1258089,,,,10/03/2021,2200155223,"2,625.00",,Capitalised salaries,,,,,,No
The Royal Borough of Kensington and Chelsea,RBKC,,Capital,Capital,,Greenacre Recruitment,1258089,,,,17/03/2021,2200156901,"2,625.00",,Capitalised salaries,,,,,,No
The Royal Borough of Kensington and Chelsea,RBKC,,Capital,Capital,,Greenacre Recruitment,1258089,,,,01/04/2021,2200163215,"2,625.00",,Capitalised salaries,,,,,,No
The Royal Borough of Kensington and Chelsea,RBKC,,Capital,Capital,,Greenacre Recruitment,1258089,,,,12/04/2021,2200163209,"2,625.00",,Capitalised salaries,,,,,,No
The Royal Borough of Kensington and Chelsea,RBKC,,Capital,Capital,,Greenacre Recruitment,1258089,,,,13/04/2021,2200163442,"2,625.00",,Capitalised salaries,,,,,,No
The Royal Borough of Kensington and Chelsea,RBKC,,Capital,Capital,,Greenacre Recruitment,1258089,,,,13/04/2021,2200163443,"2,100.00",,Capitalised salaries,,,,,,No
The Royal Borough of Kensington and Chelsea,RBKC,,Capital,Capital,,Greengauge Building Energy Consulta,1272376,,,,15/01/2021,2200143526,"1,730.00",,Other Consultants,,,,,,No
The Royal Borough of Kensington and Chelsea,RBKC,,Capital,Capital,,Greenwich Leisure Ltd (Gll) ,1234678,,,,26/01/2021,2200145662,"199,275.00",,Health and Safety Alterations,,,,,,No
The Royal Borough of Kensington and Chelsea,RBKC,,Capital,Capital,,Greenwich Leisure Ltd (Gll) ,1234678,,,,23/02/2021,2200151894,"151,692.00",,Construction : enhancements,,,,,,No
The Royal Borough of Kensington and Chelsea,RBKC,,Statutory and Corporate Items,Statutory Year-End Adjustments,,Greenwich Leisure Ltd (Gll) ,1234678,,,,14/04/2021,2200163754,"149,130.00",,Creditors Control : AP GRIR,,,,,,No
The Royal Borough of Kensington and Chelsea,RBKC,,Capital,Capital,,Guarding UK Ltd ,1230372,,,,18/01/2021,2200143971,"3,503.97",,Construction : enhancements,,,,,,No
The Royal Borough of Kensington and Chelsea,RBKC,,Capital,Capital,,Guarding UK Ltd ,1230372,,,,19/01/2021,2200144159,"2,834.00",,Construction : enhancements,,,,,,No
The Royal Borough of Kensington and Chelsea,RBKC,,Capital,Capital,,Guarding UK Ltd ,1230372,,,,16/02/2021,2200150237,"3,503.97",,Payments to main contractor,,,,,,No
The Royal Borough of Kensington and Chelsea,RBKC,,Statutory and Corporate Items,Statutory Year-End Adjustments,,Guarding UK Ltd ,1230372,,,,17/03/2021,2200156910,"2,834.00",,Creditors Control : AP GRIR,,,,,,No
The Royal Borough of Kensington and Chelsea,RBKC,,Statutory and Corporate Items,Statutory Year-End Adjustments,,Guarding UK Ltd ,1230372,,,,18/03/2021,2200157136,"3,504.00",,Creditors Control : AP GRIR,,,,,,No
The Royal Borough of Kensington and Chelsea,RBKC,,Capital,Capital,,Guarding UK Ltd ,1230372,,,,09/04/2021,2200162555,"2,834.00",,Payments to main contractor,,,,,,No
The Royal Borough of Kensington and Chelsea,RBKC,,Capital,Capital,,Guarding UK Ltd ,1230372,,,,09/04/2021,2200162556,"2,834.00",,Payments to main contractor,,,,,,No
The Royal Borough of Kensington and Chelsea,RBKC,,Capital,Capital,,Guideline Lift Services Ltd ,1231219,,,,05/01/2021,2200141368,"2,352.00",,Professional Fees : Non Legal,,,,,,No
The Royal Borough of Kensington and Chelsea,RBKC,,Capital,Capital,,Guideline Lift Services Ltd ,1231219,,,,21/01/2021,2200144779,"45,023.86",,Payments to main contractor,,,,,,No
The Royal Borough of Kensington and Chelsea,RBKC,,Capital,Capital,,Guideline Lift Services Ltd ,1231219,,,,21/01/2021,2200144781,592.00,,Payments to main contractor,,,,,,No
The Royal Borough of Kensington and Chelsea,RBKC,,Capital,Capital,,Guideline Lift Services Ltd ,1231219,,,,01/02/2021,2200146779,"52,053.65",,Payments to main contractor,,,,,,No
The Royal Borough of Kensington and Chelsea,RBKC,,Capital,Capital,,Guideline Lift Services Ltd ,1231219,,,,08/02/2021,2200148654,"36,983.88",,Payments to main contractor,,,,,,No
The Royal Borough of Kensington and Chelsea,RBKC,,Capital,Capital,,Guideline Lift Services Ltd ,1231219,,,,08/02/2021,2200148655,"33,583.00",,Payments to main contractor,,,,,,No
The Royal Borough of Kensington and Chelsea,RBKC,,Capital,Capital,,Guideline Lift Services Ltd ,1231219,,,,10/03/2021,2200155550,"40,199.87",,Payments to main contractor,,,,,,No
The Royal Borough of Kensington and Chelsea,RBKC,,Capital,Capital,,Guideline Lift Services Ltd ,1231219,,,,10/03/2021,2200155551,"47,016.20",,Payments to main contractor,,,,,,No
The Royal Borough of Kensington and Chelsea,RBKC,,Capital,Capital,,Guideline Lift Services Ltd ,1231219,,,,06/04/2021,2200161567,"20,149.80",,Payments to main contractor,,,,,,No
The Royal Borough of Kensington and Chelsea,RBKC,,Capital,Capital,,Guideline Lift Services Ltd ,1231219,,,,06/04/2021,2200161568,"29,378.35",,Payments to main contractor,,,,,,No
The Royal Borough of Kensington and Chelsea,RBKC,,Capital,Capital,,Guideline Lift Services Ltd ,1231219,,,,06/04/2021,2200161569,"16,419.80",,Payments to main contractor,,,,,,No
The Royal Borough of Kensington and Chelsea,RBKC,,Capital,Capital,,Guideline Lift Services Ltd ,1231219,,,,06/04/2021,2200161570,"24,119.92",,Payments to main contractor,,,,,,No
The Royal Borough of Kensington and Chelsea,RBKC,,Capital,Capital,,HM Revenue & Customs (Stamp duty),1230805,,,,04/01/2021,3110254018,"20,200.00",,Stamp Duty Liability Tax,,,,,,No
The Royal Borough of Kensington and Chelsea,RBKC,,Capital,Capital,,HM Revenue & Customs (Stamp duty),1230805,,,,24/02/2021,3110275419,"14,940.00",,Stamp Duty Liability Tax,,,,,,No
The Royal Borough of Kensington and Chelsea,RBKC,,Capital,Capital,,HYDRO-X AIR LTD,1273721,,,,15/01/2021,2200143528,"9,300.00",,Payments to main contractor,,,,,,No
The Royal Borough of Kensington and Chelsea,RBKC,,Capital,Capital,,Hall & Kay,1268157,,,,28/01/2021,2200146139,616.00,,Professional Fees : Non Legal,,,,,,No
The Royal Borough of Kensington and Chelsea,RBKC,,Capital,Capital,,Hall & Kay,1268157,,,,28/01/2021,2200146171,"5,000.00",,Professional Fees : Non Legal,,,,,,No
The Royal Borough of Kensington and Chelsea,RBKC,,Capital,Capital,,Hall & Kay,1268157,,,,08/02/2021,2200148656,"60,125.00",,Payments to main contractor,,,,,,No
The Royal Borough of Kensington and Chelsea,RBKC,,Capital,Capital,,Hardie Secure Products Ltd ,1234694,,,,21/01/2021,2200144685,"1,104.00",,Payments to main contractor,,,,,,No
The Royal Borough of Kensington and Chelsea,RBKC,,Capital,Capital,,Harrisons Electrical Services,1272994,,,,25/02/2021,2200152252,"1,290.00",,Payments to main contractor,,,,,,No
The Royal Borough of Kensington and Chelsea,RBKC,,Statutory and Corporate Items,Statutory Year-End Adjustments,,Harrisons Electrical Services,1272994,,,,12/03/2021,2200156095,"1,469.00",,Creditors Control : AP GRIR,,,,,,No
The Royal Borough of Kensington and Chelsea,RBKC,,Capital,Capital,,Haven Memorials,1273974,,,,04/01/2021,2200141004,"6,735.00",,Payments to main contractor,,,,,,No
The Royal Borough of Kensington and Chelsea,RBKC,,Statutory and Corporate Items,Statutory Year-End Adjustments,,Haven Memorials,1273974,,,,12/01/2021,2200142868,"3,400.00",,Creditors Control : AP GRIR,,,,,,No
The Royal Borough of Kensington and Chelsea,RBKC,,Capital,Capital,,Hays Specialist Recruitment Ltd ,1234704,,,,04/01/2021,2200141127,544.98,,Capitalised salaries,,,,,,No
The Royal Borough of Kensington and Chelsea,RBKC,,Capital,Capital,,Hays Specialist Recruitment Ltd ,1234704,,,,04/01/2021,2200141129,908.30,,Capitalised salaries,,,,,,No
The Royal Borough of Kensington and Chelsea,RBKC,,Capital,Capital,,Hays Specialist Recruitment Ltd ,1234704,,,,04/01/2021,2200141130,908.30,,Capitalised salaries,,,,,,No
The Royal Borough of Kensington and Chelsea,RBKC,,Capital,Capital,,Hays Specialist Recruitment Ltd ,1234704,,,,13/01/2021,2200143016,908.30,,Capitalised salaries,,,,,,No
The Royal Borough of Kensington and Chelsea,RBKC,,Capital,Capital,,Hays Specialist Recruitment Ltd ,1234704,,,,26/01/2021,2200145681,908.30,,Capitalised salaries,,,,,,No
The Royal Borough of Kensington and Chelsea,RBKC,,Capital,Capital,,Hays Specialist Recruitment Ltd ,1234704,,,,26/01/2021,2200145682,908.30,,Capitalised salaries,,,,,,No
The Royal Borough of Kensington and Chelsea,RBKC,,Capital,Capital,,Hays Specialist Recruitment Ltd ,1234704,,,,04/02/2021,2200147900,"1,009.10",,Capitalised salaries,,,,,,No
The Royal Borough of Kensington and Chelsea,RBKC,,Capital,Capital,,Hays Specialist Recruitment Ltd ,1234704,,,,12/02/2021,2200149625,"1,009.10",,Capitalised salaries,,,,,,No
The Royal Borough of Kensington and Chelsea,RBKC,,Capital,Capital,,Hays Specialist Recruitment Ltd ,1234704,,,,16/02/2021,2200150402,"1,009.10",,Capitalised salaries,,,,,,No
The Royal Borough of Kensington and Chelsea,RBKC,,Capital,Capital,,Hays Specialist Recruitment Ltd ,1234704,,,,23/02/2021,2200151900,"1,009.10",,Capitalised salaries,,,,,,No
The Royal Borough of Kensington and Chelsea,RBKC,,Capital,Capital,,Hays Specialist Recruitment Ltd ,1234704,,,,04/03/2021,2200153963,"1,040.05",,Capitalised salaries,,,,,,No
The Royal Borough of Kensington and Chelsea,RBKC,,Capital,Capital,,Hays Specialist Recruitment Ltd ,1234704,,,,15/03/2021,2200156260,"1,275.00",,Professional Fees : Non Legal,,,,,,No
The Royal Borough of Kensington and Chelsea,RBKC,,Capital,Capital,,Hays Specialist Recruitment Ltd ,1234704,,,,16/03/2021,2200156675,"1,040.05",,Capitalised salaries,,,,,,No
The Royal Borough of Kensington and Chelsea,RBKC,,Capital,Capital,,Hays Specialist Recruitment Ltd ,1234704,,,,22/03/2021,2200157958,"1,040.05",,Capitalised salaries,,,,,,No
The Royal Borough of Kensington and Chelsea,RBKC,,Capital,Capital,,Hays Specialist Recruitment Ltd ,1234704,,,,26/03/2021,2200159284,"1,040.05",,Capitalised salaries,,,,,,No
The Royal Borough of Kensington and Chelsea,RBKC,,Capital,Capital,,Hays Specialist Recruitment Ltd ,1234704,,,,01/04/2021,2200161015,"1,040.05",,Capitalised salaries,,,,,,No
The Royal Borough of Kensington and Chelsea,RBKC,,Capital,Capital,,Hays Specialist Recruitment Ltd ,1234704,,,,01/04/2021,2200161226,"1,040.05",,Capitalised salaries,,,,,,No
The Royal Borough of Kensington and Chelsea,RBKC,,Capital,Capital,,Hays Specialist Recruitment Ltd ,1234704,,,,13/04/2021,2200163459,"1,040.05",,Capitalised salaries,,,,,,No
The Royal Borough of Kensington and Chelsea,RBKC,,Capital,Capital,,Helix Construct Limited,1270811,,,,10/02/2021,2200149002,"31,162.04",,Payments to main contractor,,,,,,No
The Royal Borough of Kensington and Chelsea,RBKC,,Capital,Capital,,Helix Construct Limited,1270811,,,,09/04/2021,2200162553,"91,411.73",,Payments to main contractor,,,,,,No
The Royal Borough of Kensington and Chelsea,RBKC,,Capital,Capital,,Henry Riley LLP ,1230402,,,,15/03/2021,2200156291,"16,250.00",,Payments to main contractor,,,,,,No
The Royal Borough of Kensington and Chelsea,RBKC,,Capital,Capital,,Henry Riley LLP ,1230402,,,,01/04/2021,2200162600,"10,050.00",,Payments to main contractor,,,,,,No
The Royal Borough of Kensington and Chelsea,RBKC,,Capital,Capital,,Higham Flat Roofing Ltd ,1252605,,,,12/01/2021,2200142905,"73,970.27",,Planned Maintenance (CM),,,,,,No
The Royal Borough of Kensington and Chelsea,RBKC,,Capital,Capital,,Higham Flat Roofing Ltd ,1252605,,,,12/01/2021,2200142906,"26,971.00",,Planned Maintenance (CM),,,,,,No
The Royal Borough of Kensington and Chelsea,RBKC,,Capital,Capital,,Higham Flat Roofing Ltd ,1252605,,,,09/02/2021,2200148876,"40,308.75",,Planned Maintenance (CM),,,,,,No
The Royal Borough of Kensington and Chelsea,RBKC,,Statutory and Corporate Items,Statutory Year-End Adjustments,,Higham Flat Roofing Ltd ,1252605,,,,16/03/2021,2200156606,"3,884.00",,Creditors Control : AP GRIR,,,,,,No
The Royal Borough of Kensington and Chelsea,RBKC,,Capital,Capital,,Higham Flat Roofing Ltd ,1252605,,,,16/03/2021,2200156647,"1,880.00",,Planned Maintenance (CM),,,,,,No
The Royal Borough of Kensington and Chelsea,RBKC,,Capital,Capital,,Holland Park Secondary School ,1236080,,,,29/03/2021,3110290091,"20,162.55",,Computer Equipment,,,,,,No
The Royal Borough of Kensington and Chelsea,RBKC,,Capital,Capital,,Holy Trinity School ,1236081,,,,24/02/2021,3110275414,"4,141.00",,Computer Equipment,,,,,,No
The Royal Borough of Kensington and Chelsea,RBKC,,Capital,Capital,,Holy Trinity School ,1236081,,,,25/02/2021,2200152166,"18,668.57",,Payments to main contractor,,,,,,No
The Royal Borough of Kensington and Chelsea,RBKC,,Capital,Capital,,Hornimans Adventure Playground ,1234741,,,,01/03/2021,2200152970,"24,000.00",,Payments to main contractor,,,,,,No
The Royal Borough of Kensington and Chelsea,RBKC,,Statutory and Corporate Items,Statutory Year-End Adjustments,,Hunters and Partners Ltd ,1254860,,,,15/03/2021,2200156261,"4,275.00",,Creditors Control : AP GRIR,,,,,,No
The Royal Borough of Kensington and Chelsea,RBKC,,Statutory and Corporate Items,Statutory Year-End Adjustments,,Hunters and Partners Ltd ,1254860,,,,23/03/2021,2200158115,560.00,,Creditors Control : AP GRIR,,,,,,No
The Royal Borough of Kensington and Chelsea,RBKC,,Statutory and Corporate Items,Statutory Year-End Adjustments,,Hunters and Partners Ltd ,1254860,,,,23/03/2021,2200158385,"1,675.00",,Creditors Control : AP GRIR,,,,,,No
The Royal Borough of Kensington and Chelsea,RBKC,,Statutory and Corporate Items,Statutory Year-End Adjustments,,Hydrop E.C.S ,1253145,,,,25/03/2021,2200158899,"4,950.00",,Creditors Control : AP GRIR,,,,,,No
The Royal Borough of Kensington and Chelsea,RBKC,,Capital,Capital,,INSITE ENERGY LIMITED,1273497,,,,26/01/2021,2200145680,"2,005.00",,Special Maintenance,,,,,,No
The Royal Borough of Kensington and Chelsea,RBKC,,Capital,Capital,,INSITE ENERGY LIMITED,1273497,,,,24/03/2021,2200158603,"1,530.00",,Special Maintenance,,,,,,No
The Royal Borough of Kensington and Chelsea,RBKC,,Capital,Capital,,INSITE ENERGY LIMITED,1273497,,,,09/04/2021,2200162586,"13,566.00",,Special Maintenance,,,,,,No
The Royal Borough of Kensington and Chelsea,RBKC,,Capital,Capital,,Idverde Ltd ,1231380,,,,22/01/2021,2200145031,"20,929.00",,Construction : enhancements,,,,,,No
The Royal Borough of Kensington and Chelsea,RBKC,,Capital,Capital,,Idverde Ltd ,1231380,,,,31/03/2021,2200160495,"2,083.00",,Site Works,,,,,,No
The Royal Borough of Kensington and Chelsea,RBKC,,Capital,Capital,,Idverde Ltd ,1231380,,,,31/03/2021,2200160678,"2,396.00",,Construction : enhancements,,,,,,No
The Royal Borough of Kensington and Chelsea,RBKC,,Capital,Capital,,Idverde Ltd ,1231380,,,,31/03/2021,2200160690,"25,648.00",,Construction : enhancements,,,,,,No
The Royal Borough of Kensington and Chelsea,RBKC,,Capital,Capital,,Idverde Ltd ,1231380,,,,07/04/2021,2200161841,"2,500.00",,Site Works,,,,,,No
The Royal Borough of Kensington and Chelsea,RBKC,,Capital,Capital,,Idverde Ltd ,1231380,,,,08/04/2021,2200162424,"12,468.00",,Construction : enhancements,,,,,,No
The Royal Borough of Kensington and Chelsea,RBKC,,Capital,Capital,,Ignas Ltd,1275887,,,,05/03/2021,2200154397,"24,534.00",,Construction : enhancements,,,,,,No
The Royal Borough of Kensington and Chelsea,RBKC,,Statutory and Corporate Items,Statutory Year-End Adjustments,,Ignas Ltd,1275887,,,,01/04/2021,2200160811,"11,725.00",,Creditors Control : AP GRIR,,,,,,No
The Royal Borough of Kensington and Chelsea,RBKC,,Capital,Capital,,Ignas Ltd,1275887,,,,01/04/2021,2200161637,"8,434.00",,Site Works,,,,,,No
The Royal Borough of Kensington and Chelsea,RBKC,,Capital,Capital,,Ignas Ltd,1275887,,,,01/04/2021,2200161638,"3,995.00",,Site Works,,,,,,No
The Royal Borough of Kensington and Chelsea,RBKC,,Capital,Capital,,Indigo Lodge Limited T/A Drayton Fencing,1231381,,,,08/03/2021,2200154684,"1,075.00",,Site Works,,,,,,No
The Royal Borough of Kensington and Chelsea,RBKC,,Capital,Capital,,Indigo Lodge Limited T/A Drayton Fencing,1231381,,,,08/03/2021,2200154685,"8,476.00",,Site Works,,,,,,No
The Royal Borough of Kensington and Chelsea,RBKC,,Statutory and Corporate Items,Statutory Year-End Adjustments,,Indigo Lodge Limited T/A Drayton Fencing,1231381,,,,01/04/2021,2200160823,656.00,,Creditors Control : AP GRIR,,,,,,No
The Royal Borough of Kensington and Chelsea,RBKC,,Statutory and Corporate Items,Statutory Year-End Adjustments,,Intelligent Catering Limited,1274043,,,,17/03/2021,2200156920,"1,738.00",,Creditors Control : AP GRIR,,,,,,No
The Royal Borough of Kensington and Chelsea,RBKC,,Statutory and Corporate Items,Statutory Year-End Adjustments,,J & J Topgrade Ltd ,1234807,,,,07/01/2021,2200141828,975.00,,Creditors Control : AP GRIR,,,,,,No
The Royal Borough of Kensington and Chelsea,RBKC,,Statutory and Corporate Items,Statutory Year-End Adjustments,,J & J Topgrade Ltd ,1234807,,,,26/03/2021,2200159267,718.50,,Creditors Control : AP GRIR,,,,,,No
The Royal Borough of Kensington and Chelsea,RBKC,,Statutory and Corporate Items,Statutory Year-End Adjustments,,JH Crawford Security Ltd ,1234817,,,,26/01/2021,2200145594,637.00,,Creditors Control : AP GRIR,,,,,,No
The Royal Borough of Kensington and Chelsea,RBKC,,Statutory and Corporate Items,Statutory Year-End Adjustments,,JH Crawford Security Ltd ,1234817,,,,08/02/2021,2200148525,"1,355.00",,Creditors Control : AP GRIR,,,,,,No
The Royal Borough of Kensington and Chelsea,RBKC,,Statutory and Corporate Items,Statutory Year-End Adjustments,,JH Crawford Security Ltd ,1234817,,,,09/03/2021,2200155090,866.00,,Creditors Control : AP GRIR,,,,,,No
The Royal Borough of Kensington and Chelsea,RBKC,,Statutory and Corporate Items,Statutory Year-End Adjustments,,JH Crawford Security Ltd ,1234817,,,,26/03/2021,2200159155,"1,779.56",,Creditors Control : AP GRIR,,,,,,No
The Royal Borough of Kensington and Chelsea,RBKC,,Statutory and Corporate Items,Statutory Year-End Adjustments,,JH Crawford Security Ltd ,1234817,,,,31/03/2021,2200160550,602.00,,Creditors Control : AP GRIR,,,,,,No
The Royal Borough of Kensington and Chelsea,RBKC,,Capital,Capital,,Jackson Coles LLP ,1230491,,,,28/01/2021,2200146117,"3,189.00",,Other Consultants,,,,,,No
The Royal Borough of Kensington and Chelsea,RBKC,,Capital,Capital,,Jackson Coles LLP ,1230491,,,,03/02/2021,2200147404,785.08,,Other Consultants,,,,,,No
The Royal Borough of Kensington and Chelsea,RBKC,,Capital,Capital,,Jackson Coles LLP ,1230491,,,,24/02/2021,2200152086,"3,189.00",,Other Consultants,,,,,,No
The Royal Borough of Kensington and Chelsea,RBKC,,Capital,Capital,,Jackson Coles LLP ,1230491,,,,09/03/2021,2200154915,785.07,,Other Consultants,,,,,,No
The Royal Borough of Kensington and Chelsea,RBKC,,Capital,Capital,,Jackson Coles LLP ,1230491,,,,23/03/2021,2200158348,"3,189.00",,Other Consultants,,,,,,No
The Royal Borough of Kensington and Chelsea,RBKC,,Capital,Capital,,Jackson Coles LLP ,1230491,,,,01/04/2021,2200160944,785.07,,Other Consultants,,,,,,No
The Royal Borough of Kensington and Chelsea,RBKC,,Capital,Capital,,Redact Details,1277228,,,,17/03/2021,2200157070,"8,487.50",,Design Consultant,,,,,,No
The Royal Borough of Kensington and Chelsea,RBKC,,Capital,Capital,,Redact Details,1277228,,,,17/03/2021,2200157071,"4,462.50",,Design Consultant,,,,,,No
The Royal Borough of Kensington and Chelsea,RBKC,,Capital,Capital,,Jj Integrated Solutions Ltd ,1234819,,,,23/02/2021,2200151698,"24,830.00",,Planned Maintenance (CM),,,,,,No
The Royal Borough of Kensington and Chelsea,RBKC,,Capital,Capital,,John McAslan & Partners Limited ,1254281,,,,23/02/2021,2200151650,"6,250.00",,Payments to main contractor,,,,,,No
The Royal Borough of Kensington and Chelsea,RBKC,,Capital,Capital,,John McAslan & Partners Limited ,1254281,,,,23/02/2021,2200151651,"6,250.00",,Payments to main contractor,,,,,,No
The Royal Borough of Kensington and Chelsea,RBKC,,Capital,Capital,,John McAslan & Partners Limited ,1254281,,,,23/02/2021,2200151652,"4,000.00",,Payments to main contractor,,,,,,No
The Royal Borough of Kensington and Chelsea,RBKC,,Capital,Capital,,John McAslan & Partners Limited ,1254281,,,,23/02/2021,2200151653,"7,250.00",,Payments to main contractor,,,,,,No
The Royal Borough of Kensington and Chelsea,RBKC,,Capital,Capital,,John McAslan & Partners Limited ,1254281,,,,23/02/2021,2200151654,"7,250.00",,Payments to main contractor,,,,,,No
The Royal Borough of Kensington and Chelsea,RBKC,,Capital,Capital,,K & T Heating Services Ltd ,1231384,,,,08/01/2021,2200142298,"35,707.69",,Payments to main contractor,,,,,,No
The Royal Borough of Kensington and Chelsea,RBKC,,Capital,Capital,,K & T Heating Services Ltd ,1231384,,,,12/01/2021,2200142913,"9,164.31",,Payments to main contractor,,,,,,No
The Royal Borough of Kensington and Chelsea,RBKC,,Capital,Capital,,K & T Heating Services Ltd ,1231384,,,,08/02/2021,2200148653,"29,306.24",,Payments to main contractor,,,,,,No
The Royal Borough of Kensington and Chelsea,RBKC,,Capital,Capital,,K & T Heating Services Ltd ,1231384,,,,11/02/2021,2200149283,"53,483.46",,Payments to main contractor,,,,,,No
The Royal Borough of Kensington and Chelsea,RBKC,,Capital,Capital,,K & T Heating Services Ltd ,1231384,,,,10/03/2021,2200155553,"92,145.24",,Payments to main contractor,,,,,,No
The Royal Borough of Kensington and Chelsea,RBKC,,Capital,Capital,,K & T Heating Services Ltd ,1231384,,,,12/03/2021,2200156096,"7,465.60",,Payments to main contractor,,,,,,No
The Royal Borough of Kensington and Chelsea,RBKC,,Capital,Capital,,K & T Heating Services Ltd ,1231384,,,,12/03/2021,2200156097,"7,329.43",,Payments to main contractor,,,,,,No
The Royal Borough of Kensington and Chelsea,RBKC,,Capital,Capital,,K & T Heating Services Ltd ,1231384,,,,01/04/2021,2200162592,"20,112.00",,Payments to main contractor,,,,,,No
The Royal Borough of Kensington and Chelsea,RBKC,,Capital,Capital,,K & T Heating Services Ltd ,1231384,,,,06/04/2021,2200161665,"7,025.95",,Payments to main contractor,,,,,,No
The Royal Borough of Kensington and Chelsea,RBKC,,Capital,Capital,,K & T Heating Services Ltd ,1231384,,,,06/04/2021,2200161667,"7,465.60",,Payments to main contractor,,,,,,No
The Royal Borough of Kensington and Chelsea,RBKC,,Capital,Capital,,K & T Heating Services Ltd ,1231384,,,,06/04/2021,2200161668,"7,329.43",,Payments to main contractor,,,,,,No
The Royal Borough of Kensington and Chelsea,RBKC,,Capital,Capital,,K & T Heating Services Ltd ,1231384,,,,08/04/2021,2200162255,"1,658.00",,Payments to main contractor,,,,,,No
The Royal Borough of Kensington and Chelsea,RBKC,,Capital,Capital,,K & T Heating Services Ltd ,1231384,,,,09/04/2021,2200162827,"74,534.25",,Payments to main contractor,,,,,,No
The Royal Borough of Kensington and Chelsea,RBKC,,Capital,Capital,,K & T Heating Services Ltd ,1231384,,,,13/04/2021,2200163573,"11,102.00",,Payments to main contractor,,,,,,No
The Royal Borough of Kensington and Chelsea,RBKC,,Capital,Capital,,Kaner Olette Limited T/a Kaner Olette Architects,1234833,,,,11/01/2021,2200142486,"4,170.00",,Payments to main contractor,,,,,,No
The Royal Borough of Kensington and Chelsea,RBKC,,Capital,Capital,,Kaner Olette Limited T/a Kaner Olette Architects,1234833,,,,12/01/2021,2200142912,"3,725.90",,Payments to main contractor,,,,,,No
The Royal Borough of Kensington and Chelsea,RBKC,,Capital,Capital,,Karakusevic Carson Architects LLP,1273973,,,,18/01/2021,2200143958,"125,000.00",,Payments to main contractor,,,,,,No
The Royal Borough of Kensington and Chelsea,RBKC,,Capital,Capital,,Karakusevic Carson Architects LLP,1273973,,,,28/01/2021,2200146159,"125,000.00",,Payments to main contractor,,,,,,No
The Royal Borough of Kensington and Chelsea,RBKC,,Capital,Capital,,Karakusevic Carson Architects LLP,1273973,,,,02/02/2021,2200147100,"17,469.00",,Payments to main contractor,,,,,,No
The Royal Borough of Kensington and Chelsea,RBKC,,Capital,Capital,,Karakusevic Carson Architects LLP,1273973,,,,24/02/2021,2200152089,"125,000.00",,Payments to main contractor,,,,,,No
The Royal Borough of Kensington and Chelsea,RBKC,,Capital,Capital,,Karakusevic Carson Architects LLP,1273973,,,,01/03/2021,2200152978,"9,683.00",,Payments to main contractor,,,,,,No
The Royal Borough of Kensington and Chelsea,RBKC,,Capital,Capital,,Karakusevic Carson Architects LLP,1273973,,,,03/03/2021,2200153524,"125,000.00",,Payments to main contractor,,,,,,No
The Royal Borough of Kensington and Chelsea,RBKC,,Capital,Capital,,Karakusevic Carson Architects LLP,1273973,,,,13/04/2021,2200163481,"115,000.00",,Payments to main contractor,,,,,,No
The Royal Borough of Kensington and Chelsea,RBKC,,Capital,Capital,,Karakusevic Carson Architects LLP,1273973,,,,14/04/2021,2200163709,"19,368.00",,Payments to main contractor,,,,,,No
The Royal Borough of Kensington and Chelsea,RBKC,,Capital,Capital,,Kensington Aldridge Academy ,1236084,,,,24/02/2021,3110275412,"15,699.42",,Computer Equipment,,,,,,No
The Royal Borough of Kensington and Chelsea,RBKC,,Capital,Capital,,Kensington Aldridge Academy ,1236084,,,,11/03/2021,3110283296,"41,577.03",,Computer Equipment,,,,,,No
The Royal Borough of Kensington and Chelsea,RBKC,,Capital,Capital,,Kensington Primary Academy ,1236087,,,,11/03/2021,3110283289,"3,037.00",,Computer Equipment,,,,,,No
The Royal Borough of Kensington and Chelsea,RBKC,,Capital,Capital,,Landmark Environmental Ltd,1272305,,,,21/01/2021,2200144683,"14,954.00",,Other Consultants,,,,,,No
The Royal Borough of Kensington and Chelsea,RBKC,,Capital,Capital,,Landmark Environmental Ltd,1272305,,,,02/03/2021,2200153289,"13,407.00",,Other Consultants,,,,,,No
The Royal Borough of Kensington and Chelsea,RBKC,,Capital,Capital,,Landmark Environmental Ltd,1272305,,,,18/03/2021,2200157176,"4,329.00",,Other Consultants,,,,,,No
The Royal Borough of Kensington and Chelsea,RBKC,,Capital,Capital,,Landmark Environmental Ltd,1272305,,,,14/04/2021,2200163743,"3,814.00",,Other Consultants,,,,,,No
The Royal Borough of Kensington and Chelsea,RBKC,,Capital,Capital,,Landmark Environmental Ltd,1272305,,,,14/04/2021,2200163764,"3,393.00",,Other Consultants,,,,,,No
The Royal Borough of Kensington and Chelsea,RBKC,,Capital,Capital,,Landrock Phillips Ltd ,1230566,,,,14/01/2021,2200143330,"1,500.00",,Payments to main contractor,,,,,,No
The Royal Borough of Kensington and Chelsea,RBKC,,Capital,Capital,,Landrock Phillips Ltd ,1230566,,,,26/03/2021,2200159245,750.00,,Payments to main contractor,,,,,,No
The Royal Borough of Kensington and Chelsea,RBKC,,Statutory and Corporate Items,Statutory Year-End Adjustments,,Landrock Phillips Ltd ,1230566,,,,07/04/2021,2200161877,"1,125.00",,Creditors Control : AP GRIR,,,,,,No
The Royal Borough of Kensington and Chelsea,RBKC,,Capital,Capital,,Lawtech Group Ltd,1273996,,,,17/02/2021,2200150623,"10,003.79",,Professional Fees : Non Legal,,,,,,No
The Royal Borough of Kensington and Chelsea,RBKC,,Capital,Capital,,Lawtech Group Ltd,1273996,,,,19/02/2021,2200151145,"7,999.97",,Professional Fees : Non Legal,,,,,,No
The Royal Borough of Kensington and Chelsea,RBKC,,Capital,Capital,,Lawtech Group Ltd,1273996,,,,05/03/2021,2200154293,"1,274.21",,Professional Fees : Non Legal,,,,,,No
The Royal Borough of Kensington and Chelsea,RBKC,,Capital,Capital,,Lawtech Group Ltd,1273996,,,,22/03/2021,2200157950,"2,413.28",,Professional Fees : Non Legal,,,,,,No
The Royal Borough of Kensington and Chelsea,RBKC,,Capital,Capital,,Lend Lease Consulting (Emea) Ltd ,1234899,,,,01/02/2021,2200146670,"8,687.00",,Construction : enhancements,,,,,,No
The Royal Borough of Kensington and Chelsea,RBKC,,Capital,Capital,,Lend Lease Consulting (Emea) Ltd ,1234899,,,,09/03/2021,2200154942,"8,687.00",,Construction : enhancements,,,,,,No
The Royal Borough of Kensington and Chelsea,RBKC,,Capital,Capital,,Liberty Adaptations Ltd,1277725,,,,25/03/2021,2200159057,"7,202.00",,Payments to main contractor,,,,,,No
The Royal Borough of Kensington and Chelsea,RBKC,,Capital,Capital,,Lindab,1276681,,,,11/02/2021,2200149242,709.24,,Special Maintenance,,,,,,No
The Royal Borough of Kensington and Chelsea,RBKC,,Capital,Capital,,Lindab,1276681,,,,11/02/2021,2200149248,625.34,,Special Maintenance,,,,,,No
The Royal Borough of Kensington and Chelsea,RBKC,,Capital,Capital,,Lindab,1276681,,,,11/02/2021,2200149273,"2,450.59",,Special Maintenance,,,,,,No
The Royal Borough of Kensington and Chelsea,RBKC,,Capital,Capital,,London Borough Of Haringey (General Account),1231804,,,,25/01/2021,2200145403,"15,486.64",,Payments to main contractor,,,,,,No
The Royal Borough of Kensington and Chelsea,RBKC,,Capital,Capital,,London Fire Solutions LLP ,1231392,,,,27/01/2021,2200145842,"3,699.25",,Payments to main contractor,,,,,,No
The Royal Borough of Kensington and Chelsea,RBKC,,Capital,Capital,,London Fire Solutions LLP ,1231392,,,,27/01/2021,2200145851,"11,799.04",,Payments to main contractor,,,,,,No
The Royal Borough of Kensington and Chelsea,RBKC,,Capital,Capital,,London Fire Solutions LLP ,1231392,,,,27/01/2021,2200145852,"70,747.40",,Payments to main contractor,,,,,,No
The Royal Borough of Kensington and Chelsea,RBKC,,Capital,Capital,,London Fire Solutions LLP ,1231392,,,,28/01/2021,2200146047,"153,911.15",,Payments to main contractor,,,,,,No
The Royal Borough of Kensington and Chelsea,RBKC,,Capital,Capital,,London Fire Solutions LLP ,1231392,,,,23/03/2021,2200158409,"39,342.18",,Payments to main contractor,,,,,,No
The Royal Borough of Kensington and Chelsea,RBKC,,Capital,Capital,,London Fire Solutions LLP ,1231392,,,,13/04/2021,2200163401,"1,696.00",,Payments to main contractor,,,,,,No
The Royal Borough of Kensington and Chelsea,RBKC,,Capital,Capital,,London Fire Solutions LLP ,1231392,,,,13/04/2021,2200163568,"21,364.80",,Payments to main contractor,,,,,,No
The Royal Borough of Kensington and Chelsea,RBKC,,Capital,Capital,,London Fire Solutions LLP ,1231392,,,,14/04/2021,2200163695,"2,669.00",,Construction : new asset,,,,,,No
The Royal Borough of Kensington and Chelsea,RBKC,,Statutory and Corporate Items,Statutory Year-End Adjustments,,Redact Details,1231393,,,,05/02/2021,2200148164,"1,710.00",,Creditors Control : AP GRIR,,,,,,No
The Royal Borough of Kensington and Chelsea,RBKC,,Capital,Capital,,MA Cost Consulting Ltd,1230640,,,,19/01/2021,2200144120,"1,725.00",,Payments to main contractor,,,,,,No
The Royal Borough of Kensington and Chelsea,RBKC,,Capital,Capital,,MA Cost Consulting Ltd,1230640,,,,21/01/2021,2200144833,"2,000.00",,Payments to main contractor,,,,,,No
The Royal Borough of Kensington and Chelsea,RBKC,,Capital,Capital,,MA Cost Consulting Ltd,1230640,,,,21/01/2021,2200144838,500.00,,Payments to main contractor,,,,,,No
The Royal Borough of Kensington and Chelsea,RBKC,,Capital,Capital,,MDA Consulting Limited ,1234989,,,,19/01/2021,2200144096,858.00,,Professional Fees : Non Legal,,,,,,No
The Royal Borough of Kensington and Chelsea,RBKC,,Capital,Capital,,MDA Consulting Limited ,1234989,,,,21/01/2021,2200144828,528.00,,Payments to main contractor,,,,,,No
The Royal Borough of Kensington and Chelsea,RBKC,,Capital,Capital,,MDA Consulting Limited ,1234989,,,,27/01/2021,2200145919,"3,762.00",,Other Consultants,,,,,,No
The Royal Borough of Kensington and Chelsea,RBKC,,Capital,Capital,,MDA Consulting Limited ,1234989,,,,28/01/2021,2200146071,"2,552.00",,Surveyors,,,,,,No
The Royal Borough of Kensington and Chelsea,RBKC,,Capital,Capital,,MDA Consulting Limited ,1234989,,,,01/02/2021,2200146669,"1,232.00",,Professional Fees : Non Legal,,,,,,No
The Royal Borough of Kensington and Chelsea,RBKC,,Capital,Capital,,MDA Consulting Limited ,1234989,,,,01/02/2021,2200146713,"1,100.00",,Other Consultants,,,,,,No
The Royal Borough of Kensington and Chelsea,RBKC,,Capital,Capital,,MDA Consulting Limited ,1234989,,,,10/02/2021,2200149105,704.00,,Payments to main contractor,,,,,,No
The Royal Borough of Kensington and Chelsea,RBKC,,Capital,Capital,,MDA Consulting Limited ,1234989,,,,03/03/2021,2200153581,"1,738.00",,Professional Fees : Non Legal,,,,,,No
The Royal Borough of Kensington and Chelsea,RBKC,,Capital,Capital,,MDA Consulting Limited ,1234989,,,,10/03/2021,2200155222,880.00,,Other Consultants,,,,,,No
The Royal Borough of Kensington and Chelsea,RBKC,,Capital,Capital,,MDA Consulting Limited ,1234989,,,,22/03/2021,2200157909,616.00,,Payments to main contractor,,,,,,No
The Royal Borough of Kensington and Chelsea,RBKC,,Capital,Capital,,MDA Consulting Limited ,1234989,,,,27/03/2021,2200159497,880.00,,Other Consultants,,,,,,No
The Royal Borough of Kensington and Chelsea,RBKC,,Capital,Capital,,MDA Consulting Limited ,1234989,,,,06/04/2021,2200161605,"1,760.00",,Professional Fees : Non Legal,,,,,,No
The Royal Borough of Kensington and Chelsea,RBKC,,Capital,Capital,,MEC London Ltd ,1231398,,,,12/01/2021,2200142908,"20,000.00",,Planned Maintenance (CM),,,,,,No
The Royal Borough of Kensington and Chelsea,RBKC,,Capital,Capital,,MEC London Ltd ,1231398,,,,17/02/2021,2200150568,"13,085.00",,Planned Maintenance (CM),,,,,,No
The Royal Borough of Kensington and Chelsea,RBKC,,Capital,Capital,,MMM Architects Ltd,1259041,,,,03/02/2021,2200147371,"1,500.00",,Payments to sub contractor,,,,,,No
The Royal Borough of Kensington and Chelsea,RBKC,,Capital,Capital,,MMM Architects Ltd,1259041,,,,15/03/2021,2200156292,"1,500.00",,Payments to sub contractor,,,,,,No
The Royal Borough of Kensington and Chelsea,RBKC,,Statutory and Corporate Items,Statutory Year-End Adjustments,,MMM Architects Ltd,1259041,,,,01/04/2021,2200161407,"1,500.00",,Creditors Control : AP GRIR,,,,,,No
The Royal Borough of Kensington and Chelsea,RBKC,,Capital,Capital,,Mace Limited ,1230643,,,,06/01/2021,2200141782,"1,302,758.78",,Construction : enhancements,,,,,,No
The Royal Borough of Kensington and Chelsea,RBKC,,Capital,Capital,,Mace Limited ,1230643,,,,18/01/2021,2200143922,"60,804.56",,Payments to main contractor,,,,,,No
The Royal Borough of Kensington and Chelsea,RBKC,,Capital,Capital,,Mace Limited ,1230643,,,,22/02/2021,2200151381,"1,391,885.75",,Construction : enhancements,,,,,,No
The Royal Borough of Kensington and Chelsea,RBKC,,Capital,Capital,,Mace Limited ,1230643,,,,23/03/2021,2200158326,"1,496,508.82",,Construction : enhancements,,,,,,No
The Royal Borough of Kensington and Chelsea,RBKC,,Capital,Capital,,Mace Limited ,1230643,,,,12/04/2021,2200163176,"1,582,180.73",,Construction : enhancements,,,,,,No
The Royal Borough of Kensington and Chelsea,RBKC,,Capital,Capital,,Mango Projects Ltd,1276042,,,,22/01/2021,2200145070,750.00,,Special Maintenance,,,,,,No
The Royal Borough of Kensington and Chelsea,RBKC,,Capital,Capital,,Mango Projects Ltd,1276042,,,,22/01/2021,2200145071,500.00,,Special Maintenance,,,,,,No
The Royal Borough of Kensington and Chelsea,RBKC,,Capital,Capital,,Mango Projects Ltd,1276042,,,,22/01/2021,2200145073,564.41,,Special Maintenance,,,,,,No
The Royal Borough of Kensington and Chelsea,RBKC,,Capital,Capital,,Maracom Limited ,1255577,,,,09/02/2021,2200148752,"2,268.00",,Construction : enhancements,,,,,,No
The Royal Borough of Kensington and Chelsea,RBKC,,Capital,Capital,,Marks Consulting Partners Limited,1274728,,,,04/01/2021,2200141057,960.00,,Capitalised salaries,,,,,,No
The Royal Borough of Kensington and Chelsea,RBKC,,Capital,Capital,,Marks Consulting Partners Limited,1274728,,,,07/01/2021,2200141857,720.00,,Capitalised salaries,,,,,,No
The Royal Borough of Kensington and Chelsea,RBKC,,Capital,Capital,,Marks Consulting Partners Limited,1274728,,,,13/01/2021,2200143079,"1,200.00",,Capitalised salaries,,,,,,No
The Royal Borough of Kensington and Chelsea,RBKC,,Capital,Capital,,Marks Consulting Partners Limited,1274728,,,,21/01/2021,2200144644,"1,240.00",,Capitalised salaries,,,,,,No
The Royal Borough of Kensington and Chelsea,RBKC,,Capital,Capital,,Marks Consulting Partners Limited,1274728,,,,01/02/2021,2200146712,"1,200.00",,Capitalised salaries,,,,,,No
The Royal Borough of Kensington and Chelsea,RBKC,,Capital,Capital,,Marks Consulting Partners Limited,1274728,,,,03/02/2021,2200147549,"1,204.88",,Capitalised salaries,,,,,,No
The Royal Borough of Kensington and Chelsea,RBKC,,Capital,Capital,,Marks Consulting Partners Limited,1274728,,,,10/02/2021,2200149057,"1,200.00",,Capitalised salaries,,,,,,No
The Royal Borough of Kensington and Chelsea,RBKC,,Capital,Capital,,Marks Consulting Partners Limited,1274728,,,,18/02/2021,2200150944,"1,200.00",,Capitalised salaries,,,,,,No
The Royal Borough of Kensington and Chelsea,RBKC,,Capital,Capital,,Marks Consulting Partners Limited,1274728,,,,04/03/2021,2200153879,"1,260.00",,Capitalised salaries,,,,,,No
The Royal Borough of Kensington and Chelsea,RBKC,,Capital,Capital,,Marks Consulting Partners Limited,1274728,,,,04/03/2021,2200153895,"1,200.00",,Capitalised salaries,,,,,,No
The Royal Borough of Kensington and Chelsea,RBKC,,Capital,Capital,,Marks Consulting Partners Limited,1274728,,,,11/03/2021,2200155841,"1,200.00",,Capitalised salaries,,,,,,No
The Royal Borough of Kensington and Chelsea,RBKC,,Capital,Capital,,Marks Consulting Partners Limited,1274728,,,,26/03/2021,2200159242,"1,200.00",,Capitalised salaries,,,,,,No
The Royal Borough of Kensington and Chelsea,RBKC,,Capital,Capital,,Marks Consulting Partners Limited,1274728,,,,26/03/2021,2200159289,"1,200.00",,Capitalised salaries,,,,,,No
The Royal Borough of Kensington and Chelsea,RBKC,,Capital,Capital,,Marks Consulting Partners Limited,1274728,,,,31/03/2021,2200160592,960.00,,Capitalised salaries,,,,,,No
The Royal Borough of Kensington and Chelsea,RBKC,,Capital,Capital,,Marks Consulting Partners Limited,1274728,,,,09/04/2021,2200162805,960.00,,Capitalised salaries,,,,,,No
The Royal Borough of Kensington and Chelsea,RBKC,,Statutory and Corporate Items,Statutory Year-End Adjustments,,Master Locking Systems Ltd,1262396,,,,25/01/2021,2200145433,"1,196.87",,Creditors Control : AP GRIR,,,,,,No
The Royal Borough of Kensington and Chelsea,RBKC,,Statutory and Corporate Items,Statutory Year-End Adjustments,,Master Locking Systems Ltd,1262396,,,,08/02/2021,2200148335,"1,145.00",,Creditors Control : AP GRIR,,,,,,No
The Royal Borough of Kensington and Chelsea,RBKC,,Statutory and Corporate Items,Statutory Year-End Adjustments,,Master Locking Systems Ltd,1262396,,,,26/03/2021,2200159132,661.24,,Creditors Control : AP GRIR,,,,,,No
The Royal Borough of Kensington and Chelsea,RBKC,,Statutory and Corporate Items,Statutory Year-End Adjustments,,Master Locking Systems Ltd,1262396,,,,01/04/2021,2200161557,865.49,,Creditors Control : AP GRIR,,,,,,No
The Royal Borough of Kensington and Chelsea,RBKC,,Capital,Capital,,Meristem Design Limited,1259153,,,,17/03/2021,2200156988,"9,494.00",,Special Maintenance,,,,,,No
The Royal Borough of Kensington and Chelsea,RBKC,,Capital,Capital,,Michael Dyson Associates Ltd ,1253270,,,,15/03/2021,2200156250,"29,478.40",,Professional Fees : Non Legal,,,,,,No
The Royal Borough of Kensington and Chelsea,RBKC,,Capital,Capital,,Michael Dyson Associates Ltd ,1253270,,,,15/03/2021,2200156254,"12,633.60",,Professional Fees : Non Legal,,,,,,No
The Royal Borough of Kensington and Chelsea,RBKC,,Capital,Capital,,Michael Page International Recruitment Ltd,1235002,,,,06/01/2021,2200141736,521.20,,Payments to main contractor,,,,,,No
The Royal Borough of Kensington and Chelsea,RBKC,,Capital,Capital,,Michael Page International Recruitment Ltd,1235002,,,,13/01/2021,2200143083,781.80,,Payments to main contractor,,,,,,No
The Royal Borough of Kensington and Chelsea,RBKC,,Capital,Capital,,Michael Page International Recruitment Ltd,1235002,,,,21/01/2021,2200144687,781.80,,Payments to main contractor,,,,,,No
The Royal Borough of Kensington and Chelsea,RBKC,,Capital,Capital,,Mobilitybase Ltd,1275234,,,,18/01/2021,2200143794,893.36,,Payments to main contractor,,,,,,No
The Royal Borough of Kensington and Chelsea,RBKC,,Capital,Capital,,Montagu Evans LLP ,1230713,,,,18/01/2021,2200143921,"1,000.00",,Other Consultants,,,,,,No
The Royal Borough of Kensington and Chelsea,RBKC,,Capital,Capital,,Montagu Evans LLP ,1230713,,,,09/02/2021,2200148748,"1,410.49",,Payments to main contractor,,,,,,No
The Royal Borough of Kensington and Chelsea,RBKC,,Capital,Capital,,Montagu Evans LLP ,1230713,,,,13/04/2021,2200163475,"2,400.00",,Payments to main contractor,,,,,,No
The Royal Borough of Kensington and Chelsea,RBKC,,Capital,Capital,,Morgan Sindall Construction,1260362,,,,16/03/2021,2200156639,"26,364.54",,Payments to main contractor,,,,,,No
The Royal Borough of Kensington and Chelsea,RBKC,,Capital,Capital,,Morgan Sindall Construction,1260362,,,,16/03/2021,2200156640,"38,978.70",,Payments to main contractor,,,,,,No
The Royal Borough of Kensington and Chelsea,RBKC,,Capital,Capital,,Mulalley & Company Ltd ,1231403,,,,01/04/2021,2200163119,"42,814.36",,Payments to main contractor,,,,,,No
The Royal Borough of Kensington and Chelsea,RBKC,,Capital,Capital,,Munns Ltd,1231404,,,,23/02/2021,2200151895,"2,723.00",,Construction : enhancements,,,,,,No
The Royal Borough of Kensington and Chelsea,RBKC,,Capital,Capital,,Murrill Construction Ltd ,1231405,,,,04/03/2021,2200153840,762.25,,Payments to main contractor,,,,,,No
The Royal Borough of Kensington and Chelsea,RBKC,,Capital,Capital,,Murrill Construction Ltd ,1231405,,,,05/03/2021,2200154085,"1,225.00",,Construction : enhancements,,,,,,No
The Royal Borough of Kensington and Chelsea,RBKC,,Capital,Capital,,NCW Associates Ltd T/A SVM Associates,1230750,,,,18/02/2021,2200150839,"7,990.00",,Planned Maintenance (CM),,,,,,No
The Royal Borough of Kensington and Chelsea,RBKC,,Capital,Capital,,NCW Associates Ltd T/A SVM Associates,1230750,,,,09/03/2021,2200154973,"2,500.00",,Planned Maintenance (CM),,,,,,No
The Royal Borough of Kensington and Chelsea,RBKC,,Capital,Capital,,NCW Associates Ltd T/A SVM Associates,1230750,,,,23/03/2021,2200158345,"1,000.00",,Planned Maintenance (CM),,,,,,No
The Royal Borough of Kensington and Chelsea,RBKC,,Capital,Capital,,NCW Associates Ltd T/A SVM Associates,1230750,,,,23/03/2021,2200158346,"1,400.00",,Planned Maintenance (CM),,,,,,No
The Royal Borough of Kensington and Chelsea,RBKC,,Capital,Capital,,NORTH SV LIMITED,1271756,,,,23/02/2021,2200151858,"1,495.00",,Other capital equipment,,,,,,No
The Royal Borough of Kensington and Chelsea,RBKC,,Capital,Capital,,NORTH SV LIMITED,1271756,,,,25/02/2021,2200152366,"3,600.00",,Other capital equipment,,,,,,No
The Royal Borough of Kensington and Chelsea,RBKC,,Capital,Capital,,NPS Property Consultants Ltd ,1235087,,,,07/01/2021,2200141844,"5,100.00",,Payments to sub contractor,,,,,,No
The Royal Borough of Kensington and Chelsea,RBKC,,Capital,Capital,,NPS Property Consultants Ltd ,1235087,,,,09/02/2021,2200148726,"5,100.00",,Payments to main contractor,,,,,,No
The Royal Borough of Kensington and Chelsea,RBKC,,Statutory and Corporate Items,Statutory Year-End Adjustments,,NPS Property Consultants Ltd ,1235087,,,,24/03/2021,2200158650,"6,150.00",,Creditors Control : AP GRIR,,,,,,No
The Royal Borough of Kensington and Chelsea,RBKC,,Capital,Capital,,Nathaniel Lichfields and Partners,1265397,,,,12/04/2021,2200163169,585.00,,Professional Fees : Non Legal,,,,,,No
The Royal Borough of Kensington and Chelsea,RBKC,,Capital,Capital,,Network Rail Infrastructure Ltd ,1231408,,,,01/03/2021,2200153006,"1,813.31",,Payments to main contractor,,,,,,No
The Royal Borough of Kensington and Chelsea,RBKC,,Capital,Capital,,New Square Chambers Ltd ,1252408,,,,05/01/2021,2200141371,690.00,,Legal Fees & expenses,,,,,,No
The Royal Borough of Kensington and Chelsea,RBKC,,Capital,Capital,,New Square Chambers Ltd ,1252408,,,,04/02/2021,2200147643,"1,445.00",,Legal Fees & expenses,,,,,,No
The Royal Borough of Kensington and Chelsea,RBKC,,Capital,Capital,,New Square Chambers Ltd ,1252408,,,,16/03/2021,2200156500,"2,075.00",,Legal Fees & expenses,,,,,,No
The Royal Borough of Kensington and Chelsea,RBKC,,Capital,Capital,,Norman Rourke Pryme Limited ,1230778,,,,11/01/2021,2200142487,"1,000.00",,Payments to main contractor,,,,,,No
The Royal Borough of Kensington and Chelsea,RBKC,,Capital,Capital,,Norman Rourke Pryme Limited ,1230778,,,,19/01/2021,2200144184,"1,000.00",,Payments to main contractor,,,,,,No
The Royal Borough of Kensington and Chelsea,RBKC,,Capital,Capital,,Norman Rourke Pryme Limited ,1230778,,,,04/03/2021,2200153940,"1,500.00",,Construction : enhancements,,,,,,No
The Royal Borough of Kensington and Chelsea,RBKC,,Capital,Capital,,Norman Rourke Pryme Limited ,1230778,,,,06/04/2021,2200161554,750.00,,Construction : enhancements,,,,,,No
The Royal Borough of Kensington and Chelsea,RBKC,,Statutory and Corporate Items,Statutory Year-End Adjustments,,Norton Rose Fulbright LLP ,1235073,,,,26/03/2021,2200159251,"3,401.00",,Creditors Control : AP GRIR,,,,,,No
The Royal Borough of Kensington and Chelsea,RBKC,,Capital,Capital,,OMEGA RED GROUP LTD,1265141,,,,15/02/2021,2200149929,728.00,,Payments to main contractor,,,,,,No
The Royal Borough of Kensington and Chelsea,RBKC,,Capital,Capital,,OMEGA RED GROUP LTD,1265141,,,,15/02/2021,2200149930,728.00,,Payments to main contractor,,,,,,No
The Royal Borough of Kensington and Chelsea,RBKC,,Capital,Capital,,Oakleaf Surveying Ltd ,1230946,,,,04/03/2021,2200153934,"12,870.00",,Professional Fees : Non Legal,,,,,,No
The Royal Borough of Kensington and Chelsea,RBKC,,Capital,Capital,,Octavia Housing (Main Account) ,1230955,,,,13/01/2021,2200143094,"10,155.00",,Payments to main contractor,,,,,,No
The Royal Borough of Kensington and Chelsea,RBKC,,Capital,Capital,,Octavia Housing (Main Account) ,1230955,,,,26/03/2021,2200159262,"10,155.00",,Payments to main contractor,,,,,,No
The Royal Borough of Kensington and Chelsea,RBKC,,Capital,Capital,,Octavia Housing (Main Account) ,1230955,,,,26/03/2021,2200159263,"23,303.28",,Payments to main contractor,,,,,,No
The Royal Borough of Kensington and Chelsea,RBKC,,Capital,Capital,,Onsite Central Ltd,1269811,,,,03/02/2021,2200147374,"1,800.00",,Payments to main contractor,,,,,,No
The Royal Borough of Kensington and Chelsea,RBKC,,Capital,Capital,,Onsite Central Ltd,1269811,,,,09/02/2021,2200148723,900.00,,Payments to sub contractor,,,,,,No
The Royal Borough of Kensington and Chelsea,RBKC,,Capital,Capital,,Oracle Security Services Ltd ,1258033,,,,11/01/2021,2200142524,"3,043.68",,Site Supervision,,,,,,No
The Royal Borough of Kensington and Chelsea,RBKC,,Capital,Capital,,Oracle Security Services Ltd ,1258033,,,,11/01/2021,2200142525,"1,014.56",,Site Supervision,,,,,,No
The Royal Borough of Kensington and Chelsea,RBKC,,Capital,Capital,,Oracle Security Services Ltd ,1258033,,,,12/01/2021,2200142845,"2,864.64",,Site Supervision,,,,,,No
The Royal Borough of Kensington and Chelsea,RBKC,,Capital,Capital,,Oracle Security Services Ltd ,1258033,,,,19/02/2021,2200151139,"2,506.56",,Site Supervision,,,,,,No
The Royal Borough of Kensington and Chelsea,RBKC,,Capital,Capital,,Oracle Security Services Ltd ,1258033,,,,19/02/2021,2200151140,"2,506.56",,Site Supervision,,,,,,No
The Royal Borough of Kensington and Chelsea,RBKC,,Capital,Capital,,Oracle Security Services Ltd ,1258033,,,,25/03/2021,2200158877,"2,506.56",,Site Supervision,,,,,,No
The Royal Borough of Kensington and Chelsea,RBKC,,Capital,Capital,,Oracle Security Services Ltd ,1258033,,,,06/04/2021,2200161661,"3,527.56",,Site Supervision,,,,,,No
The Royal Borough of Kensington and Chelsea,RBKC,,Capital,Capital,,Oratory Rc Primary School ,1232819,,,,29/03/2021,3110290092,552.00,,Computer Equipment,,,,,,No
The Royal Borough of Kensington and Chelsea,RBKC,,Statutory and Corporate Items,Statutory Year-End Adjustments,,Orchard Building Solutions Ltd,1276458,,,,25/03/2021,2200158898,"5,300.00",,Creditors Control : AP GRIR,,,,,,No
The Royal Borough of Kensington and Chelsea,RBKC,,Capital,Capital,,Orchard Building Solutions Ltd,1276458,,,,31/03/2021,2200160497,550.00,,Site Works,,,,,,No
The Royal Borough of Kensington and Chelsea,RBKC,,Capital,Capital,,Orchard Building Solutions Ltd,1276458,,,,01/04/2021,2200161009,"7,890.00",,Site Works,,,,,,No
The Royal Borough of Kensington and Chelsea,RBKC,,Capital,Capital,,Osborn Associates Ltd,1262963,,,,16/02/2021,2200150401,"6,650.00",,Design Consultant,,,,,,No
The Royal Borough of Kensington and Chelsea,RBKC,,Capital,Capital,,Osborn Associates Ltd,1262963,,,,04/03/2021,2200153992,"2,100.00",,Engineering Consultancy Fees,,,,,,No
The Royal Borough of Kensington and Chelsea,RBKC,,Capital,Capital,,Osborn Associates Ltd,1262963,,,,08/03/2021,2200154699,"3,675.00",,Payments to main contractor,,,,,,No
The Royal Borough of Kensington and Chelsea,RBKC,,Capital,Capital,,Osborn Associates Ltd,1262963,,,,09/03/2021,2200155007,875.00,,Payments to main contractor,,,,,,No
The Royal Borough of Kensington and Chelsea,RBKC,,Capital,Capital,,Osborn Associates Ltd,1262963,,,,09/03/2021,2200155053,"5,600.00",,Engineering Consultancy Fees,,,,,,No
The Royal Borough of Kensington and Chelsea,RBKC,,Capital,Capital,,Osborn Associates Ltd,1262963,,,,09/03/2021,2200155054,"5,600.00",,Engineering Consultancy Fees,,,,,,No
The Royal Borough of Kensington and Chelsea,RBKC,,Capital,Capital,,Osborn Associates Ltd,1262963,,,,09/03/2021,2200155056,"4,200.00",,Engineering Consultancy Fees,,,,,,No
The Royal Borough of Kensington and Chelsea,RBKC,,Capital,Capital,,Osborn Associates Ltd,1262963,,,,09/03/2021,2200155058,"5,600.00",,Engineering Consultancy Fees,,,,,,No
The Royal Borough of Kensington and Chelsea,RBKC,,Capital,Capital,,Osborn Associates Ltd,1262963,,,,16/03/2021,2200156637,800.00,,Payments to main contractor,,,,,,No
The Royal Borough of Kensington and Chelsea,RBKC,,Capital,Capital,,Osborn Associates Ltd,1262963,,,,18/03/2021,2200157269,"17,350.00",,Special Maintenance,,,,,,No
The Royal Borough of Kensington and Chelsea,RBKC,,Capital,Capital,,Osborn Associates Ltd,1262963,,,,24/03/2021,2200158602,"1,750.00",,Engineering Consultancy Fees,,,,,,No
The Royal Borough of Kensington and Chelsea,RBKC,,Capital,Capital,,Osborn Associates Ltd,1262963,,,,01/04/2021,2200162595,"2,100.00",,Payments to main contractor,,,,,,No
The Royal Borough of Kensington and Chelsea,RBKC,,Capital,Capital,,Osborn Associates Ltd,1262963,,,,12/04/2021,2200163094,800.00,,Payments to main contractor,,,,,,No
The Royal Borough of Kensington and Chelsea,RBKC,,Capital,Capital,,Osborn Associates Ltd,1262963,,,,13/04/2021,2200163461,"2,000.00",,Payments to main contractor,,,,,,No
The Royal Borough of Kensington and Chelsea,RBKC,,Capital,Capital,,Osborne Thomas Ltd,1261917,,,,04/01/2021,2200141083,"10,725.00",,Other Consultants,,,,,,No
The Royal Borough of Kensington and Chelsea,RBKC,,Capital,Capital,,Osborne Thomas Ltd,1261917,,,,10/02/2021,2200149069,"15,904.35",,Other Consultants,,,,,,No
The Royal Borough of Kensington and Chelsea,RBKC,,Capital,Capital,,Our Lady Of Victories Rc Primary School,1232820,,,,29/03/2021,3110290096,"1,104.00",,Computer Equipment,,,,,,No
The Royal Borough of Kensington and Chelsea,RBKC,,Capital,Capital,,Oxford Gardens Primary School ,1232822,,,,02/02/2021,3110267910,"10,830.00",,Computer Equipment,,,,,,No
The Royal Borough of Kensington and Chelsea,RBKC,,Capital,Capital,,Oxford Gardens Primary School ,1232822,,,,03/02/2021,2200147410,"74,858.00",,Payments to main contractor,,,,,,No
The Royal Borough of Kensington and Chelsea,RBKC,,Capital,Capital,,Oxford Gardens Primary School ,1232822,,,,11/02/2021,2200149268,"5,375.00",,Payments to main contractor,,,,,,No
The Royal Borough of Kensington and Chelsea,RBKC,,Capital,Capital,,Oxford Gardens Primary School ,1232822,,,,05/03/2021,2200154218,"8,539.31",,Payments to main contractor,,,,,,No
The Royal Borough of Kensington and Chelsea,RBKC,,Capital,Capital,,Ppl Training Ltd,1266667,,,,12/04/2021,2200163099,900.00,,Planned Maintenance (CM),,,,,,No
The Royal Borough of Kensington and Chelsea,RBKC,,Capital,Capital,,PRICE & MYERS LLP,1276712,,,,23/02/2021,2200151700,"1,250.00",,Professional Fees : Non Legal,,,,,,No
The Royal Borough of Kensington and Chelsea,RBKC,,Capital,Capital,,Paragon Building Consultancy Ltd ,1230988,,,,18/01/2021,2200143970,"2,500.00",,Surveyors,,,,,,No
The Royal Borough of Kensington and Chelsea,RBKC,,Capital,Capital,,Paragon Building Consultancy Ltd ,1230988,,,,18/03/2021,2200157345,900.00,,Payments to main contractor,,,,,,No
The Royal Borough of Kensington and Chelsea,RBKC,,Capital,Capital,,Park Walk Primary School ,1232825,,,,02/02/2021,3110267913,"4,680.00",,Computer Equipment,,,,,,No
The Royal Borough of Kensington and Chelsea,RBKC,,Capital,Capital,,Park Walk Primary School ,1232825,,,,16/02/2021,2200150213,"1,850.00",,Payments to main contractor,,,,,,No
The Royal Borough of Kensington and Chelsea,RBKC,,Capital,Capital,,Park Walk Primary School ,1232825,,,,16/02/2021,2200150214,"1,800.00",,Payments to main contractor,,,,,,No
The Royal Borough of Kensington and Chelsea,RBKC,,Capital,Capital,,Pders Key Lifts ,1231418,,,,02/02/2021,2200146941,"17,810.30",,Payments to main contractor,,,,,,No
The Royal Borough of Kensington and Chelsea,RBKC,,Capital,Capital,,Pders Key Lifts ,1231418,,,,02/02/2021,2200146942,"8,554.46",,Payments to main contractor,,,,,,No
The Royal Borough of Kensington and Chelsea,RBKC,,Capital,Capital,,Pders Key Lifts ,1231418,,,,02/02/2021,2200146943,"2,106.25",,Payments to main contractor,,,,,,No
The Royal Borough of Kensington and Chelsea,RBKC,,Capital,Capital,,Pders Key Lifts ,1231418,,,,02/03/2021,2200153331,937.50,,Payments to main contractor,,,,,,No
The Royal Borough of Kensington and Chelsea,RBKC,,Capital,Capital,,Pders Key Lifts ,1231418,,,,02/03/2021,2200153334,600.00,,Payments to main contractor,,,,,,No
The Royal Borough of Kensington and Chelsea,RBKC,,Capital,Capital,,Pders Key Lifts ,1231418,,,,02/03/2021,2200153335,600.00,,Payments to main contractor,,,,,,No
The Royal Borough of Kensington and Chelsea,RBKC,,Capital,Capital,,Pders Key Lifts ,1231418,,,,02/03/2021,2200153336,600.00,,Payments to main contractor,,,,,,No
The Royal Borough of Kensington and Chelsea,RBKC,,Capital,Capital,,Pders Key Lifts ,1231418,,,,02/03/2021,2200153337,600.00,,Payments to main contractor,,,,,,No
The Royal Borough of Kensington and Chelsea,RBKC,,Capital,Capital,,Pders Key Lifts ,1231418,,,,02/03/2021,2200153338,"2,509.37",,Payments to main contractor,,,,,,No
The Royal Borough of Kensington and Chelsea,RBKC,,Capital,Capital,,Pders Key Lifts ,1231418,,,,18/03/2021,2200157190,600.00,,Payments to main contractor,,,,,,No
The Royal Borough of Kensington and Chelsea,RBKC,,Capital,Capital,,Pders Key Lifts ,1231418,,,,18/03/2021,2200157191,600.00,,Payments to main contractor,,,,,,No
The Royal Borough of Kensington and Chelsea,RBKC,,Capital,Capital,,Pders Key Lifts ,1231418,,,,18/03/2021,2200157192,600.00,,Payments to main contractor,,,,,,No
The Royal Borough of Kensington and Chelsea,RBKC,,Capital,Capital,,Pders Key Lifts ,1231418,,,,18/03/2021,2200157194,600.00,,Payments to main contractor,,,,,,No
The Royal Borough of Kensington and Chelsea,RBKC,,Capital,Capital,,Pders Key Lifts ,1231418,,,,18/03/2021,2200157197,600.00,,Payments to main contractor,,,,,,No
The Royal Borough of Kensington and Chelsea,RBKC,,Capital,Capital,,Pders Key Lifts ,1231418,,,,18/03/2021,2200157198,987.50,,Payments to main contractor,,,,,,No
The Royal Borough of Kensington and Chelsea,RBKC,,Capital,Capital,,Pders Key Lifts ,1231418,,,,18/03/2021,2200157199,600.00,,Payments to main contractor,,,,,,No
The Royal Borough of Kensington and Chelsea,RBKC,,Capital,Capital,,Pelliings LLP,1269041,,,,15/01/2021,2200143650,"5,188.00",,Professional Fees : Non Legal,,,,,,No
The Royal Borough of Kensington and Chelsea,RBKC,,Capital,Capital,,Pelliings LLP,1269041,,,,26/01/2021,2200145750,"2,594.00",,Professional Fees : Non Legal,,,,,,No
The Royal Borough of Kensington and Chelsea,RBKC,,Capital,Capital,,Pen Test Partners Llp,1268399,,,,11/02/2021,2200149481,"9,500.00",,Payments to main contractor,,,,,,No
The Royal Borough of Kensington and Chelsea,RBKC,,Statutory and Corporate Items,Statutory Year-End Adjustments,,Perega Limited,1264035,,,,14/01/2021,2200143252,"6,168.75",,Creditors Control : AP GRIR,,,,,,No
The Royal Borough of Kensington and Chelsea,RBKC,,Capital,Capital,,Perfect Circle JV Ltd ,1254748,,,,18/01/2021,2200143949,"136,422.29",,Payments to main contractor,,,,,,No
The Royal Borough of Kensington and Chelsea,RBKC,,Capital,Capital,,Perfect Circle JV Ltd ,1254748,,,,27/01/2021,2200145937,"60,857.97",,Payments to main contractor,,,,,,No
The Royal Borough of Kensington and Chelsea,RBKC,,Capital,Capital,,Perfect Circle JV Ltd ,1254748,,,,29/01/2021,2200146352,"39,500.00",,Professional Fees : Non Legal,,,,,,No
The Royal Borough of Kensington and Chelsea,RBKC,,Capital,Capital,,Perfect Circle JV Ltd ,1254748,,,,29/01/2021,2200146353,"59,975.00",,Professional Fees : Non Legal,,,,,,No
The Royal Borough of Kensington and Chelsea,RBKC,,Capital,Capital,,Perfect Circle JV Ltd ,1254748,,,,29/01/2021,2200146354,"39,500.00",,Professional Fees : Non Legal,,,,,,No
The Royal Borough of Kensington and Chelsea,RBKC,,Capital,Capital,,Perfect Circle JV Ltd ,1254748,,,,29/01/2021,2200146355,"76,615.00",,Professional Fees : Non Legal,,,,,,No
The Royal Borough of Kensington and Chelsea,RBKC,,Capital,Capital,,Perfect Circle JV Ltd ,1254748,,,,11/02/2021,2200149315,"38,177.13",,Payments to main contractor,,,,,,No
The Royal Borough of Kensington and Chelsea,RBKC,,Capital,Capital,,Perfect Circle JV Ltd ,1254748,,,,15/02/2021,2200150082,"58,977.47",,Payments to main contractor,,,,,,No
The Royal Borough of Kensington and Chelsea,RBKC,,Capital,Capital,,Perfect Circle JV Ltd ,1254748,,,,15/02/2021,2200150083,"72,854.00",,Payments to main contractor,,,,,,No
The Royal Borough of Kensington and Chelsea,RBKC,,Capital,Capital,,Perfect Circle JV Ltd ,1254748,,,,15/02/2021,2200150084,"88,500.00",,Payments to main contractor,,,,,,No
The Royal Borough of Kensington and Chelsea,RBKC,,Capital,Capital,,Perfect Circle JV Ltd ,1254748,,,,24/02/2021,2200152087,"35,779.00",,Other Consultants,,,,,,No
The Royal Borough of Kensington and Chelsea,RBKC,,Capital,Capital,,Perfect Circle JV Ltd ,1254748,,,,24/02/2021,2200152088,"88,219.00",,Payments to main contractor,,,,,,No
The Royal Borough of Kensington and Chelsea,RBKC,,Capital,Capital,,Perfect Circle JV Ltd ,1254748,,,,24/02/2021,2200152097,"80,826.00",,Payments to main contractor,,,,,,No
The Royal Borough of Kensington and Chelsea,RBKC,,Capital,Capital,,Perfect Circle JV Ltd ,1254748,,,,16/03/2021,2200156502,"126,110.00",,Payments to main contractor,,,,,,No
The Royal Borough of Kensington and Chelsea,RBKC,,Capital,Capital,,Perfect Circle JV Ltd ,1254748,,,,23/03/2021,2200158377,"116,700.00",,Payments to main contractor,,,,,,No
The Royal Borough of Kensington and Chelsea,RBKC,,Capital,Capital,,Perfect Circle JV Ltd ,1254748,,,,06/04/2021,2200161622,"108,263.00",,Payments to main contractor,,,,,,No
The Royal Borough of Kensington and Chelsea,RBKC,,Capital,Capital,,Perfect Circle JV Ltd ,1254748,,,,06/04/2021,2200161623,"33,779.00",,Payments to main contractor,,,,,,No
The Royal Borough of Kensington and Chelsea,RBKC,,Capital,Capital,,Perfect Circle JV Ltd ,1254748,,,,07/04/2021,2200161795,"86,690.00",,Payments to main contractor,,,,,,No
The Royal Borough of Kensington and Chelsea,RBKC,,Capital,Capital,,Perkins & Will UK Limited,1265496,,,,11/01/2021,2200142485,"32,670.00",,Payments to main contractor,,,,,,No
The Royal Borough of Kensington and Chelsea,RBKC,,Capital,Capital,,Perkins & Will UK Limited,1265496,,,,19/01/2021,2200144161,"6,900.00",,Payments to main contractor,,,,,,No
The Royal Borough of Kensington and Chelsea,RBKC,,Capital,Capital,,Perkins & Will UK Limited,1265496,,,,11/02/2021,2200149414,"7,250.00",,Payments to main contractor,,,,,,No
The Royal Borough of Kensington and Chelsea,RBKC,,Capital,Capital,,Perkins & Will UK Limited,1265496,,,,03/03/2021,2200153516,"37,800.00",,Payments to main contractor,,,,,,No
The Royal Borough of Kensington and Chelsea,RBKC,,Capital,Capital,,Perkins & Will UK Limited,1265496,,,,09/03/2021,2200154963,"37,800.00",,Payments to main contractor,,,,,,No
The Royal Borough of Kensington and Chelsea,RBKC,,Capital,Capital,,Perkins & Will UK Limited,1265496,,,,10/03/2021,2200155565,"37,800.00",,Payments to main contractor,,,,,,No
The Royal Borough of Kensington and Chelsea,RBKC,,Capital,Capital,,Perkins & Will UK Limited,1265496,,,,16/03/2021,2200156533,"8,100.00",,Site Works,,,,,,No
The Royal Borough of Kensington and Chelsea,RBKC,,Capital,Capital,,Perkins & Will UK Limited,1265496,,,,22/03/2021,2200157996,"1,750.00",,Payments to main contractor,,,,,,No
The Royal Borough of Kensington and Chelsea,RBKC,,Capital,Capital,,Perkins & Will UK Limited,1265496,,,,22/03/2021,2200157997,"2,585.00",,Payments to main contractor,,,,,,No
The Royal Borough of Kensington and Chelsea,RBKC,,Capital,Capital,,Perkins & Will UK Limited,1265496,,,,01/04/2021,2200160970,"11,087.00",,Payments to main contractor,,,,,,No
The Royal Borough of Kensington and Chelsea,RBKC,,Capital,Capital,,Perkins & Will UK Limited,1265496,,,,01/04/2021,2200160971,"5,000.00",,Payments to main contractor,,,,,,No
The Royal Borough of Kensington and Chelsea,RBKC,,Capital,Capital,,Perkins & Will UK Limited,1265496,,,,01/04/2021,2200160986,"3,793.00",,Payments to main contractor,,,,,,No
The Royal Borough of Kensington and Chelsea,RBKC,,Capital,Capital,,Perkins & Will UK Limited,1265496,,,,12/04/2021,2200163170,"37,800.00",,Payments to main contractor,,,,,,No
The Royal Borough of Kensington and Chelsea,RBKC,,Capital,Capital,,Pierra Ltd,1273042,,,,15/03/2021,2200156248,"35,247.93",,Construction : enhancements,,,,,,No
The Royal Borough of Kensington and Chelsea,RBKC,,Capital,Capital,,Pinsent Masons LLP ,1235160,,,,08/02/2021,2200148460,"16,678.00",,Payments to main contractor,,,,,,No
The Royal Borough of Kensington and Chelsea,RBKC,,Capital,Capital,,Pinsent Masons LLP ,1235160,,,,10/02/2021,2200149003,"12,953.50",,Legal Fees & expenses,,,,,,No
The Royal Borough of Kensington and Chelsea,RBKC,,Capital,Capital,,Pioneer Site Services Lim,1266411,,,,11/02/2021,2200149270,"1,320.00",,Payments to main contractor,,,,,,No
The Royal Borough of Kensington and Chelsea,RBKC,,Capital,Capital,,Pioneer Site Services Lim,1266411,,,,06/04/2021,2200161571,"8,731.65",,Payments to main contractor,,,,,,No
The Royal Borough of Kensington and Chelsea,RBKC,,Capital,Capital,,Point 2 Surveyors,1235179,,,,19/01/2021,2200144205,"1,053.00",,Construction : enhancements,,,,,,No
The Royal Borough of Kensington and Chelsea,RBKC,,Capital,Capital,,Point 2 Surveyors,1235179,,,,21/01/2021,2200144653,"1,718.75",,Payments to main contractor,,,,,,No
The Royal Borough of Kensington and Chelsea,RBKC,,Capital,Capital,,Point 2 Surveyors,1235179,,,,21/01/2021,2200144654,"1,705.00",,Construction : enhancements,,,,,,No
The Royal Borough of Kensington and Chelsea,RBKC,,Capital,Capital,,Point 2 Surveyors,1235179,,,,19/02/2021,2200151059,"1,993.75",,Payments to main contractor,,,,,,No
The Royal Borough of Kensington and Chelsea,RBKC,,Capital,Capital,,Point 2 Surveyors,1235179,,,,17/03/2021,2200156866,"1,210.00",,Payments to main contractor,,,,,,No
The Royal Borough of Kensington and Chelsea,RBKC,,Capital,Capital,,Point 2 Surveyors,1235179,,,,17/03/2021,2200156867,"2,103.75",,Construction : enhancements,,,,,,No
The Royal Borough of Kensington and Chelsea,RBKC,,Statutory and Corporate Items,Statutory Year-End Adjustments,,Precision Lifts Ltd,1277476,,,,30/03/2021,2200159953,683.00,,Creditors Control : AP GRIR,,,,,,No
The Royal Borough of Kensington and Chelsea,RBKC,,Capital,Capital,,Project Centre ,1235205,,,,11/01/2021,2200142463,"10,200.00",,Payments to main contractor,,,,,,No
The Royal Borough of Kensington and Chelsea,RBKC,,Capital,Capital,,Project Centre ,1235205,,,,15/01/2021,2200143640,"2,241.50",,Engineering Consultancy Fees,,,,,,No
The Royal Borough of Kensington and Chelsea,RBKC,,Statutory and Corporate Items,Statutory Year-End Adjustments,,Project Centre ,1235205,,,,20/01/2021,2200144348,"2,600.00",,Creditors Control : AP GRIR,,,,,,No
The Royal Borough of Kensington and Chelsea,RBKC,,Capital,Capital,,Project Centre ,1235205,,,,05/02/2021,2200148208,"2,241.50",,Engineering Consultancy Fees,,,,,,No
The Royal Borough of Kensington and Chelsea,RBKC,,Capital,Capital,,Project Centre ,1235205,,,,08/02/2021,2200148379,896.60,,Engineering Consultancy Fees,,,,,,No
The Royal Borough of Kensington and Chelsea,RBKC,,Capital,Capital,,Project Centre ,1235205,,,,15/02/2021,2200150043,"3,025.00",,Payments to main contractor,,,,,,No
The Royal Borough of Kensington and Chelsea,RBKC,,Capital,Capital,,Project Centre ,1235205,,,,22/02/2021,2200151467,"4,744.70",,Other Consultants,,,,,,No
The Royal Borough of Kensington and Chelsea,RBKC,,Capital,Capital,,Project Centre ,1235205,,,,26/02/2021,2200152556,"2,000.00",,Engineering Consultancy Fees,,,,,,No
The Royal Borough of Kensington and Chelsea,RBKC,,Capital,Capital,,Project Centre ,1235205,,,,02/03/2021,2200153239,"3,400.00",,Payments to main contractor,,,,,,No
The Royal Borough of Kensington and Chelsea,RBKC,,Capital,Capital,,Project Centre ,1235205,,,,16/03/2021,2200156580,"18,800.00",,Design Consultant,,,,,,No
The Royal Borough of Kensington and Chelsea,RBKC,,Capital,Capital,,Project Centre ,1235205,,,,17/03/2021,2200156940,"1,434.56",,Engineering Consultancy Fees,,,,,,No
The Royal Borough of Kensington and Chelsea,RBKC,,Capital,Capital,,Project Centre ,1235205,,,,22/03/2021,2200157784,"1,089.30",,Payments to main contractor,,,,,,No
The Royal Borough of Kensington and Chelsea,RBKC,,Capital,Capital,,Project Centre ,1235205,,,,01/04/2021,2200161475,"2,563.00",,Design Consultant,,,,,,No
The Royal Borough of Kensington and Chelsea,RBKC,,Capital,Capital,,Project Centre ,1235205,,,,08/04/2021,2200162481,"1,120.75",,Engineering Consultancy Fees,,,,,,No
The Royal Borough of Kensington and Chelsea,RBKC,,Capital,Capital,,Prp Architects Llp ,1235213,,,,08/02/2021,2200148557,"4,812.50",,Other Consultants,,,,,,No
The Royal Borough of Kensington and Chelsea,RBKC,,Capital,Capital,,Prp Architects Llp ,1235213,,,,08/03/2021,2200154742,"4,812.50",,Other Consultants,,,,,,No
The Royal Borough of Kensington and Chelsea,RBKC,,Statutory and Corporate Items,Statutory Year-End Adjustments,,Quadron Services Ltd T/A Idverde ,1231423,,,,07/04/2021,2200161798,"4,188.04",,Creditors Control : AP GRIR,,,,,,No
The Royal Borough of Kensington and Chelsea,RBKC,,Statutory and Corporate Items,Statutory Year-End Adjustments,,Quadron Services Ltd T/A Idverde ,1231423,,,,07/04/2021,2200161799,972.76,,Creditors Control : AP GRIR,,,,,,No
The Royal Borough of Kensington and Chelsea,RBKC,,Statutory and Corporate Items,Statutory Year-End Adjustments,,Quadron Services Ltd T/A Idverde ,1231423,,,,07/04/2021,2200161800,"2,638.36",,Creditors Control : AP GRIR,,,,,,No
The Royal Borough of Kensington and Chelsea,RBKC,,Statutory and Corporate Items,Statutory Year-End Adjustments,,Quadron Services Ltd T/A Idverde ,1231423,,,,07/04/2021,2200161801,"1,683.89",,Creditors Control : AP GRIR,,,,,,No
The Royal Borough of Kensington and Chelsea,RBKC,,Statutory and Corporate Items,Statutory Year-End Adjustments,,Quadron Services Ltd T/A Idverde ,1231423,,,,07/04/2021,2200162077,"1,316.84",,Creditors Control : AP GRIR,,,,,,No
The Royal Borough of Kensington and Chelsea,RBKC,,Capital,Capital,,Quaye Services Ltd,1276338,,,,01/04/2021,2200162612,"2,965.00",,Payments to main contractor,,,,,,No
The Royal Borough of Kensington and Chelsea,RBKC,,Capital,Capital,,Quinn London Ltd,1235230,,,,12/01/2021,2200142852,"259,900.17",,Other Consultants,,,,,,No
The Royal Borough of Kensington and Chelsea,RBKC,,Capital,Capital,,Quinn London Ltd,1235230,,,,15/02/2021,2200150091,"199,500.00",,Other Consultants,,,,,,No
The Royal Borough of Kensington and Chelsea,RBKC,,Capital,Capital,,Quinn London Ltd,1235230,,,,15/03/2021,2200156332,"490,200.00",,Other Consultants,,,,,,No
The Royal Borough of Kensington and Chelsea,RBKC,,Capital,Capital,,Quinn London Ltd,1235230,,,,12/04/2021,2200163131,"2,723.40",,Payments to main contractor,,,,,,No
The Royal Borough of Kensington and Chelsea,RBKC,,Capital,Capital,,Quinn London Ltd,1235230,,,,15/04/2021,2200163860,"513,000.00",,Other Consultants,,,,,,No
The Royal Borough of Kensington and Chelsea,RBKC,,Capital,Capital,,Quinn Studio Ltd ,1255519,,,,16/03/2021,2200156534,560.00,,Payments to main contractor,,,,,,No
The Royal Borough of Kensington and Chelsea,RBKC,,Capital,Capital,,Quinn Studio Ltd ,1255519,,,,25/03/2021,2200159055,602.70,,Payments to main contractor,,,,,,No
The Royal Borough of Kensington and Chelsea,RBKC,,Capital,Capital,,RNB ENGINEERING,1256083,,,,11/02/2021,2200149314,"26,126.60",,Payments to main contractor,,,,,,No
The Royal Borough of Kensington and Chelsea,RBKC,,Capital,Capital,,RUSSELL TREW LIMITED,1272150,,,,23/03/2021,2200158399,"109,184.89",,Planned Maintenance (CM),,,,,,No
The Royal Borough of Kensington and Chelsea,RBKC,,Capital,Capital,,Race Cottam Associates Limited,1269230,,,,15/03/2021,2200156294,"5,500.00",,Other Consultants,,,,,,No
The Royal Borough of Kensington and Chelsea,RBKC,,Capital,Capital,,Race Cottam Associates Limited,1269230,,,,06/04/2021,2200161626,"2,500.00",,Construction : enhancements,,,,,,No
The Royal Borough of Kensington and Chelsea,RBKC,,Capital,Capital,,Race Cottam Associates Limited,1269230,,,,12/04/2021,2200163213,"9,400.00",,Payments to main contractor,,,,,,No
The Royal Borough of Kensington and Chelsea,RBKC,,Capital,Capital,,Ramboll UK Ltd,1274051,,,,24/03/2021,2200158511,"73,242.00",,Payments to main contractor,,,,,,No
The Royal Borough of Kensington and Chelsea,RBKC,,Capital,Capital,,Rbkc Colville Primary School ,1236100,,,,07/01/2021,2200141866,"34,184.00",,Payments to sub contractor,,,,,,No
The Royal Borough of Kensington and Chelsea,RBKC,,Capital,Capital,,Rbkc Colville Primary School ,1236100,,,,08/01/2021,2200142141,"34,184.00",,Payments to sub contractor,,,,,,No
The Royal Borough of Kensington and Chelsea,RBKC,,Capital,Capital,,Rbkc Colville Primary School ,1236100,,,,08/01/2021,2200142220,"34,184.00",,Payments to sub contractor,,,,,,No
The Royal Borough of Kensington and Chelsea,RBKC,,Capital,Capital,,Rbkc Colville Primary School ,1236100,,,,05/03/2021,2200154219,"11,096.30",,Payments to main contractor,,,,,,No
The Royal Borough of Kensington and Chelsea,RBKC,,Capital,Capital,,Rbkc Colville Primary School ,1236100,,,,29/03/2021,2200159682,"8,123.00",,Payments to main contractor,,,,,,No
The Royal Borough of Kensington and Chelsea,RBKC,,Capital,Capital,,Resourcing Group ,1235269,,,,06/01/2021,2200141738,853.56,,Capitalised salaries,,,,,,No
The Royal Borough of Kensington and Chelsea,RBKC,,Capital,Capital,,Resourcing Group ,1235269,,,,07/01/2021,2200141860,"1,110.40",,Capitalised salaries,,,,,,No
The Royal Borough of Kensington and Chelsea,RBKC,,Capital,Capital,,Resourcing Group ,1235269,,,,07/01/2021,2200141861,971.60,,Capitalised salaries,,,,,,No
The Royal Borough of Kensington and Chelsea,RBKC,,Capital,Capital,,Resourcing Group ,1235269,,,,26/01/2021,2200145591,853.56,,Capitalised salaries,,,,,,No
The Royal Borough of Kensington and Chelsea,RBKC,,Capital,Capital,,Resourcing Group ,1235269,,,,26/01/2021,2200145596,824.96,,Capitalised salaries,,,,,,No
The Royal Borough of Kensington and Chelsea,RBKC,,Capital,Capital,,Resourcing Group ,1235269,,,,26/01/2021,2200145597,853.56,,Capitalised salaries,,,,,,No
The Royal Borough of Kensington and Chelsea,RBKC,,Capital,Capital,,Resourcing Group ,1235269,,,,26/01/2021,2200145598,853.56,,Capitalised salaries,,,,,,No
The Royal Borough of Kensington and Chelsea,RBKC,,Capital,Capital,,Resourcing Group ,1235269,,,,26/01/2021,2200145599,"1,030.40",,Capitalised salaries,,,,,,No
The Royal Borough of Kensington and Chelsea,RBKC,,Capital,Capital,,Resourcing Group ,1235269,,,,26/01/2021,2200145673,824.32,,Capitalised salaries,,,,,,No
The Royal Borough of Kensington and Chelsea,RBKC,,Capital,Capital,,Resourcing Group ,1235269,,,,26/01/2021,2200145675,824.32,,Capitalised salaries,,,,,,No
The Royal Borough of Kensington and Chelsea,RBKC,,Capital,Capital,,Resourcing Group ,1235269,,,,26/01/2021,2200145676,"1,030.40",,Capitalised salaries,,,,,,No
